Department,Entity,Transaction Date,Expense Type,Expense Area,Supplier Name,Transaction number,Amount,Invoice Description
DFID,DFID,02/03/2018,Subscriptions,Finance and Corporate Performance Division,OANDA,100008-101,"3,305.89",
DFID,DFID,01/03/2018,Air fares,East and Central Africa,Corporate Travel Provider,100016-110,"1,196.00",
DFID,DFID,01/03/2018,Air fares,East and Central Africa,Corporate Travel Provider,100016-110,"2,601.75",
DFID,DFID,01/03/2018,Hotels - Accommodation only,Research and Evidence Division,Corporate Travel Provider,100039-108,786.93,
DFID,DFID,01/03/2018,Hotels - Accommodation only,East and Central Africa,Corporate Travel Provider,100082-101,504.00,
DFID,DFID,01/03/2018,Air fares,"Asia, Caribbean and Overseas Territories",Corporate Travel Provider,100084-101,645.31,
DFID,DFID,01/03/2018,Air fares,"Asia, Caribbean and Overseas Territories",Corporate Travel Provider,100084-101,862.71,
DFID,DFID,01/03/2018,Air fares,"Asia, Caribbean and Overseas Territories",Corporate Travel Provider,100084-101,561.11,
DFID,DFID,01/03/2018,Air fares,"Asia, Caribbean and Overseas Territories",Corporate Travel Provider,100084-101,862.71,
DFID,DFID,01/03/2018,Air fares,"Asia, Caribbean and Overseas Territories",Corporate Travel Provider,100084-101,679.32,
DFID,DFID,20/03/2018,Hotels - Accommodation only,"Asia, Caribbean and Overseas Territories",Foreign & Commonwealth Office,100084-101,833.96,
DFID,DFID,01/03/2018,Air fares,"Asia, Caribbean and Overseas Territories",Corporate Travel Provider,100084-101,741.77,
DFID,DFID,01/03/2018,Air fares,"Conflict, Humanitarian, Security & Stabilisation Division",Corporate Travel Provider,100049-102,920.25,
DFID,DFID,01/03/2018,Air fares,"Conflict, Humanitarian, Security & Stabilisation Division",Corporate Travel Provider,100049-102,561.61,
DFID,DFID,01/03/2018,Air fares,Internal Audit,Corporate Travel Provider,100121-101,533.31,
DFID,DFID,01/03/2018,Air fares,Internal Audit,Corporate Travel Provider,100121-101,533.31,
DFID,DFID,01/03/2018,Air fares,Internal Audit,Corporate Travel Provider,100121-101,533.31,
DFID,DFID,01/03/2018,Air fares,Internal Audit,Corporate Travel Provider,100121-101,533.31,
DFID,DFID,01/03/2018,Air fares,Internal Audit,Corporate Travel Provider,100121-101,533.31,
DFID,DFID,20/03/2018,Hotels - Accommodation only,Internal Audit,Foreign & Commonwealth Office,100121-101,715.36,
DFID,DFID,02/03/2018,"Conferences, Seminars & Meeting/Event Resource",Internal Audit,Holiday Inn East Kilbride ,100121-101,620.00,
DFID,DFID,15/03/2018,Hotels - Accommodation only,Internal Audit,Foreign & Commonwealth Office,100121-101,"4,575.91",
DFID,DFID,13/03/2018,Hotels - Accommodation only,Internal Audit,Foreign & Commonwealth Office,100121-101,"1,075.39",
DFID,DFID,01/03/2018,Hotels - Accommodation only,Economic Development Division,Corporate Travel Provider,100124-101,986.36,
DFID,DFID,01/03/2018,Air fares,Economic Development Division,Corporate Travel Provider,100124-101,996.74,
DFID,DFID,01/03/2018,Air fares,Economic Development Division,Corporate Travel Provider,100124-101,943.30,
DFID,DFID,01/03/2018,Air fares,Economic Development Division,Corporate Travel Provider,100124-101,"1,480.20",
DFID,DFID,01/03/2018,Air fares,Economic Development Division,Corporate Travel Provider,100124-101,899.47,
DFID,DFID,01/03/2018,Air fares,Economic Development Division,Corporate Travel Provider,100124-101,899.47,
DFID,DFID,01/03/2018,Air fares,Economic Development Division,Corporate Travel Provider,100124-101,899.47,
DFID,DFID,01/03/2018,Air fares,Communications Division,Corporate Travel Provider,100177-101,925.11,
DFID,DFID,01/03/2018,Air fares,Communications Division,Corporate Travel Provider,100197-101,574.41,
DFID,DFID,01/03/2018,Air fares,Communications Division,Corporate Travel Provider,100197-101,916.21,
DFID,DFID,01/03/2018,Air fares,Communications Division,Corporate Travel Provider,100197-101,513.93,
DFID,DFID,01/03/2018,Air fares,Finance and Corporate Performance Division,Corporate Travel Provider,100201-101,613.26,
DFID,DFID,01/03/2018,Air fares,Finance and Corporate Performance Division,Corporate Travel Provider,100201-101,"1,068.46",
DFID,DFID,01/03/2018,Air fares,Finance and Corporate Performance Division,Corporate Travel Provider,100201-101,807.56,
DFID,DFID,01/03/2018,Hotels - Accommodation only,Finance and Corporate Performance Division,Corporate Travel Provider,100201-101,610.38,
DFID,DFID,20/03/2018,Secure Staff Accommodation,West and Southern Africa,Foreign & Commonwealth Office,100220-101,"16,891.50",
DFID,DFID,01/03/2018,Hotels - Accommodation only,East and Central Africa,Corporate Travel Provider,100230-101,535.00,
DFID,DFID,05/03/2018,Hotels - Accommodation only,Top Management Group,Foreign & Commonwealth Office,100232-102,"3,854.20",
DFID,DFID,01/03/2018,Air fares,Top Management Group,Corporate Travel Provider,100232-104,"1,061.51",
DFID,DFID,01/03/2018,Air fares,Top Management Group,Corporate Travel Provider,100232-104,"1,061.51",
DFID,DFID,20/03/2018,Office Equipment - Maintenance,International Relations Division,Foreign & Commonwealth Office,100238-101,"2,572.15",
DFID,DFID,01/03/2018,Air fares,International Relations Division,Corporate Travel Provider,100240-101,"1,962.91",
DFID,DFID,01/03/2018,Air fares,International Relations Division,Corporate Travel Provider,100240-101,814.70,
DFID,DFID,01/03/2018,Air fares,"Asia, Caribbean and Overseas Territories",Corporate Travel Provider,100244-101,800.01,
DFID,DFID,13/03/2018,Data network- remote working,West and Southern Africa,Foreign & Commonwealth Office,100254-101,"3,487.59",
DFID,DFID,01/03/2018,Air fares,Human Resources,Corporate Travel Provider,100261-101,"2,227.26",
DFID,DFID,01/03/2018,Air fares,Human Resources,Corporate Travel Provider,100261-101,"2,227.26",
DFID,DFID,01/03/2018,Staff Travel - Air Fares,Top Management Group,Corporate Travel Provider,100232-108,"4,447.31",
DFID,DFID,01/03/2018,Staff Travel - Air Fares,Top Management Group,Corporate Travel Provider,100232-108,"3,082.31",
DFID,DFID,01/03/2018,Hotels - Accommodation only,Top Management Group,Corporate Travel Provider,100232-109,660.00,
DFID,DFID,02/03/2018,Training - Course Fees,"Conflict, Humanitarian, Security & Stabilisation Division",Institute of Chartered Accountants of Scotland,100049-134,"2,206.80",
DFID,DFID,02/03/2018,Staff Travel - Air Fares,"Conflict, Humanitarian, Security & Stabilisation Division",Planit Travel Services Ltd,100049-101,671.37,
DFID,DFID,01/03/2018,Air fares,Economic Development Division,Corporate Travel Provider,100086-101,531.41,
DFID,DFID,01/03/2018,Air fares,Policy Division,Corporate Travel Provider,100098-101,"1,168.60",
DFID,DFID,01/03/2018,Air fares,Policy Division,Corporate Travel Provider,100098-101,587.21,
DFID,DFID,01/03/2018,Hotels - Accommodation only,Policy Division,Corporate Travel Provider,100098-101,524.25,
DFID,DFID,01/03/2018,Air fares,Policy Division,Corporate Travel Provider,100098-101,670.81,
DFID,DFID,02/03/2018,Office Supplies,Group Operations,Banner,100106-101,672.97,
DFID,DFID,01/03/2018,Air fares,International Relations Division,Corporate Travel Provider,100111-101,"1,183.01",
DFID,DFID,01/03/2018,Hotels - Accommodation only,Economic Development Division,Corporate Travel Provider,100275-101,618.92,
DFID,DFID,01/03/2018,Hotels - Accommodation only,Economic Development Division,Corporate Travel Provider,100275-101,736.56,
DFID,DFID,01/03/2018,Air fares,Economic Development Division,Corporate Travel Provider,100276-101,648.97,
DFID,DFID,01/03/2018,Hotels - Accommodation only,Middle East and North Africa Division,Corporate Travel Provider,100307-101,518.00,
DFID,DFID,01/03/2018,Air fares,"Asia, Caribbean and Overseas Territories",Corporate Travel Provider,101601-110,698.10,
DFID,DFID,09/03/2018,Staff Travel - Air Fares,"Asia, Caribbean and Overseas Territories",Foreign & Commonwealth Office,101601-110,"12,060.00",
DFID,DFID,01/03/2018,Air fares,"Asia, Caribbean and Overseas Territories",Corporate Travel Provider,101601-110,591.72,
DFID,DFID,13/03/2018,Telephone Usage & services,"Asia, Caribbean and Overseas Territories",Foreign & Commonwealth Office,101601-110,"4,241.85",
DFID,DFID,13/03/2018,"Conferences, Seminars & Meeting/Event Resource","Asia, Caribbean and Overseas Territories",Foreign & Commonwealth Office,101601-110,584.32,
DFID,DFID,01/03/2018,Air fares,"Asia, Caribbean and Overseas Territories",Corporate Travel Provider,101601-110,"1,330.86",
DFID,DFID,01/03/2018,Air fares,"Asia, Caribbean and Overseas Territories",Corporate Travel Provider,101601-110,978.96,
DFID,DFID,01/03/2018,Air fares,"Asia, Caribbean and Overseas Territories",Corporate Travel Provider,101601-110,"2,423.00",
DFID,DFID,01/03/2018,Air fares,"Asia, Caribbean and Overseas Territories",Corporate Travel Provider,101601-110,641.92,
DFID,DFID,01/03/2018,Air fares,"Asia, Caribbean and Overseas Territories",Corporate Travel Provider,101601-110,"2,445.90",
DFID,DFID,01/03/2018,Air fares,"Asia, Caribbean and Overseas Territories",Corporate Travel Provider,101601-110,"2,640.32",
DFID,DFID,01/03/2018,Air fares,"Asia, Caribbean and Overseas Territories",Corporate Travel Provider,101601-110,771.40,
DFID,DFID,01/03/2018,Air fares,"Asia, Caribbean and Overseas Territories",Corporate Travel Provider,101601-110,"2,481.90",
DFID,DFID,20/03/2018,Staff Travel - Air Fares,"Asia, Caribbean and Overseas Territories",Foreign & Commonwealth Office,101601-110,"11,071.00",
DFID,DFID,20/03/2018,Other passenger transport,"Asia, Caribbean and Overseas Territories",Foreign & Commonwealth Office,101601-110,991.71,
DFID,DFID,01/03/2018,Air fares,International Relations Division,Corporate Travel Provider,100262-101,"1,125.40",
DFID,DFID,01/03/2018,Hotels - Accommodation only,Group Operations,Corporate Travel Provider,100264-101,512.00,
DFID,DFID,01/03/2018,Staff Travel - Air Fares,Policy Division,Corporate Travel Provider,100274-111,"3,209.81",
DFID,DFID,01/03/2018,Air fares,Policy Division,Corporate Travel Provider,100274-111,874.41,
DFID,DFID,01/03/2018,Hotels - Accommodation only,Policy Division,Corporate Travel Provider,100274-111,644.88,
DFID,DFID,01/03/2018,Air fares,Policy Division,Corporate Travel Provider,100274-111,"1,262.61",
DFID,DFID,20/03/2018,Vehicle Hire Charges,"Asia, Caribbean and Overseas Territories",Foreign & Commonwealth Office,101603-101,615.04,
DFID,DFID,20/03/2018,Vehicle Hire Charges,"Asia, Caribbean and Overseas Territories",Foreign & Commonwealth Office,101603-101,556.58,
DFID,DFID,20/03/2018,Vehicle Hire Charges,"Asia, Caribbean and Overseas Territories",Foreign & Commonwealth Office,101603-101,688.00,
DFID,DFID,20/03/2018,Vehicle Hire Charges,"Asia, Caribbean and Overseas Territories",Foreign & Commonwealth Office,101603-101,625.33,
DFID,DFID,20/03/2018,Vehicle Hire Charges,"Asia, Caribbean and Overseas Territories",Foreign & Commonwealth Office,101603-101,"1,610.81",
DFID,DFID,20/03/2018,Vehicle Hire Charges,"Asia, Caribbean and Overseas Territories",Foreign & Commonwealth Office,101603-101,615.55,
DFID,DFID,01/03/2018,Air fares,"Asia, Caribbean and Overseas Territories",Corporate Travel Provider,101603-101,765.82,
DFID,DFID,13/03/2018,Vehicle Hire Charges,"Asia, Caribbean and Overseas Territories",Foreign & Commonwealth Office,101603-101,584.26,
DFID,DFID,13/03/2018,Vehicle Hire Charges,"Asia, Caribbean and Overseas Territories",Foreign & Commonwealth Office,101603-101,"1,361.08",
DFID,DFID,13/03/2018,Vehicle Hire Charges,"Asia, Caribbean and Overseas Territories",Foreign & Commonwealth Office,101603-101,"1,244.77",
DFID,DFID,13/03/2018,Vehicle Hire Charges,"Asia, Caribbean and Overseas Territories",Foreign & Commonwealth Office,101603-101,870.55,
DFID,DFID,13/03/2018,Vehicle Hire Charges,"Asia, Caribbean and Overseas Territories",Foreign & Commonwealth Office,101603-101,745.37,
DFID,DFID,13/03/2018,Vehicle Hire Charges,"Asia, Caribbean and Overseas Territories",Foreign & Commonwealth Office,101603-101,"1,005.41",
DFID,DFID,15/03/2018,Vehicle Hire Charges,"Asia, Caribbean and Overseas Territories",Foreign & Commonwealth Office,101603-101,"1,034.32",
DFID,DFID,15/03/2018,Vehicle Hire Charges,"Asia, Caribbean and Overseas Territories",Foreign & Commonwealth Office,101603-101,826.02,
DFID,DFID,13/03/2018,Air fares,"Asia, Caribbean and Overseas Territories",Foreign & Commonwealth Office,101604-101,513.46,
DFID,DFID,01/03/2018,Air fares,"Asia, Caribbean and Overseas Territories",Corporate Travel Provider,101604-101,714.20,
DFID,DFID,20/03/2018,Secure Staff Accommodation,"Asia, Caribbean and Overseas Territories",Foreign & Commonwealth Office,101604-101,"1,118.33",
DFID,DFID,20/03/2018,Secure Staff Accommodation,"Asia, Caribbean and Overseas Territories",Foreign & Commonwealth Office,101604-101,"1,463.21",
DFID,DFID,20/03/2018,Training - Travel & Subsistence,"Asia, Caribbean and Overseas Territories",Foreign & Commonwealth Office,101604-101,640.99,
DFID,DFID,20/03/2018,"Conferences, Seminars & Meeting/Event Resource","Asia, Caribbean and Overseas Territories",Foreign & Commonwealth Office,101604-101,626.56,
DFID,DFID,20/03/2018,Air fares,"Asia, Caribbean and Overseas Territories",Foreign & Commonwealth Office,101605-101,791.25,
DFID,DFID,01/03/2018,Air fares,"Asia, Caribbean and Overseas Territories",Corporate Travel Provider,101605-101,699.72,
DFID,DFID,01/03/2018,Air fares,"Asia, Caribbean and Overseas Territories",Corporate Travel Provider,101605-101,924.42,
DFID,DFID,01/03/2018,Air fares,"Asia, Caribbean and Overseas Territories",Corporate Travel Provider,101605-101,924.42,
DFID,DFID,01/03/2018,Hotels - Accommodation only,"Asia, Caribbean and Overseas Territories",Corporate Travel Provider,101605-101,900.75,
DFID,DFID,01/03/2018,Hotels - Accommodation only,"Asia, Caribbean and Overseas Territories",Corporate Travel Provider,101605-101,900.75,
DFID,DFID,13/03/2018,Training - Travel & Subsistence,"Asia, Caribbean and Overseas Territories",Foreign & Commonwealth Office,101605-101,"5,097.40",
DFID,DFID,13/03/2018,Air fares,"Asia, Caribbean and Overseas Territories",Foreign & Commonwealth Office,101605-101,697.03,
DFID,DFID,13/03/2018,Training - Travel & Subsistence,"Asia, Caribbean and Overseas Territories",Foreign & Commonwealth Office,101605-101,563.88,
DFID,DFID,13/03/2018,Air fares,"Asia, Caribbean and Overseas Territories",Foreign & Commonwealth Office,101605-101,"1,296.31",
DFID,DFID,15/03/2018,Data Network -Satellite,"Asia, Caribbean and Overseas Territories",Foreign & Commonwealth Office,101605-101,814.70,
DFID,DFID,15/03/2018,Medical/Health Services,"Asia, Caribbean and Overseas Territories",Foreign & Commonwealth Office,101605-101,638.56,
DFID,DFID,01/03/2018,Air fares,"Asia, Caribbean and Overseas Territories",Corporate Travel Provider,101605-101,527.80,
DFID,DFID,01/03/2018,Hotels - Accommodation only,"Asia, Caribbean and Overseas Territories",Corporate Travel Provider,101605-101,536.00,
DFID,DFID,01/03/2018,Air fares,West and Southern Africa,Corporate Travel Provider,101610-101,927.75,
DFID,DFID,01/03/2018,Air fares,West and Southern Africa,Corporate Travel Provider,101610-101,547.70,
DFID,DFID,01/03/2018,Air fares,West and Southern Africa,Corporate Travel Provider,101610-101,547.90,
DFID,DFID,01/03/2018,Hotels - Accommodation only,West and Southern Africa,Corporate Travel Provider,101610-101,740.00,
DFID,DFID,01/03/2018,Air fares,West and Southern Africa,Corporate Travel Provider,101610-101,"1,779.70",
DFID,DFID,01/03/2018,Air fares,West and Southern Africa,Corporate Travel Provider,101610-101,749.60,
DFID,DFID,01/03/2018,Air fares,West and Southern Africa,Corporate Travel Provider,101610-101,583.80,
DFID,DFID,20/03/2018,Staff Travel - Air Fares,West and Southern Africa,Foreign & Commonwealth Office,101610-101,"6,003.36",
DFID,DFID,01/03/2018,Air fares,"Asia, Caribbean and Overseas Territories",Corporate Travel Provider,101611-101,872.72,
DFID,DFID,01/03/2018,Hotels - Accommodation only,"Asia, Caribbean and Overseas Territories",Corporate Travel Provider,101611-101,574.00,
DFID,DFID,01/03/2018,Air fares,East and Central Africa,Corporate Travel Provider,101612-101,534.01,
DFID,DFID,01/03/2018,Hotels - Accommodation only,East and Central Africa,Corporate Travel Provider,101612-101,682.05,
DFID,DFID,01/03/2018,Air fares,East and Central Africa,Corporate Travel Provider,101612-101,533.81,
DFID,DFID,01/03/2018,Hotels - Accommodation only,East and Central Africa,Corporate Travel Provider,101612-101,702.00,
DFID,DFID,01/03/2018,Hotels - Accommodation only,East and Central Africa,Corporate Travel Provider,101612-101,520.00,
DFID,DFID,13/03/2018,Training - Travel & Subsistence,East and Central Africa,Foreign & Commonwealth Office,101612-101,784.54,
DFID,DFID,13/03/2018,Air fares,East and Central Africa,Foreign & Commonwealth Office,101612-101,537.27,
DFID,DFID,13/03/2018,Training - Travel & Subsistence,East and Central Africa,Foreign & Commonwealth Office,101612-101,821.87,
DFID,DFID,13/03/2018,Training - Travel & Subsistence,East and Central Africa,Foreign & Commonwealth Office,101612-101,852.34,
DFID,DFID,13/03/2018,Air fares,East and Central Africa,Foreign & Commonwealth Office,101612-101,573.87,
DFID,DFID,01/03/2018,Air fares,West and Southern Africa,Corporate Travel Provider,101613-101,579.72,
DFID,DFID,01/03/2018,Air fares,West and Southern Africa,Corporate Travel Provider,101610-101,732.70,
DFID,DFID,15/03/2018,Staff Travel - Air Fares,West and Southern Africa,Foreign & Commonwealth Office,101610-101,"7,999.57",
DFID,DFID,01/03/2018,Hotels - Accommodation only,East and Central Africa,Corporate Travel Provider,101616-101,773.50,
DFID,DFID,01/03/2018,Air fares,East and Central Africa,Corporate Travel Provider,101616-101,671.00,
DFID,DFID,01/03/2018,Air fares,East and Central Africa,Corporate Travel Provider,101616-101,510.71,
DFID,DFID,01/03/2018,Air fares,East and Central Africa,Corporate Travel Provider,101616-101,993.91,
DFID,DFID,01/03/2018,Air fares,East and Central Africa,Corporate Travel Provider,101616-101,709.82,
DFID,DFID,01/03/2018,Air fares,East and Central Africa,Corporate Travel Provider,101616-101,749.61,
DFID,DFID,01/03/2018,Air fares,West and Southern Africa,Corporate Travel Provider,101618-101,902.21,
DFID,DFID,01/03/2018,Hotels - Accommodation only,West and Southern Africa,Corporate Travel Provider,101618-101,780.81,
DFID,DFID,01/03/2018,Hotels - Accommodation only,West and Southern Africa,Corporate Travel Provider,101618-101,585.60,
DFID,DFID,01/03/2018,Air fares,West and Southern Africa,Corporate Travel Provider,101618-101,505.30,
DFID,DFID,01/03/2018,Air fares,West and Southern Africa,Corporate Travel Provider,101618-101,"1,614.06",
DFID,DFID,01/03/2018,Air fares,Middle East and North Africa Division,Corporate Travel Provider,101619-101,741.00,
DFID,DFID,01/03/2018,Air fares,Middle East and North Africa Division,Corporate Travel Provider,101619-101,865.00,
DFID,DFID,01/03/2018,Air fares,West and Southern Africa,Corporate Travel Provider,101620-101,856.61,
DFID,DFID,20/03/2018,Secure Staff Accommodation,West and Southern Africa,Foreign & Commonwealth Office,101620-101,"1,789.51",
DFID,DFID,20/03/2018,Secure Staff Accommodation,West and Southern Africa,Foreign & Commonwealth Office,101620-101,716.39,
DFID,DFID,15/03/2018,Mobile telephones & accessories,West and Southern Africa,Foreign & Commonwealth Office,101620-101,790.48,
DFID,DFID,01/03/2018,Air fares,West and Southern Africa,Corporate Travel Provider,101620-101,852.86,
DFID,DFID,01/03/2018,Hotels - Accommodation only,West and Southern Africa,Corporate Travel Provider,101620-101,504.00,
DFID,DFID,13/03/2018,Secure Staff Accommodation,West and Southern Africa,Foreign & Commonwealth Office,101620-101,"1,789.51",
DFID,DFID,01/03/2018,Air fares,West and Southern Africa,Corporate Travel Provider,101613-101,"1,060.81",
DFID,DFID,01/03/2018,Air fares,West and Southern Africa,Corporate Travel Provider,101613-101,735.86,
DFID,DFID,01/03/2018,Hotels - Accommodation only,West and Southern Africa,Corporate Travel Provider,101613-101,574.00,
DFID,DFID,01/03/2018,Air fares,West and Southern Africa,Corporate Travel Provider,101613-101,590.20,
DFID,DFID,13/03/2018,Secure Staff Accommodation,"Asia, Caribbean and Overseas Territories",Foreign & Commonwealth Office,101621-101,"1,965.12",
DFID,DFID,13/03/2018,Secure Staff Accommodation,"Asia, Caribbean and Overseas Territories",Foreign & Commonwealth Office,101621-101,"3,924.42",
DFID,DFID,13/03/2018,Secure Staff Accommodation,"Asia, Caribbean and Overseas Territories",Foreign & Commonwealth Office,101621-101,"3,924.43",
DFID,DFID,13/03/2018,Secure Staff Accommodation,"Asia, Caribbean and Overseas Territories",Foreign & Commonwealth Office,101621-101,"3,924.43",
DFID,DFID,01/03/2018,Air fares,"Asia, Caribbean and Overseas Territories",Corporate Travel Provider,101621-101,923.25,
DFID,DFID,01/03/2018,Air fares,"Asia, Caribbean and Overseas Territories",Corporate Travel Provider,101621-108,699.21,
DFID,DFID,01/03/2018,Hotels - Accommodation only,"Asia, Caribbean and Overseas Territories",Corporate Travel Provider,101621-108,581.40,
DFID,DFID,01/03/2018,Hotels - Accommodation only,"Asia, Caribbean and Overseas Territories",Corporate Travel Provider,101621-108,697.68,
DFID,DFID,01/03/2018,Air fares,"Asia, Caribbean and Overseas Territories",Corporate Travel Provider,101621-108,696.31,
DFID,DFID,01/03/2018,Air fares,"Asia, Caribbean and Overseas Territories",Corporate Travel Provider,101621-108,"2,174.91",
DFID,DFID,01/03/2018,Air fares,East and Central Africa,Corporate Travel Provider,101625-112,813.00,
DFID,DFID,01/03/2018,Air fares,East and Central Africa,Corporate Travel Provider,101625-112,813.00,
DFID,DFID,01/03/2018,Air fares,East and Central Africa,Corporate Travel Provider,101625-112,"1,001.70",
DFID,DFID,01/03/2018,Air fares,East and Central Africa,Corporate Travel Provider,101625-113,811.11,
DFID,DFID,01/03/2018,Air fares,East and Central Africa,Corporate Travel Provider,101625-114,524.51,
DFID,DFID,01/03/2018,Air fares,East and Central Africa,Corporate Travel Provider,101625-114,568.76,
DFID,DFID,01/03/2018,Air fares,East and Central Africa,Corporate Travel Provider,101625-114,630.01,
DFID,DFID,01/03/2018,Air fares,East and Central Africa,Corporate Travel Provider,101625-114,772.71,
DFID,DFID,01/03/2018,Hotels - Accommodation only,East and Central Africa,Corporate Travel Provider,101625-114,582.45,
DFID,DFID,01/03/2018,Air fares,West and Southern Africa,Corporate Travel Provider,101629-101,732.20,
DFID,DFID,01/03/2018,Air fares,West and Southern Africa,Corporate Travel Provider,101629-101,731.00,
DFID,DFID,01/03/2018,Air fares,West and Southern Africa,Corporate Travel Provider,101629-101,974.50,
DFID,DFID,01/03/2018,Air fares,West and Southern Africa,Corporate Travel Provider,101629-101,844.90,
DFID,DFID,01/03/2018,Air fares,West and Southern Africa,Corporate Travel Provider,101629-101,844.90,
DFID,DFID,01/03/2018,Hotels - Accommodation only,East and Central Africa,Corporate Travel Provider,101633-101,582.45,
DFID,DFID,01/03/2018,Air fares,East and Central Africa,Corporate Travel Provider,101633-101,657.11,
DFID,DFID,01/03/2018,Air fares,East and Central Africa,Corporate Travel Provider,101633-101,574.11,
DFID,DFID,01/03/2018,Air fares,East and Central Africa,Corporate Travel Provider,101633-101,568.71,
DFID,DFID,01/03/2018,Air fares,East and Central Africa,Corporate Travel Provider,101633-101,532.35,
DFID,DFID,01/03/2018,Air fares,East and Central Africa,Corporate Travel Provider,101633-101,603.00,
DFID,DFID,01/03/2018,Air fares,East and Central Africa,Corporate Travel Provider,101633-101,582.41,
DFID,DFID,01/03/2018,Hotels - Accommodation only,East and Central Africa,Corporate Travel Provider,101633-101,730.75,
DFID,DFID,01/03/2018,Air fares,East and Central Africa,Corporate Travel Provider,101634-101,"1,037.30",
DFID,DFID,15/03/2018,Telephone Usage & services,East and Central Africa,Foreign & Commonwealth Office,101634-101,"1,247.33",
DFID,DFID,15/03/2018,Telephone Usage & services,East and Central Africa,Foreign & Commonwealth Office,101634-101,826.38,
DFID,DFID,15/03/2018,Telephone Usage & services,East and Central Africa,Foreign & Commonwealth Office,101634-101,973.11,
DFID,DFID,15/03/2018,Telephone Usage & services,East and Central Africa,Foreign & Commonwealth Office,101635-101,504.10,
DFID,DFID,01/03/2018,Air fares,East and Central Africa,Corporate Travel Provider,101635-101,674.46,
DFID,DFID,01/03/2018,Air fares,East and Central Africa,Corporate Travel Provider,101635-101,"1,362.90",
DFID,DFID,01/03/2018,Air fares,East and Central Africa,Corporate Travel Provider,101635-101,501.61,
DFID,DFID,01/03/2018,Hotels - Accommodation only,East and Central Africa,Corporate Travel Provider,101635-101,641.60,
DFID,DFID,06/03/2018,"Repairs, Maint, Alter - Property & Constrct. Services",West and Southern Africa,Foreign & Commonwealth Office,101622-101,"32,069.36",To meet DFID�s strategic country priority needs in Nigeria
DFID,DFID,01/03/2018,Air fares,West and Southern Africa,Supplier Name withheld,101622-105,746.66,
DFID,DFID,01/03/2018,Hotels - Accommodation only,West and Southern Africa,Supplier Name withheld,101622-105,572.25,
DFID,DFID,01/03/2018,Air fares,West and Southern Africa,Supplier Name withheld,101622-105,736.31,
DFID,DFID,01/03/2018,Hotels - Accommodation only,West and Southern Africa,Supplier Name withheld,101622-106,511.00,
DFID,DFID,01/03/2018,Air fares,West and Southern Africa,Supplier Name withheld,101622-106,728.71,
DFID,DFID,01/03/2018,Air fares,West and Southern Africa,Supplier Name withheld,101622-106,"1,041.61",
DFID,DFID,01/03/2018,Air fares,West and Southern Africa,Supplier Name withheld,101622-106,827.94,
DFID,DFID,01/03/2018,Hotels - Accommodation only,West and Southern Africa,Supplier Name withheld,101622-106,"2,595.01",
DFID,DFID,01/03/2018,Air fares,West and Southern Africa,Supplier Name withheld,101622-106,730.91,
DFID,DFID,01/03/2018,Hotels - Accommodation only,"Asia, Caribbean and Overseas Territories",Corporate Travel Provider,101624-101,511.00,
DFID,DFID,01/03/2018,Air fares,"Asia, Caribbean and Overseas Territories",Corporate Travel Provider,101624-101,637.51,
DFID,DFID,05/03/2018,Mobile telephones & accessories,"Asia, Caribbean and Overseas Territories",Foreign & Commonwealth Office,101624-101,"9,420.00",
DFID,DFID,01/03/2018,Hotels - Accommodation only,"Asia, Caribbean and Overseas Territories",Corporate Travel Provider,101624-101,697.68,
DFID,DFID,01/03/2018,Air fares,"Asia, Caribbean and Overseas Territories",Corporate Travel Provider,101624-101,644.40,
DFID,DFID,01/03/2018,Air fares,"Asia, Caribbean and Overseas Territories",Corporate Travel Provider,101624-101,525.60,
DFID,DFID,20/03/2018,Mobile telephones & accessories,"Asia, Caribbean and Overseas Territories",Foreign & Commonwealth Office,101624-101,883.62,
DFID,DFID,09/03/2018,Hotels - Accommodation only,"Asia, Caribbean and Overseas Territories",Foreign & Commonwealth Office,101624-101,"2,994.22",
DFID,DFID,09/03/2018,Other passenger transport,"Asia, Caribbean and Overseas Territories",Foreign & Commonwealth Office,101624-101,"3,546.63",
DFID,DFID,01/03/2018,Air fares,West and Southern Africa,Corporate Travel Provider,101637-102,710.21,
DFID,DFID,05/03/2018,Mobile telephones & accessories,West and Southern Africa,Foreign & Commonwealth Office,101638-101,798.42,
DFID,DFID,01/03/2018,Air fares,West and Southern Africa,Corporate Travel Provider,101638-101,746.10,
DFID,DFID,01/03/2018,Air fares,West and Southern Africa,Corporate Travel Provider,101638-101,971.16,
DFID,DFID,05/03/2018,Hotels - Accommodation only,West and Southern Africa,Foreign & Commonwealth Office,101638-101,"3,688.08",
DFID,DFID,05/03/2018,Hotels - Accommodation only,West and Southern Africa,Foreign & Commonwealth Office,101638-101,723.88,
DFID,DFID,01/03/2018,Air fares,West and Southern Africa,Corporate Travel Provider,101638-101,939.91,
DFID,DFID,01/03/2018,Air fares,West and Southern Africa,Corporate Travel Provider,101638-101,523.51,
DFID,DFID,01/03/2018,Air fares,West and Southern Africa,Corporate Travel Provider,101638-107,760.32,
DFID,DFID,01/03/2018,Air fares,Business Solutions Division Level,Corporate Travel Provider,200001-101,674.42,
DFID,DFID,02/03/2018,Training - Course Fees,Business Solutions Division Level,Civil Service College,200001-101,"1,380.00",
DFID,DFID,02/03/2018,Training - Course Fees,Business Solutions Division Level,Civil Service Learning,200001-101,"1,697.86",
DFID,DFID,02/03/2018,Computer Consumables - Cds/memory/accessories,Business Solutions Division Level,Computecentre,200001-101,"1,300.68",
DFID,DFID,02/03/2018,Computer Software Licenses,Business Solutions Division Level,Techsmith .com,200001-101,559.20,
DFID,DFID,01/03/2018,Hotels - Accommodation only,Business Solutions Division Level,Corporate Travel Provider,200001-101,"1,386.00",
DFID,DFID,01/03/2018,Air fares,Business Solutions Division Level,Corporate Travel Provider,200001-101,703.56,
DFID,DFID,01/03/2018,Air fares,Business Solutions Division Level,Corporate Travel Provider,200001-101,703.56,
DFID,DFID,01/03/2018,Staff Travel - Air Fares,Business Solutions Division Level,Corporate Travel Provider,200001-101,"3,743.96",
DFID,DFID,01/03/2018,Hotels - Accommodation only,Business Solutions Division Level,Corporate Travel Provider,200001-101,592.75,
DFID,DFID,15/03/2018,Data Network - land lines,Business Solutions Division Level,Foreign & Commonwealth Office,200002-121,859.15,
DFID,DFID,02/03/2018,Hardware -monitors,Business Solutions Division Level,COLEBROOK BOSSON & SAU,200002-153,887.76,
DFID,DFID,02/03/2018,Computer Software Licenses,Business Solutions Division Level,Microsoft,200002-239,534.00,
DFID,DFID,01/03/2018,Hotels - Accommodation only,Business Solutions Division Level,Corporate Travel Provider,200005-134,560.00,
DFID,DFID,01/03/2018,Hotels - Accommodation only,Business Solutions Division Level,Corporate Travel Provider,200005-134,560.00,
DFID,DFID,01/03/2018,Air fares,Group Operations,Corporate Travel Provider,201157-102,538.01,
DFID,DFID,01/03/2018,Air fares,Group Operations,Corporate Travel Provider,201157-104,"1,191.06",
DFID,DFID,01/03/2018,Hotels - Accommodation only,Group Operations,Corporate Travel Provider,201157-104,524.70,
DFID,DFID,01/03/2018,Air fares,Middle East and North Africa Division,Corporate Travel Provider,201701-101,561.61,
DFID,DFID,01/03/2018,Air fares,Middle East and North Africa Division,Corporate Travel Provider,201701-101,533.61,
DFID,DFID,01/03/2018,Air fares,Middle East and North Africa Division,Corporate Travel Provider,201701-101,533.21,
DFID,DFID,01/03/2018,Air fares,Middle East and North Africa Division,Corporate Travel Provider,201701-101,822.31,
DFID,DFID,01/03/2018,Air fares,Middle East and North Africa Division,Corporate Travel Provider,201701-101,561.21,
DFID,DFID,01/03/2018,Air fares,Middle East and North Africa Division,Corporate Travel Provider,201701-101,610.56,
DFID,DFID,01/03/2018,Air fares,Middle East and North Africa Division,Corporate Travel Provider,201701-101,544.00,
DFID,DFID,01/03/2018,Air fares,Middle East and North Africa Division,Corporate Travel Provider,201701-101,541.70,
DFID,DFID,01/03/2018,Air fares,Middle East and North Africa Division,Corporate Travel Provider,201701-101,561.31,
DFID,DFID,01/03/2018,Air fares,Middle East and North Africa Division,Corporate Travel Provider,201701-101,522.71,
DFID,DFID,01/03/2018,Hotels - Accommodation only,West and Southern Africa,Corporate Travel Provider,101637-101,560.00,
DFID,DFID,01/03/2018,Air fares,West and Southern Africa,Corporate Travel Provider,101637-101,639.92,
DFID,DFID,05/03/2018,Legal costs,West and Southern Africa,Foreign & Commonwealth Office,101637-101,"1,033.54",
DFID,DFID,01/03/2018,Hotels - Accommodation only,West and Southern Africa,Corporate Travel Provider,101637-101,511.00,
DFID,DFID,20/03/2018,Storage & Distribution costs,West and Southern Africa,Foreign & Commonwealth Office,101637-101,693.05,
DFID,DFID,20/03/2018,Vehicle Hire Charges,West and Southern Africa,Foreign & Commonwealth Office,101637-101,764.58,
DFID,DFID,20/03/2018,Telephone Usage & services,West and Southern Africa,Foreign & Commonwealth Office,101637-101,964.72,
DFID,DFID,01/03/2018,Air fares,Middle East and North Africa Division,Corporate Travel Provider,201705-101,955.46,
DFID,DFID,01/03/2018,Hotels - Accommodation only,Middle East and North Africa Division,Corporate Travel Provider,201705-101,817.56,
DFID,DFID,20/03/2018,Telephone Usage & services,Middle East and North Africa Division,Foreign & Commonwealth Office,201705-101,"1,343.90",
DFID,DFID,01/03/2018,Air fares,Middle East and North Africa Division,Corporate Travel Provider,201705-101,663.10,
DFID,DFID,09/03/2018,Training - Course Fees,International Relations Division,Foreign & Commonwealth Office,201711-101,686.68,
DFID,DFID,01/03/2018,Air fares,International Relations Division,Corporate Travel Provider,201711-101,806.40,
DFID,DFID,01/03/2018,Air fares,International Relations Division,Corporate Travel Provider,201711-101,686.01,
DFID,DFID,01/03/2018,Air fares,Economic Development Division,Corporate Travel Provider,202259-101,671.21,
DFID,DFID,01/03/2018,Air fares,Economic Development Division,Corporate Travel Provider,202259-101,633.60,
DFID,DFID,01/03/2018,Air fares,Economic Development Division,Corporate Travel Provider,202259-101,898.01,
DFID,DFID,01/03/2018,Air fares,Economic Development Division,Corporate Travel Provider,202259-101,534.51,
DFID,DFID,01/03/2018,Air fares,Economic Development Division,Corporate Travel Provider,202259-101,548.71,
DFID,DFID,01/03/2018,Hotels - Accommodation only,Research and Evidence Division,Corporate Travel Provider,202331-101,587.50,
DFID,DFID,01/03/2018,Hotels - Accommodation only,Research and Evidence Division,Corporate Travel Provider,202331-101,546.25,
DFID,DFID,01/03/2018,Air fares,Economic Development Division,Corporate Travel Provider,202373-101,"1,335.06",
DFID,DFID,01/03/2018,Air fares,Economic Development Division,Corporate Travel Provider,202373-101,572.01,
DFID,DFID,01/03/2018,Air fares,Economic Development Division,Corporate Travel Provider,202373-101,676.17,
DFID,DFID,01/03/2018,Air fares,Economic Development Division,Corporate Travel Provider,202373-101,"1,212.06",
DFID,DFID,01/03/2018,Hotels - Accommodation only,Economic Development Division,Corporate Travel Provider,202373-101,582.45,
DFID,DFID,01/03/2018,Air fares,Economic Development Division,Corporate Travel Provider,202373-101,923.91,
DFID,DFID,01/03/2018,Air fares,Economic Development Division,Corporate Travel Provider,202373-101,755.66,
DFID,DFID,01/03/2018,Air fares,Economic Development Division,Corporate Travel Provider,202373-101,663.12,
DFID,DFID,01/03/2018,Air fares,Economic Development Division,Corporate Travel Provider,202373-101,756.21,
DFID,DFID,01/03/2018,Air fares,Research and Evidence Division,Corporate Travel Provider,202392-102,914.21,
DFID,DFID,01/03/2018,Air fares,Research and Evidence Division,Corporate Travel Provider,202392-102,817.76,
DFID,DFID,01/03/2018,Hotels - Accommodation only,Research and Evidence Division,Corporate Travel Provider,202392-102,582.45,
DFID,DFID,01/03/2018,Air fares,Research and Evidence Division,Corporate Travel Provider,202392-102,"1,137.21",
DFID,DFID,01/03/2018,Staff Travel - Air Fares,Research and Evidence Division,Corporate Travel Provider,202392-102,618.84,
DFID,DFID,01/03/2018,Staff Travel - Air Fares,Research and Evidence Division,Corporate Travel Provider,202392-102,608.84,
DFID,DFID,01/03/2018,Hotels - Accommodation only,Research and Evidence Division,Corporate Travel Provider,202392-106,519.00,
DFID,DFID,01/03/2018,Hotels - Accommodation only,Research and Evidence Division,Corporate Travel Provider,202392-106,540.15,
DFID,DFID,01/03/2018,Hotels - Accommodation only,Research and Evidence Division,Corporate Travel Provider,202392-114,581.10,
DFID,DFID,01/03/2018,Air fares,Policy Division,Corporate Travel Provider,202396-101,554.32,
DFID,DFID,01/03/2018,Hotels - Accommodation only,Policy Division,Corporate Travel Provider,202396-101,502.07,
DFID,DFID,01/03/2018,Air fares,Policy Division,Corporate Travel Provider,202396-101,808.21,
DFID,DFID,01/03/2018,Air fares,Policy Division,Corporate Travel Provider,202402-107,920.51,
DFID,DFID,01/03/2018,Air fares,Policy Division,Corporate Travel Provider,202402-107,534.81,
DFID,DFID,01/03/2018,Hotels - Accommodation only,Policy Division,Corporate Travel Provider,202402-107,511.00,
DFID,DFID,01/03/2018,Air fares,East and Central Africa,Corporate Travel Provider,101616-102,562.10,
DFID,DFID,15/03/2018,Hotels - Accommodation only,"Asia, Caribbean and Overseas Territories",Foreign & Commonwealth Office,202403-101,"1,797.71",
DFID,DFID,01/03/2018,Air fares,Economic Development Division,Corporate Travel Provider,202432-101,533.90,
DFID,DFID,01/03/2018,Air fares,Economic Development Division,Corporate Travel Provider,202432-101,654.81,
DFID,DFID,01/03/2018,Air fares,Economic Development Division,Corporate Travel Provider,202432-101,614.20,
DFID,DFID,01/03/2018,Air fares,Economic Development Division,Corporate Travel Provider,202432-101,656.61,
DFID,DFID,01/03/2018,Air fares,Economic Development Division,Corporate Travel Provider,202432-101,614.01,
DFID,DFID,01/03/2018,Air fares,Economic Development Division,Corporate Travel Provider,202432-101,596.81,
DFID,DFID,01/03/2018,Hotels - Accommodation only,"Conflict, Humanitarian, Security & Stabilisation Division",Corporate Travel Provider,202410-107,641.20,
DFID,DFID,01/03/2018,Air fares,East and Central Africa,Corporate Travel Provider,202594-101,780.01,
DFID,DFID,01/03/2018,Air fares,East and Central Africa,Corporate Travel Provider,202594-101,660.21,
DFID,DFID,01/03/2018,Air fares,East and Central Africa,Corporate Travel Provider,202594-101,"1,287.60",
DFID,DFID,01/03/2018,Air fares,East and Central Africa,Corporate Travel Provider,202594-101,923.71,
DFID,DFID,01/03/2018,Air fares,East and Central Africa,Corporate Travel Provider,202594-101,793.80,
DFID,DFID,01/03/2018,Hotels - Accommodation only,East and Central Africa,Corporate Travel Provider,202594-101,763.50,
DFID,DFID,01/03/2018,Air fares,East and Central Africa,Corporate Travel Provider,202594-101,576.46,
DFID,DFID,01/03/2018,Air fares,East and Central Africa,Corporate Travel Provider,202594-101,626.60,
DFID,DFID,01/03/2018,Air fares,East and Central Africa,Corporate Travel Provider,202594-101,519.61,
DFID,DFID,01/03/2018,Air fares,East and Central Africa,Corporate Travel Provider,202594-101,763.56,
DFID,DFID,01/03/2018,Air fares,East and Central Africa,Corporate Travel Provider,202594-101,520.11,
DFID,DFID,01/03/2018,Air fares,East and Central Africa,Corporate Travel Provider,202594-101,909.91,
DFID,DFID,01/03/2018,Air fares,East and Central Africa,Corporate Travel Provider,202594-101,"1,219.10",
DFID,DFID,01/03/2018,Hotels - Accommodation only,East and Central Africa,Corporate Travel Provider,202594-101,893.10,
DFID,DFID,01/03/2018,Air fares,East and Central Africa,Corporate Travel Provider,202594-101,519.31,
DFID,DFID,01/03/2018,Air fares,East and Central Africa,Corporate Travel Provider,202594-101,625.50,
DFID,DFID,01/03/2018,Air fares,East and Central Africa,Corporate Travel Provider,202594-102,568.20,
DFID,DFID,01/03/2018,Air fares,East and Central Africa,Corporate Travel Provider,202594-102,692.11,
DFID,DFID,01/03/2018,Hotels - Accommodation only,"Asia, Caribbean and Overseas Territories",Corporate Travel Provider,202595-102,591.27,
DFID,DFID,01/03/2018,Air fares,East and Central Africa,Corporate Travel Provider,202692-108,649.90,
DFID,DFID,01/03/2018,Air fares,Finance and Corporate Performance Division,Corporate Travel Provider,202836-101,"1,191.71",
DFID,DFID,15/03/2018,Data Network - land lines,Business Solutions Division Level,Foreign & Commonwealth Office,203329-102,859.15,
DFID,DFID,13/03/2018,Data Network - land lines,Business Solutions Division Level,Foreign & Commonwealth Office,203329-102,"1,254.26",
DFID,DFID,13/03/2018,Training - Travel & Subsistence,Business Solutions Division Level,Foreign & Commonwealth Office,203329-104,914.41,
DFID,DFID,13/03/2018,Joint programme contribution,"Asia, Caribbean and Overseas Territories",Foreign & Commonwealth Office,203601-106,"1,612.95",
DFID,DFID,01/03/2018,Air fares,West and Southern Africa,Corporate Travel Provider,203627-106,849.82,
DFID,DFID,20/03/2018,DFID Purchased Relief Supplies,West and Southern Africa,Foreign & Commonwealth Office,203674-103,"2,705.30",
DFID,DFID,02/03/2018,Office Supplies,Group Operations,Banner,203717-101,740.00,
DFID,DFID,02/03/2018,Office Equipment - Purchases,Group Operations,Betterlife at Lloyds Pharmancy ,203717-101,955.20,
DFID,DFID,01/03/2018,Air fares,"Conflict, Humanitarian, Security & Stabilisation Division",Corporate Travel Provider,202410-108,683.41,
DFID,DFID,01/03/2018,Air fares,"Conflict, Humanitarian, Security & Stabilisation Division",Corporate Travel Provider,202410-108,815.51,
DFID,DFID,01/03/2018,Hotels - Accommodation only,"Conflict, Humanitarian, Security & Stabilisation Division",Corporate Travel Provider,202410-108,847.25,
DFID,DFID,01/03/2018,Hotels - Accommodation only,Policy Division,Corporate Travel Provider,202419-101,581.40,
DFID,DFID,01/03/2018,Hotels - Accommodation only,Policy Division,Corporate Travel Provider,202419-101,582.45,
DFID,DFID,01/03/2018,Air fares,Policy Division,Corporate Travel Provider,202419-101,863.96,
DFID,DFID,01/03/2018,Hotels - Accommodation only,Policy Division,Corporate Travel Provider,202419-101,645.00,
DFID,DFID,01/03/2018,Air fares,"Asia, Caribbean and Overseas Territories",Corporate Travel Provider,204053-101,552.97,
DFID,DFID,01/03/2018,Air fares,"Asia, Caribbean and Overseas Territories",Corporate Travel Provider,204053-101,665.36,
DFID,DFID,01/03/2018,Air fares,Middle East and North Africa Division,Corporate Travel Provider,204055-101,"1,049.61",
DFID,DFID,01/03/2018,Hotels - Accommodation only,Middle East and North Africa Division,Corporate Travel Provider,204055-101,728.01,
DFID,DFID,01/03/2018,Hotels - Accommodation only,Middle East and North Africa Division,Corporate Travel Provider,204055-101,892.81,
DFID,DFID,01/03/2018,Air fares,Middle East and North Africa Division,Corporate Travel Provider,204055-101,562.11,
DFID,DFID,01/03/2018,Air fares,Middle East and North Africa Division,Corporate Travel Provider,204055-101,522.91,
DFID,DFID,01/03/2018,Hotels - Accommodation only,Middle East and North Africa Division,Corporate Travel Provider,204055-101,571.36,
DFID,DFID,01/03/2018,Air fares,Middle East and North Africa Division,Corporate Travel Provider,204055-101,535.31,
DFID,DFID,01/03/2018,Air fares,Middle East and North Africa Division,Corporate Travel Provider,204055-101,700.61,
DFID,DFID,01/03/2018,Air fares,Middle East and North Africa Division,Corporate Travel Provider,204055-101,662.60,
DFID,DFID,01/03/2018,Air fares,Middle East and North Africa Division,Corporate Travel Provider,204055-101,690.71,
DFID,DFID,13/03/2018,Secure Staff Accommodation,Middle East and North Africa Division,Foreign & Commonwealth Office,204055-101,"9,775.45",
DFID,DFID,01/03/2018,Air fares,East and Central Africa,Corporate Travel Provider,204290-105,674.20,
DFID,DFID,01/03/2018,Air fares,East and Central Africa,Corporate Travel Provider,204290-105,674.20,
DFID,DFID,20/03/2018,Project delivery costs – supplier services,East and Central Africa,Foreign & Commonwealth Office,204439-103,"1,125.91",
DFID,DFID,15/03/2018,Project delivery costs – supplier services,East and Central Africa,Foreign & Commonwealth Office,204439-103,"1,343.44",
DFID,DFID,09/03/2018,Project delivery costs – supplier services,East and Central Africa,Foreign & Commonwealth Office,204439-103,"1,137.62",
DFID,DFID,01/03/2018,Air fares,Policy Division,Corporate Travel Provider,204452-101,"1,025.21",
DFID,DFID,01/03/2018,Air fares,Policy Division,Corporate Travel Provider,204452-101,"1,004.61",
DFID,DFID,13/03/2018,Project delivery costs – supplier services,"Asia, Caribbean and Overseas Territories",Foreign & Commonwealth Office,204612-101,"11,051.92",
DFID,DFID,01/03/2018,Hotels - Accommodation only,Research and Evidence Division,Corporate Travel Provider,204815-101,632.44,
DFID,DFID,01/03/2018,Air fares,Research and Evidence Division,Corporate Travel Provider,204815-101,664.50,
DFID,DFID,01/03/2018,Air fares,Research and Evidence Division,Corporate Travel Provider,204815-101,681.96,
DFID,DFID,01/03/2018,Air fares,Middle East and North Africa Division,Corporate Travel Provider,204844-101,688.91,
DFID,DFID,01/03/2018,Air fares,Middle East and North Africa Division,Corporate Travel Provider,204844-101,516.06,
DFID,DFID,01/03/2018,Hotels - Accommodation only,Finance and Corporate Performance Division,Corporate Travel Provider,204846-101,736.25,
DFID,DFID,01/03/2018,Air fares,Non-Departmental Public Body,Corporate Travel Provider,204873-102,536.32,
DFID,DFID,01/03/2018,Hotels - Accommodation only,West and Southern Africa,Corporate Travel Provider,204939-103,519.93,
DFID,DFID,01/03/2018,Air fares,Middle East and North Africa Division,Corporate Travel Provider,204978-101,583.01,
DFID,DFID,01/03/2018,Air fares,Middle East and North Africa Division,Corporate Travel Provider,204981-101,577.61,
DFID,DFID,01/03/2018,Air fares,Middle East and North Africa Division,Corporate Travel Provider,204983-101,843.21,
DFID,DFID,01/03/2018,Hotels - Accommodation only,Research and Evidence Division,Corporate Travel Provider,203874-101,507.45,
DFID,DFID,01/03/2018,Hotels - Accommodation only,Research and Evidence Division,Corporate Travel Provider,203874-101,532.45,
DFID,DFID,15/03/2018,Secure Staff Accommodation,Economic Development Division,Foreign & Commonwealth Office,205081-101,"5,952.45",
DFID,DFID,20/03/2018,Secure Staff Accommodation,"Asia, Caribbean and Overseas Territories",Foreign & Commonwealth Office,205101-105,"1,753.86",
DFID,DFID,13/03/2018,Air fares,"Asia, Caribbean and Overseas Territories",Foreign & Commonwealth Office,205157-103,"1,498.60",
DFID,DFID,13/03/2018,Aid Programme - Humanitarian Material Relief Assistance and Services,East and Central Africa,Foreign & Commonwealth Office,205256-104,"4,788.85",
DFID,DFID,01/03/2018,Air fares,"Conflict, Humanitarian, Security & Stabilisation Division",Corporate Travel Provider,205279-102,"2,019.21",
DFID,DFID,01/03/2018,Air fares,"Conflict, Humanitarian, Security & Stabilisation Division",Corporate Travel Provider,205280-102,"1,074.71",
DFID,DFID,01/03/2018,Air fares,Middle East and North Africa Division,Corporate Travel Provider,300078-101,522.81,
DFID,DFID,09/03/2018,Hotels - Accommodation only,Middle East and North Africa Division,Foreign & Commonwealth Office,300078-101,"1,322.38",
DFID,DFID,09/03/2018,Hotels - Accommodation only,Middle East and North Africa Division,Foreign & Commonwealth Office,300078-101,857.09,
DFID,DFID,09/03/2018,Hotels - Accommodation only,Middle East and North Africa Division,Foreign & Commonwealth Office,300078-101,"1,071.37",
DFID,DFID,09/03/2018,Hotels - Accommodation only,Middle East and North Africa Division,Foreign & Commonwealth Office,300078-101,"1,968.64",
DFID,DFID,09/03/2018,Vehicle Hire Charges,Middle East and North Africa Division,Foreign & Commonwealth Office,300078-101,"1,278.34",
DFID,DFID,09/03/2018,Hotels - Accommodation only,Middle East and North Africa Division,Foreign & Commonwealth Office,300078-101,"1,874.90",
DFID,DFID,09/03/2018,Hotels - Accommodation only,Middle East and North Africa Division,Foreign & Commonwealth Office,300078-101,"1,566.11",
DFID,DFID,09/03/2018,"Conferences, Seminars & Meeting/Event Resource",Middle East and North Africa Division,Foreign & Commonwealth Office,300078-101,"1,500.97",
DFID,DFID,13/03/2018,Hotels - Accommodation only,Middle East and North Africa Division,Foreign & Commonwealth Office,300078-101,509.94,
DFID,DFID,13/03/2018,Hotels - Accommodation only,Middle East and North Africa Division,Foreign & Commonwealth Office,300078-101,"1,054.85",
DFID,DFID,01/03/2018,Air fares,Middle East and North Africa Division,Corporate Travel Provider,300078-101,528.76,
DFID,DFID,01/03/2018,Air fares,Middle East and North Africa Division,Corporate Travel Provider,300078-101,562.11,
DFID,DFID,01/03/2018,Air fares,Middle East and North Africa Division,Corporate Travel Provider,300078-101,"1,412.70",
DFID,DFID,01/03/2018,Air fares,Middle East and North Africa Division,Corporate Travel Provider,300078-101,629.31,
DFID,DFID,01/03/2018,Air fares,Middle East and North Africa Division,Corporate Travel Provider,300078-101,523.11,
DFID,DFID,01/03/2018,Air fares,Middle East and North Africa Division,Corporate Travel Provider,300078-101,786.56,
DFID,DFID,20/03/2018,Hotels - Accommodation only,Middle East and North Africa Division,Foreign & Commonwealth Office,300078-101,"3,748.07",
DFID,DFID,20/03/2018,Hotels - Accommodation only,East and Central Africa,Foreign & Commonwealth Office,300363-107,"3,964.46",
DFID,DFID,01/03/2018,Air fares,"Conflict, Humanitarian, Security & Stabilisation Division",Corporate Travel Provider,205280-102,539.51,
DFID,DFID,01/03/2018,Air fares,"Conflict, Humanitarian, Security & Stabilisation Division",Corporate Travel Provider,205280-102,"1,140.21",
DFID,DFID,01/03/2018,Air fares,Policy Division,Corporate Travel Provider,300032-101,"1,508.61",
DFID,DFID,01/03/2018,Hotels - Accommodation only,Policy Division,Corporate Travel Provider,300032-101,505.41,
DFID,DFID,01/03/2018,Air fares,Policy Division,Corporate Travel Provider,300032-101,544.91,
DFID,DFID,01/03/2018,Hotels - Accommodation only,Policy Division,Corporate Travel Provider,300032-101,698.41,
DFID,DFID,01/03/2018,Air fares,Middle East and North Africa Division,Corporate Travel Provider,300465-101,573.61,
DFID,DFID,05/03/2018,Project delivery costs – supplier services,West and Southern Africa,ADAM SMITH INTERNATIONAL  LTD,202678-106,"16,592.41",
DFID,DFID,05/03/2018,Project delivery costs – supplier services,West and Southern Africa,ADAM SMITH INTERNATIONAL  LTD,203839-101,"2,728.42",
DFID,DFID,14/03/2018,Project delivery costs – supplier services,East and Central Africa,ADAM SMITH INTERNATIONAL  LTD,202541-110,"100,095.69",
DFID,DFID,14/03/2018,Project delivery costs – supplier services,East and Central Africa,ADAM SMITH INTERNATIONAL  LTD,202541-110,"345,353.19",
DFID,DFID,14/03/2018,Project delivery costs – supplier services,East and Central Africa,ADAM SMITH INTERNATIONAL  LTD,202541-110,"774,536.00",
DFID,DFID,14/03/2018,Project delivery costs – supplier services,"Asia, Caribbean and Overseas Territories",ADAM SMITH INTERNATIONAL  LTD,204619-104,"208,494.77",
DFID,DFID,22/03/2018,Project delivery costs – supplier services,East and Central Africa,ADAM SMITH INTERNATIONAL  LTD,204456-105,"30,047.08",
DFID,DFID,22/03/2018,Project delivery costs – supplier services,West and Southern Africa,ADAM SMITH INTERNATIONAL  LTD,203674-102,"87,619.08",
DFID,DFID,05/03/2018,Project delivery costs – supplier services,West and Southern Africa,ADAM SMITH INTERNATIONAL  LTD,203839-101,"15,730.96",
DFID,DFID,27/03/2018,Project delivery costs – supplier services,"Asia, Caribbean and Overseas Territories",ADAM SMITH INTERNATIONAL  LTD,202697-109,"91,801.58",
DFID,DFID,27/03/2018,Project delivery costs – supplier services,"Asia, Caribbean and Overseas Territories",ADAM SMITH INTERNATIONAL  LTD,202697-109,"135,151.66",
DFID,DFID,28/03/2018,Project delivery costs – supplier services,"Asia, Caribbean and Overseas Territories",ADAM SMITH INTERNATIONAL  LTD,202697-109,"408,351.77",
DFID,DFID,27/03/2018,Project delivery costs – supplier services,West and Southern Africa,ADAM SMITH INTERNATIONAL  LTD,203161-103,"730,505.98",
DFID,DFID,05/03/2018,Project delivery costs – supplier services,Policy Division,ACTION AGAINST HUNGER UK,204953-102,"155,710.00",
DFID,DFID,06/03/2018,Project delivery costs – supplier services,Business Solutions Division Level,ALLEGIS GROUP LIMITED,200005-138,"2,250.00",
DFID,DFID,19/03/2018,Aid Programme - Accountable Grant Payments,East and Central Africa,THE AEGIS TRUST,203923-101,"5,000.00",
DFID,DFID,07/03/2018,Aid Programme - Joint programme contribution,Research and Evidence Division,Natural Environment Research Council,112082-104,"542,145.06",
DFID,DFID,06/03/2018,Aid Programme - Joint programme contribution,Research and Evidence Division,Natural Environment Research Council,203774-103,"480,000.00",
DFID,DFID,07/03/2018,Aid Programme - Joint programme contribution,Research and Evidence Division,Natural Environment Research Council,203835-103,"825,000.00",
DFID,DFID,08/03/2018,Aid Programme - Joint programme contribution,Research and Evidence Division,Natural Environment Research Council,201884-106,"331,752.76",
DFID,DFID,02/03/2018,Aid Programme - Joint programme contribution,Economic Development Division,Natural Environment Research Council,205231-111,"80,400.00",
DFID,DFID,05/03/2018,Project delivery costs – supplier services,East and Central Africa,DAI EUROPE LIMITED,202843-101,"20,702.81",
DFID,DFID,16/03/2018,Aid Programme - Voluntary contributions,"Asia, Caribbean and Overseas Territories",BRITISH RED CROSS,300003-107,"158,816.00",
DFID,DFID,27/03/2018,Aid Programme - Voluntary contributions,East and Central Africa,BRITISH RED CROSS,203768-101,"159,896.00",
DFID,DFID,29/03/2018,Aid Programme - Accountable Grant Payments,East and Central Africa,BBC Media Action,204809-105,"210,216.00",
DFID,DFID,26/03/2018,Research and development costs - supplier services,Middle East and North Africa Division,THE SPRINGFIELD CENTRE,300060-102,"12,632.80",
DFID,DFID,20/03/2018,Telephone Usage & services,Business Solutions Division Level,BT BACS PAYMENTS,200002-130,"1,726.03",
DFID,DFID,09/03/2018,Data Network - land lines,Business Solutions Division Level,BT BACS PAYMENTS,200002-130,"3,436.90",
DFID,DFID,27/03/2018,Training Providers/Facilitation Services,Policy Division,BIRKBECK UNIVERSITY,202402-107,"1,987.00",
DFID,DFID,22/03/2018,Project delivery costs – supplier services,West and Southern Africa,BRITISH COUNCIL,203816-102,"39,636.93",
DFID,DFID,22/03/2018,Project delivery costs – supplier services,West and Southern Africa,BRITISH COUNCIL,203816-103,"74,788.27",
DFID,DFID,02/03/2018,Project delivery costs – supplier services,Middle East and North Africa Division,BRITISH COUNCIL,203726-101,"125,860.07",
DFID,DFID,08/03/2018,Project delivery costs – supplier services,East and Central Africa,BRITISH COUNCIL,203396-103,"746,663.00",
DFID,DFID,07/03/2018,Aid Programme - Humanitarian Material Relief Assistance and Services,Middle East and North Africa Division,Crown Agents.,204516-102,"5,270.40",
DFID,DFID,02/03/2018,Project delivery costs – supplier services,West and Southern Africa,Crown Agents.,202463-103,"100,984.00",
DFID,DFID,06/03/2018,Project delivery costs – supplier services,West and Southern Africa,Crown Agents.,202463-103,"92,602.16",
DFID,DFID,28/03/2018,Project delivery costs – supplier services,"Conflict, Humanitarian, Security & Stabilisation Division",Crown Agents.,300264-108,"2,026.22",
DFID,DFID,28/03/2018,Project delivery costs – supplier services,"Conflict, Humanitarian, Security & Stabilisation Division",Crown Agents.,300264-108,"4,884.42",
DFID,DFID,28/03/2018,Project delivery costs – supplier services,"Conflict, Humanitarian, Security & Stabilisation Division",Crown Agents.,300264-108,"21,746.40",
DFID,DFID,28/03/2018,Project delivery costs – supplier services,"Conflict, Humanitarian, Security & Stabilisation Division",Crown Agents.,300264-108,"10,873.20",
DFID,DFID,27/03/2018,Project delivery costs – supplier services,"Asia, Caribbean and Overseas Territories",Crown Agents.,205145-108,"12,753.64",
DFID,DFID,26/03/2018,Project delivery costs – supplier services,"Asia, Caribbean and Overseas Territories",Crown Agents.,300006-101,"130,409.31",
DFID,DFID,29/03/2018,Project delivery costs – supplier services,East and Central Africa,Crown Agents.,205286-105,"8,897.18",
DFID,DFID,28/03/2018,Project delivery costs – supplier services,East and Central Africa,Crown Agents.,205286-105,"9,273.60",
DFID,DFID,29/03/2018,Project delivery costs – supplier services,East and Central Africa,Crown Agents.,205286-105,"2,142.50",
DFID,DFID,29/03/2018,Project delivery costs – supplier services,East and Central Africa,Crown Agents.,204439-103,"2,142.50",
DFID,DFID,20/03/2018,Project delivery costs – supplier services,West and Southern Africa,Crown Agents.,203330-102,"179,498.92",
DFID,DFID,20/03/2018,Aid Programme - Humanitarian Material Relief Assistance and Services,"Asia, Caribbean and Overseas Territories",Crown Agents.,204603-101,"1,772.97",
DFID,DFID,21/03/2018,Project delivery costs – supplier services,"Conflict, Humanitarian, Security & Stabilisation Division",Crown Agents.,203416-102,"50,051.91",
DFID,DFID,16/03/2018,Project delivery costs – supplier services,"Conflict, Humanitarian, Security & Stabilisation Division",Crown Agents.,203416-102,"28,313.04",
DFID,DFID,16/03/2018,Project delivery costs – supplier services,"Conflict, Humanitarian, Security & Stabilisation Division",Crown Agents.,203416-102,"129,090.98",
DFID,DFID,26/03/2018,Aid Programme - Humanitarian Material Relief Assistance and Services,"Conflict, Humanitarian, Security & Stabilisation Division",Crown Agents.,203419-105,"13,970.00",
DFID,DFID,19/03/2018,Project delivery costs – supplier services,"Conflict, Humanitarian, Security & Stabilisation Division",Crown Agents.,300491-101,"5,720.40",
DFID,DFID,28/03/2018,Project delivery costs – supplier services,"Conflict, Humanitarian, Security & Stabilisation Division",Crown Agents.,300491-101,"25,878.00",
DFID,DFID,02/03/2018,Aid Programme - Humanitarian Material Relief Assistance and Services,"Conflict, Humanitarian, Security & Stabilisation Division",Crown Agents.,300491-101,"5,725.62",
DFID,DFID,02/03/2018,Aid Programme - Humanitarian Material Relief Assistance and Services,"Conflict, Humanitarian, Security & Stabilisation Division",Crown Agents.,300491-101,"111,937.99",
DFID,DFID,20/03/2018,Aid Programme - Humanitarian Material Relief Assistance and Services,"Conflict, Humanitarian, Security & Stabilisation Division",Crown Agents.,300491-103,"1,080.00",
DFID,DFID,20/03/2018,Aid Programme - Humanitarian Material Relief Assistance and Services,"Conflict, Humanitarian, Security & Stabilisation Division",Crown Agents.,300491-103,"40,689.27",
DFID,DFID,07/03/2018,Aid Programme - Humanitarian Material Relief Assistance and Services,"Conflict, Humanitarian, Security & Stabilisation Division",Crown Agents.,300491-103,"158,429.04",
DFID,DFID,07/03/2018,Aid Programme - Humanitarian Material Relief Assistance and Services,"Conflict, Humanitarian, Security & Stabilisation Division",Crown Agents.,300491-103,"56,946.73",
DFID,DFID,06/03/2018,Aid Programme - Humanitarian Material Relief Assistance and Services,"Conflict, Humanitarian, Security & Stabilisation Division",Crown Agents.,300491-103,"70,332.83",
DFID,DFID,06/03/2018,Aid Programme - Humanitarian Material Relief Assistance and Services,"Conflict, Humanitarian, Security & Stabilisation Division",Crown Agents.,300491-103,"197,482.36",
DFID,DFID,08/03/2018,Aid Programme - Humanitarian Material Relief Assistance and Services,"Conflict, Humanitarian, Security & Stabilisation Division",Crown Agents.,300491-103,"67,432.00",
DFID,DFID,13/03/2018,Aid Programme - Humanitarian Material Relief Assistance and Services,Middle East and North Africa Division,Crown Agents.,205094-104,"18,337.92",
DFID,DFID,13/03/2018,Aid Programme - Humanitarian Material Relief Assistance and Services,Middle East and North Africa Division,Crown Agents.,205094-104,"2,241.90",
DFID,DFID,16/03/2018,Project delivery costs – supplier services,Policy Division,Crown Agents.,200706-102,"202,155.63",
DFID,DFID,16/03/2018,Project delivery costs – supplier services,Policy Division,Crown Agents.,200706-102,"8,600.26",
DFID,DFID,05/03/2018,Project delivery costs – supplier services,Policy Division,Crown Agents.,200706-102,805.00,
DFID,DFID,23/03/2018,Project delivery costs – supplier services,Policy Division,Crown Agents.,200706-102,"455,391.10",
DFID,DFID,16/03/2018,Aid Programme - Refugee Relief Payments,"Asia, Caribbean and Overseas Territories",Crown Agents.,205268-110,"233,448.35",
DFID,DFID,07/03/2018,Project delivery costs – supplier services,"Asia, Caribbean and Overseas Territories",Crown Agents.,205268-110,"31,870.80",
DFID,DFID,28/03/2018,Project delivery costs – supplier services,"Asia, Caribbean and Overseas Territories",Crown Agents.,300250-106,"7,629.60",
DFID,DFID,28/03/2018,Project delivery costs – supplier services,"Asia, Caribbean and Overseas Territories",Crown Agents.,300250-106,"1,613.41",
DFID,DFID,12/03/2018,Project delivery costs – supplier services,"Conflict, Humanitarian, Security & Stabilisation Division",Crown Agents.,300491-103,"55,134.00",
DFID,DFID,28/03/2018,Project delivery costs – supplier services,"Conflict, Humanitarian, Security & Stabilisation Division",Crown Agents.,300491-103,"55,319.00",
DFID,DFID,20/03/2018,Project delivery costs – supplier services,"Conflict, Humanitarian, Security & Stabilisation Division",Crown Agents.,300491-103,"14,546.13",
DFID,DFID,22/03/2018,Project delivery costs – supplier services,"Conflict, Humanitarian, Security & Stabilisation Division",Crown Agents.,300491-103,"23,352.00",
DFID,DFID,07/03/2018,Aid Programme - Humanitarian Material Relief Assistance and Services,East and Central Africa,Crown Agents.,203462-102,"217,627.65",
DFID,DFID,08/03/2018,Aid Programme - Humanitarian Material Relief Assistance and Services,East and Central Africa,Crown Agents.,203462-102,"153,219.25",
DFID,DFID,15/03/2018,Aid Programme - Humanitarian Material Relief Assistance and Services,"Conflict, Humanitarian, Security & Stabilisation Division",Crown Agents.,202878-103,"7,445.80",
DFID,DFID,15/03/2018,Aid Programme - Humanitarian Material Relief Assistance and Services,"Conflict, Humanitarian, Security & Stabilisation Division",Crown Agents.,202878-103,"8,479.09",
DFID,DFID,29/03/2018,Project delivery costs – supplier services,"Asia, Caribbean and Overseas Territories",Crown Agents.,300003-106,"2,881.38",
DFID,DFID,19/03/2018,Project delivery costs – supplier services,East and Central Africa,Crown Agents.,203928-101,"7,620.00",
DFID,DFID,12/03/2018,Aid Programme - Accountable Grant Payments,Policy Division,SEND A COW,203559-155,"93,770.69",
DFID,DFID,16/03/2018,Aid Programme - Voluntary contributions,International Relations Division,COMMONWEALTH SECRETARIAT,300318-102,"200,000.00",
DFID,DFID,26/03/2018,Aid Programme - Accountable Grant Payments,Policy Division,CARE INTERNATIONAL UK,203559-139,"42,653.08",
DFID,DFID,01/03/2018,Aid Programme - Accountable Grant Payments,"Asia, Caribbean and Overseas Territories",CARE INTERNATIONAL UK,203274-113,"112,399.80",
DFID,DFID,22/03/2018,Aid Programme - Accountable Grant Payments,Research and Evidence Division,CENTRE FOR ECONOMIC POLICY RESEARCH,202835-104,"559,460.87",
DFID,DFID,08/03/2018,Aid Programme - Partnership Programme Arrangements,Policy Division,COMIC RELIEF,204961-101,"675,819.00",
DFID,DFID,06/03/2018,Aid Programme - Accountable Grant Payments,Policy Division,COMIC RELIEF,204912-101,"41,180.00",
DFID,DFID,06/03/2018,Aid Programme - Accountable Grant Payments,Policy Division,COMIC RELIEF,203873-101,"181,535.00",
DFID,DFID,08/03/2018,Aid Programme - Accountable Grant Payments,Policy Division,COMIC RELIEF,202197-101,"383,494.00",
DFID,DFID,15/03/2018,Project delivery costs – supplier services,East and Central Africa,CARE INTERNATIONAL,203462-101,"20,000.00",
DFID,DFID,22/03/2018,Project delivery costs – supplier services,Human Resources,CABINET OFFICE,100269-141,"27,148.70",DFID's contribution to the annual Civil Service wide employee engagement survey for 2017/18
DFID,DFID,16/03/2018,Training - Course Fees,Human Resources,CABINET OFFICE,100269-117,"5,720.61",
DFID,DFID,05/03/2018,Recruitment costs,Human Resources,CABINET OFFICE,100269-117,"11,948.80",
DFID,DFID,05/03/2018,Training - Course Fees,Human Resources,CABINET OFFICE,100269-117,"3,166.39",
DFID,DFID,09/03/2018,Recruitment costs,Human Resources,CABINET OFFICE,100269-109,"58,000.00",DFIDs contribution to the Civil Service Apprenticeships Recruitment Campaign
DFID,DFID,13/03/2018,Training Providers/Facilitation Services,Business Solutions Division Level,CABINET OFFICE,200001-101,"1,128.00",
DFID,DFID,28/03/2018,Recruitment costs,Human Resources,CABINET OFFICE,100269-130,"1,309.62",
DFID,DFID,29/03/2018,Recruitment costs,Human Resources,CABINET OFFICE,100269-130,"3,996.48",
DFID,DFID,27/03/2018,Recruitment costs,Human Resources,CABINET OFFICE,100269-117,"5,636.00",
DFID,DFID,22/03/2018,Training - Course Fees,Human Resources,CABINET OFFICE,100269-155,"23,800.00",
DFID,DFID,13/03/2018,Project delivery costs – supplier services,"Asia, Caribbean and Overseas Territories",Supplier Name withheld,205013-102,"46,852.16",
DFID,DFID,22/03/2018,Aid Programme - Accountable Grant Payments,West and Southern Africa,CLEEN FOUNDATION,203851-119,"108,769.00",
DFID,DFID,27/03/2018,Aid Programme - Accountable Grant Payments,West and Southern Africa,CLEEN FOUNDATION,203851-119,"108,769.00",
DFID,DFID,21/03/2018,Training - Course Fees,Finance and Corporate Performance Division,City of Glasgow College,100201-101,934.00,
DFID,DFID,28/03/2018,Training Providers/Facilitation Services,Finance and Corporate Performance Division,Capita  Business Services,204846-101,"3,069.73",
DFID,DFID,21/03/2018,Training Providers/Facilitation Services,Finance and Corporate Performance Division,Capita  Business Services,204846-101,"12,847.56",
DFID,DFID,14/03/2018,Training Providers/Facilitation Services,Business Solutions Division Level,Capita  Business Services,200001-101,"1,255.50",
DFID,DFID,09/03/2018,Training - Course Fees,"Asia, Caribbean and Overseas Territories",Capita  Business Services,101611-101,"2,832.00",
DFID,DFID,21/03/2018,Training Providers/Facilitation Services,"Asia, Caribbean and Overseas Territories",Capita  Business Services,101624-101,"3,218.34",
DFID,DFID,29/03/2018,Training - Course Fees,Human Resources,Capita  Business Services,100268-101,"3,750.00",
DFID,DFID,28/03/2018,Training - Course Fees,Human Resources,Capita  Business Services,100261-101,"2,500.00",
DFID,DFID,07/03/2018,Training - Course Fees,East and Central Africa,Capita  Business Services,101635-101,"5,047.87",
DFID,DFID,20/03/2018,Training Providers/Facilitation Services ,East and Central Africa,Capita  Business Services,101635-101,"1,904.28",
DFID,DFID,20/03/2018,Training Providers/Facilitation Services,West and Southern Africa,Capita  Business Services,101622-106,"1,063.00",
DFID,DFID,29/03/2018,Training - Course Fees,Human Resources,Capita  Business Services,100268-101,"3,750.00",
DFID,DFID,29/03/2018,Training - Course Fees,Human Resources,Capita  Business Services,100268-101,"2,500.00",
DFID,DFID,22/03/2018,Training - Course Fees,Human Resources,Capita  Business Services,100269-155,807.93,
DFID,DFID,28/03/2018,Training Providers/Facilitation Services,Human Resources,Capita  Business Services,100269-153,"8,125.00",
DFID,DFID,29/03/2018,Training - Course Fees,Human Resources,Capita  Business Services,100268-101,"5,000.00",
DFID,DFID,29/03/2018,Training - Course Fees,Human Resources,Capita  Business Services,100266-101,"1,250.00",
DFID,DFID,13/03/2018,Training - Course Fees,Internal Audit,CITY OF LONDON POLICE,203914-101,"1,375.00",
DFID,DFID,28/03/2018,Training - Course Fees,"Conflict, Humanitarian, Security & Stabilisation Division",MINISTRY OF DEFENCE,100049-102,"1,833.00",
DFID,DFID,28/03/2018,Training - Course Fees,"Conflict, Humanitarian, Security & Stabilisation Division",MINISTRY OF DEFENCE,100049-134,"3,666.00",
DFID,DFID,28/03/2018,Training - Course Fees,Economic Development Division,MINISTRY OF DEFENCE,204686-101,"1,833.00",
DFID,DFID,26/03/2018,Training Providers/Facilitation Services,Human Resources,MINISTRY OF DEFENCE,100269-155,"10,405.20",
DFID,DFID,05/03/2018,Project delivery costs – supplier services,West and Southern Africa,MINISTRY OF DEFENCE,204917-101,"3,500.00",
DFID,DFID,15/03/2018,Project delivery costs – supplier services,East and Central Africa,Nathan Associates London Ltd,202844-101,"13,730.92",
DFID,DFID,15/03/2018,Project delivery costs – supplier services,"Asia, Caribbean and Overseas Territories",Nathan Associates London Ltd,202180-102,"279,221.77",
DFID,DFID,05/03/2018,Project delivery costs – supplier services,"Asia, Caribbean and Overseas Territories",Nathan Associates London Ltd,202180-102,"79,011.35",
DFID,DFID,29/03/2018,Professional member subscriptions,Human Resources,ECA INTERNATIONAL,100269-135,"32,604.00",Annual subscription for Financial calculation services for overseas allowances for 2018/2019
DFID,DFID,05/03/2018,Project delivery costs – supplier services,West and Southern Africa,COFFEY INTERNATIONAL DEVELOPMENT LTD,203429-105,"116,410.00",
DFID,DFID,05/03/2018,Project delivery costs – supplier services,West and Southern Africa,COFFEY INTERNATIONAL DEVELOPMENT LTD,203429-105,"116,410.00",
DFID,DFID,08/03/2018,Project delivery costs – supplier services,West and Southern Africa,COFFEY INTERNATIONAL DEVELOPMENT LTD,203429-105,"26,173.00",
DFID,DFID,21/03/2018,Project delivery costs – supplier services,West and Southern Africa,COFFEY INTERNATIONAL DEVELOPMENT LTD,104190-109,"59,530.07",
DFID,DFID,06/03/2018,Project delivery costs – supplier services,"Asia, Caribbean and Overseas Territories",COFFEY INTERNATIONAL DEVELOPMENT LTD,204952-101,"538,353.60",
DFID,DFID,29/03/2018,Project delivery costs – supplier services,East and Central Africa,COFFEY INTERNATIONAL DEVELOPMENT LTD,202509-102,"1,400,000.00",
DFID,DFID,13/03/2018,Project delivery costs – supplier services,"Asia, Caribbean and Overseas Territories",COFFEY INTERNATIONAL DEVELOPMENT LTD,202495-112,"3,400.44",
DFID,DFID,23/03/2018,Project delivery costs – supplier services,West and Southern Africa,COFFEY INTERNATIONAL DEVELOPMENT LTD,203429-105,"5,100.00",
DFID,DFID,26/03/2018,Project delivery costs – supplier services,West and Southern Africa,COFFEY INTERNATIONAL DEVELOPMENT LTD,203429-105,"118,656.04",
DFID,DFID,13/03/2018,Project delivery costs – supplier services,West and Southern Africa,COFFEY INTERNATIONAL DEVELOPMENT LTD,203429-105,"46,564.00",
DFID,DFID,15/03/2018,Project delivery costs – supplier services,West and Southern Africa,COFFEY INTERNATIONAL DEVELOPMENT LTD,202455-104,"13,775.84",
DFID,DFID,27/03/2018,Project delivery costs – supplier services,West and Southern Africa,COFFEY INTERNATIONAL DEVELOPMENT LTD,202455-104,"13,744.73",
DFID,DFID,14/03/2018,Project delivery costs – supplier services,West and Southern Africa,COFFEY INTERNATIONAL DEVELOPMENT LTD,202455-107,"7,600.00",
DFID,DFID,13/03/2018,Project delivery costs – supplier services,Policy Division,COFFEY INTERNATIONAL DEVELOPMENT LTD,201724-130,"343,145.69",
DFID,DFID,13/03/2018,Project delivery costs – supplier services,Policy Division,COFFEY INTERNATIONAL DEVELOPMENT LTD,201724-130,"51,048.31",
DFID,DFID,26/03/2018,Project delivery costs – supplier services,West and Southern Africa,COFFEY INTERNATIONAL DEVELOPMENT LTD,203429-105,"114,164.96",
DFID,DFID,01/03/2018,Aid Programme - Accountable Grant Payments,Policy Division,EMERGENCY NUTRITION NETWORK,204954-104,"134,716.00",
DFID,DFID,01/03/2018,Aid Programme - Accountable Grant Payments,Policy Division,EMERGENCY NUTRITION NETWORK,204954-104,"125,209.00",
DFID,DFID,13/03/2018,Aid Programme - Strategic Grant Arrangement payments,Research and Evidence Division,ECONOMIC AND SOCIAL RESEARCH COUNCIL,203545-104,"1,116,459.60",
DFID,DFID,13/03/2018,Aid Programme - Strategic Grant Arrangement payments,Research and Evidence Division,ECONOMIC AND SOCIAL RESEARCH COUNCIL,203545-104,"4,962.41",
DFID,DFID,05/03/2018,Aid Programme - Accountable Grant Payments,Research and Evidence Division,ECONOMIC AND SOCIAL RESEARCH COUNCIL,202168-106,"177,076.85",
DFID,DFID,05/03/2018,Aid Programme - Accountable Grant Payments,Research and Evidence Division,ECONOMIC AND SOCIAL RESEARCH COUNCIL,202168-106,"7,000.00",
DFID,DFID,13/03/2018,Aid Programme - Accountable Grant Payments,Research and Evidence Division,ECONOMIC AND SOCIAL RESEARCH COUNCIL,204324-102,"971,848.87",
DFID,DFID,13/03/2018,Aid Programme - Accountable Grant Payments,Research and Evidence Division,ECONOMIC AND SOCIAL RESEARCH COUNCIL,204324-102,"3,750.00",
DFID,DFID,28/03/2018,FCO shared service charges,Group Operations,FCO SERVICES,203717-101,"3,320.01",
DFID,DFID,28/03/2018,"Repairs, Maint, Alter - Property & Constrct. Services",One HMG FCO Platform,FCO SERVICES,204994-143,"23,512.50",
DFID,DFID,27/03/2018,"Repairs, Maint, Alter - Property & Constrct. Services",One HMG FCO Platform,FCO SERVICES,204994-143,"33,823.53",The delivery of remedial works required to the DFID properties in multiple overseas locations as part of the 1 HMG consolidation programme
DFID,DFID,14/03/2018,"Repairs, Maint, Alter - Property & Constrct. Services",One HMG FCO Platform,FCO SERVICES,204994-143,"49,550.06",The delivery of remedial works required to the DFID properties in multiple overseas locations as part of the 1 HMG consolidation programme
DFID,DFID,23/03/2018,"Repairs, Maint, Alter - Property & Constrct. Services",One HMG FCO Platform,FCO SERVICES,204994-143,"1,853.48",
DFID,DFID,14/03/2018,"Repairs, Maint, Alter - Property & Constrct. Services",One HMG FCO Platform,FCO SERVICES,204994-143,"85,902.96",The delivery of remedial works required to the DFID properties in multiple overseas locations as part of the 1 HMG consolidation programme
DFID,DFID,16/03/2018,"Repairs, Maint, Alter - Property & Constrct. Services",One HMG FCO Platform,FCO SERVICES,204994-143,"86,361.00",The delivery of remedial works required to the DFID properties in multiple overseas locations as part of the 1 HMG consolidation programme
DFID,DFID,14/03/2018,"Repairs, Maint, Alter - Property & Constrct. Services",One HMG FCO Platform,FCO SERVICES,204994-143,"18,848.95",
DFID,DFID,14/03/2018,"Repairs, Maint, Alter - Property & Constrct. Services",One HMG FCO Platform,FCO SERVICES,204994-143,"142,295.03",The delivery of remedial works required to the DFID properties in multiple overseas locations as part of the 1 HMG consolidation programme
DFID,DFID,14/03/2018,"Repairs, Maint, Alter - Property & Constrct. Services",One HMG FCO Platform,FCO SERVICES,204994-143,"29,596.40",The delivery of remedial works required to the DFID properties in multiple overseas locations as part of the 1 HMG consolidation programme
DFID,DFID,26/03/2018,Courier & Bag Services,"Asia, Caribbean and Overseas Territories",FCO SERVICES,203137-101,515.91,
DFID,DFID,28/03/2018,Project delivery costs – supplier services,Business Solutions Division Level,FCO RECOVERIES UNIT,200002-229,"69,600.00",DFID's contribution to cross Government Global Telecoms Programme for the period October - December 2017
DFID,DFID,16/03/2018,Project delivery costs – supplier services,East and Central Africa,PALLADIUM,202577-103,"48,545.00",
DFID,DFID,19/03/2018,Project delivery costs – supplier services,East and Central Africa,PALLADIUM,202577-103,"30,756.36",
DFID,DFID,19/03/2018,Project delivery costs – supplier services,East and Central Africa,PALLADIUM,202577-104,"447,042.93",
DFID,DFID,16/03/2018,Project delivery costs – supplier services,East and Central Africa,PALLADIUM,202577-104,"429,104.26",
DFID,DFID,16/03/2018,Project delivery costs – supplier services,"Asia, Caribbean and Overseas Territories",PALLADIUM,300250-106,"12,676.86",
DFID,DFID,19/03/2018,Project delivery costs – supplier services,"Asia, Caribbean and Overseas Territories",PALLADIUM,300250-106,"9,836.16",
DFID,DFID,12/03/2018,Project delivery costs – supplier services,Country Programmes Cabinet,PALLADIUM,204833-101,"6,117.72",
DFID,DFID,26/03/2018,Aid Programme - Humanitarian Material Relief Assistance and Services,Middle East and North Africa Division,PALLADIUM,204516-102,"26,343.71",
DFID,DFID,29/03/2018,Aid Programme - Humanitarian Material Relief Assistance and Services,Middle East and North Africa Division,PALLADIUM,204516-102,"105,680.56",
DFID,DFID,21/03/2018,Project delivery costs – supplier services,Policy Division,PALLADIUM,201724-155,"62,048.08",
DFID,DFID,16/03/2018,Project delivery costs – supplier services,Middle East and North Africa Division,PALLADIUM,300078-101,"18,054.29",
DFID,DFID,12/03/2018,Project delivery costs – supplier services,Middle East and North Africa Division,PALLADIUM,300078-101,"16,536.10",
DFID,DFID,09/03/2018,Project delivery costs – supplier services,Middle East and North Africa Division,PALLADIUM,300417-101,"3,323.27",
DFID,DFID,02/03/2018,Project delivery costs – supplier services,East and Central Africa,PALLADIUM,204012-106,"208,845.28",
DFID,DFID,27/03/2018,Project delivery costs – supplier services,East and Central Africa,PALLADIUM,204012-106,"393,423.62",
DFID,DFID,08/03/2018,Project delivery costs – supplier services,West and Southern Africa,PALLADIUM,202352-102,"213,914.38",
DFID,DFID,21/03/2018,Project delivery costs – supplier services,"Conflict, Humanitarian, Security & Stabilisation Division",PALLADIUM,300042-103,686.81,
DFID,DFID,16/03/2018,Project delivery costs – supplier services,West and Southern Africa,PALLADIUM,300432-105,"5,695.20",
DFID,DFID,09/03/2018,Project delivery costs – supplier services,West and Southern Africa,PALLADIUM,300432-105,"15,601.51",
DFID,DFID,01/03/2018,Project delivery costs – supplier services,West and Southern Africa,PALLADIUM,204822-102,"265,230.05",
DFID,DFID,26/03/2018,Project delivery costs – supplier services,West and Southern Africa,PALLADIUM,204822-102,"341,007.64",
DFID,DFID,26/03/2018,Project delivery costs – supplier services,East and Central Africa,PALLADIUM,203539-102,"125,490.16",
DFID,DFID,26/03/2018,Fund monies to be managed and dispersed by the supplier,East and Central Africa,PALLADIUM,203539-102,"630,541.00",
DFID,DFID,02/03/2018,Fund monies to be managed and dispersed by the supplier,East and Central Africa,PALLADIUM,203539-102,"113,505.40",
DFID,DFID,02/03/2018,Project delivery costs – supplier services,East and Central Africa,PALLADIUM,203539-102,"344,320.10",
DFID,DFID,06/03/2018,Project delivery costs – supplier services,Middle East and North Africa Division,PALLADIUM,300231-103,"6,495.79",
DFID,DFID,26/03/2018,Project delivery costs – supplier services,Middle East and North Africa Division,PALLADIUM,300231-103,"14,309.75",
DFID,DFID,12/03/2018,Project delivery costs – supplier services,East and Central Africa,PALLADIUM,300363-107,"9,345.83",
DFID,DFID,06/03/2018,Project delivery costs – supplier services,"Asia, Caribbean and Overseas Territories",PALLADIUM,205138-103,"11,086.18",
DFID,DFID,26/03/2018,Project delivery costs – supplier services,East and Central Africa,PALLADIUM,101630-101,"15,327.12",
DFID,DFID,27/03/2018,Project delivery costs – supplier services,"Asia, Caribbean and Overseas Territories",PALLADIUM,204613-101,"92,882.21",
DFID,DFID,23/03/2018,Project delivery costs – supplier services,West and Southern Africa,PALLADIUM,203429-103,"5,000.00",
DFID,DFID,26/03/2018,Project delivery costs – supplier services,Middle East and North Africa Division,PALLADIUM,300045-102,"16,364.76",
DFID,DFID,25/03/2018,Project delivery costs – supplier services,Middle East and North Africa Division,PALLADIUM,300045-102,"10,592.02",
DFID,DFID,21/03/2018,Project delivery costs – supplier services,Middle East and North Africa Division,PALLADIUM,300045-102,"30,473.59",
DFID,DFID,16/03/2018,Project delivery costs – supplier services,East and Central Africa,PALLADIUM,205286-105,"8,088.67",
DFID,DFID,23/03/2018,Project delivery costs – supplier services,East and Central Africa,PALLADIUM,205286-105,"16,877.34",
DFID,DFID,27/03/2018,Project delivery costs – supplier services,East and Central Africa,PALLADIUM,204439-103,"17,311.22",
DFID,DFID,29/03/2018,Project delivery costs – supplier services,East and Central Africa,PALLADIUM,204439-103,"11,352.61",
DFID,DFID,16/03/2018,Project delivery costs – supplier services,East and Central Africa,PALLADIUM,204439-103,"14,850.75",
DFID,DFID,19/03/2018,Project delivery costs – supplier services,West and Southern Africa,PALLADIUM,202098-101,"254,191.07",
DFID,DFID,29/03/2018,Aid Programme - Humanitarian Material Relief Assistance and Services,"Asia, Caribbean and Overseas Territories",PALLADIUM,204603-101,"5,648.69",
DFID,DFID,22/03/2018,Project delivery costs – supplier services,Middle East and North Africa Division,PALLADIUM,300078-101,"2,508.58",
DFID,DFID,23/03/2018,Project delivery costs – supplier services,"Conflict, Humanitarian, Security & Stabilisation Division",PALLADIUM,300491-101,"6,022.68",
DFID,DFID,12/03/2018,Aid Programme - Humanitarian Material Relief Assistance and Services,"Conflict, Humanitarian, Security & Stabilisation Division",PALLADIUM,300491-103,"5,468.09",
DFID,DFID,06/03/2018,Aid Programme - Humanitarian Material Relief Assistance and Services,"Conflict, Humanitarian, Security & Stabilisation Division",PALLADIUM,300491-103,"2,720.44",
DFID,DFID,07/03/2018,Project delivery costs – supplier services,"Conflict, Humanitarian, Security & Stabilisation Division",PALLADIUM,300491-103,"16,555.66",
DFID,DFID,27/03/2018,Project delivery costs – supplier services,"Conflict, Humanitarian, Security & Stabilisation Division",PALLADIUM,205038-107,"3,444.48",
DFID,DFID,23/03/2018,Project delivery costs – supplier services,"Asia, Caribbean and Overseas Territories",PALLADIUM,203427-105,"48,410.89",
DFID,DFID,09/03/2018,Project delivery costs – supplier services,West and Southern Africa,PALLADIUM,205122-101,"12,125.33",
DFID,DFID,20/03/2018,Project delivery costs – supplier services,West and Southern Africa,PALLADIUM,205122-101,"10,858.39",
DFID,DFID,16/03/2018,Aid Programme - Humanitarian Material Relief Assistance and Services,Middle East and North Africa Division,PALLADIUM,205094-104,"9,575.18",
DFID,DFID,26/03/2018,Project delivery costs – supplier services,"Conflict, Humanitarian, Security & Stabilisation Division",PALLADIUM,205176-103,"51,211.43",
DFID,DFID,26/03/2018,Project delivery costs – supplier services,"Conflict, Humanitarian, Security & Stabilisation Division",PALLADIUM,205176-105,"2,214.24",
DFID,DFID,26/03/2018,Project delivery costs – supplier services,"Conflict, Humanitarian, Security & Stabilisation Division",PALLADIUM,205176-108,"141,703.80",
DFID,DFID,29/03/2018,Project delivery costs – supplier services,"Conflict, Humanitarian, Security & Stabilisation Division",PALLADIUM,300264-108,"45,246.79",
DFID,DFID,28/03/2018,Project delivery costs – supplier services,East and Central Africa,PALLADIUM,202596-108,"7,188.35",
DFID,DFID,12/03/2018,Project delivery costs – supplier services,East and Central Africa,PALLADIUM,202596-108,"11,177.99",
DFID,DFID,26/03/2018,Project delivery costs – supplier services,East and Central Africa,PALLADIUM,202900-108,"46,440.84",
DFID,DFID,26/03/2018,Aid Programme - Humanitarian Material Relief Assistance and Services,"Asia, Caribbean and Overseas Territories",PALLADIUM,205268-110,"116,313.28",
DFID,DFID,26/03/2018,Project delivery costs – supplier services,"Asia, Caribbean and Overseas Territories",PALLADIUM,205268-110,"1,553.22",
DFID,DFID,16/03/2018,Project delivery costs – supplier services,"Asia, Caribbean and Overseas Territories",PALLADIUM,205268-110,"33,483.52",
DFID,DFID,15/03/2018,Project delivery costs – supplier services,"Asia, Caribbean and Overseas Territories",PALLADIUM,205268-110,"7,759.08",
DFID,DFID,01/03/2018,Project delivery costs – supplier services,"Asia, Caribbean and Overseas Territories",PALLADIUM,205268-110,"32,150.22",
DFID,DFID,15/03/2018,Project delivery costs – supplier services,"Asia, Caribbean and Overseas Territories",PALLADIUM,205268-110,"18,476.59",
DFID,DFID,02/03/2018,Aid Programme - Humanitarian Material Relief Assistance and Services,"Asia, Caribbean and Overseas Territories",PALLADIUM,205268-110,"13,045.15",
DFID,DFID,28/03/2018,Aid Programme - Accountable Grant Payments,Research and Evidence Division,Energy 4 Impact,201879-105,"69,173.00",
DFID,DFID,20/03/2018,Aid Programme - Accountable Grant Payments,East and Central Africa,GOAL,204019-128,"648,830.00",
DFID,DFID,26/03/2018,Recruitment costs,Human Resources,HM TREASURY VOTES CASH ACCOUNT,100269-117,"66,046.20",Annual subscription to the UK Government Economic Service  for 2017/2018
DFID,DFID,26/03/2018,Recruitment costs,Human Resources,HM TREASURY VOTES CASH ACCOUNT,100269-117,"6,758.45",
DFID,DFID,20/03/2018,Project delivery costs – supplier services,"Conflict, Humanitarian, Security & Stabilisation Division",THE HALO TRUST,203243-119,"318,000.00",
DFID,DFID,15/03/2018,Project delivery costs – supplier services,West and Southern Africa,HEALTH PARTNERS INTERNATIONAL,202694-101,"32,680.05",
DFID,DFID,05/03/2018,"Conferences, Seminars & Meeting/Event Resource",Human Resources,HAYMARKET PUBLISHING SERVICES LTD,100261-101,"1,032.00",
DFID,DFID,09/03/2018,Contract & Agency Staff,Human Resources,Hays Specialist Recruitment Ltd,100268-101,"1,413.37",
DFID,DFID,15/03/2018,Contract & Agency Staff,Human Resources,Hays Specialist Recruitment Ltd,100268-101,"1,386.29",
DFID,DFID,06/03/2018,Contract & Agency Staff,Human Resources,Hays Specialist Recruitment Ltd,100268-101,"1,438.26",
DFID,DFID,05/03/2018,Contract & Agency Staff,Human Resources,Hays Specialist Recruitment Ltd,100268-101,"1,391.47",
DFID,DFID,22/03/2018,Contract & Agency Staff,Human Resources,Hays Specialist Recruitment Ltd,100268-101,"1,373.29",
DFID,DFID,15/03/2018,Contract & Agency Staff,Business Solutions Division Level,Hays Specialist Recruitment Ltd,200002-240,"1,502.28",
DFID,DFID,08/03/2018,Contract & Agency Staff,Business Solutions Division Level,Hays Specialist Recruitment Ltd,200002-240,"1,502.28",
DFID,DFID,06/03/2018,Contract & Agency Staff,Business Solutions Division Level,Hays Specialist Recruitment Ltd,200002-240,"1,502.28",
DFID,DFID,22/03/2018,Contract & Agency Staff,Business Solutions Division Level,Hays Specialist Recruitment Ltd,200002-240,"1,502.28",
DFID,DFID,29/03/2018,Contract & Agency Staff,Business Solutions Division Level,Hays Specialist Recruitment Ltd,200002-240,"1,502.28",
DFID,DFID,27/03/2018,Project delivery costs – supplier services,Business Solutions Division Level,Hays Specialist Recruitment Ltd,200002-245,"2,793.00",
DFID,DFID,14/03/2018,Project delivery costs – supplier services,Business Solutions Division Level,Hays Specialist Recruitment Ltd,200002-245,"2,790.00",
DFID,DFID,14/03/2018,Project delivery costs – supplier services,Business Solutions Division Level,Hays Specialist Recruitment Ltd,200002-245,"2,790.00",
DFID,DFID,08/03/2018,Contract & Agency Staff,Finance and Corporate Performance Division,HUDSON GLOBAL RESOURCES LTD,100201-101,"3,282.05",
DFID,DFID,16/03/2018,Contract & Agency Staff,Finance and Corporate Performance Division,HUDSON GLOBAL RESOURCES LTD,100201-101,"2,173.25",
DFID,DFID,13/03/2018,Recruitment costs,Finance and Corporate Performance Division,HUDSON GLOBAL RESOURCES LTD,100201-101,"4,850.00",
DFID,DFID,07/03/2018,Recruitment costs,Group Operations,HUDSON GLOBAL RESOURCES LTD,201870-101,900.00,
DFID,DFID,29/03/2018,Project delivery costs – supplier services,Economic Development Division,ITAD LTD,204123-102,"28,795.68",
DFID,DFID,22/03/2018,Project delivery costs – supplier services,"Conflict, Humanitarian, Security & Stabilisation Division",ITAD LTD,203243-125,"154,084.54",
DFID,DFID,13/03/2018,Project delivery costs – supplier services,West and Southern Africa,ITAD LTD,202482-102,"67,809.00",
DFID,DFID,13/03/2018,Project delivery costs – supplier services,West and Southern Africa,ITAD LTD,202482-102,"12,277.00",
DFID,DFID,13/03/2018,Project delivery costs – supplier services,West and Southern Africa,ITAD LTD,202482-102,"49,684.00",
DFID,DFID,13/03/2018,Project delivery costs – supplier services,West and Southern Africa,ITAD LTD,202482-102,"53,296.00",
DFID,DFID,05/03/2018,Research and development costs - supplier services,Research and Evidence Division,THE INSTITUTE OF DEVELOPMENT STUDIE,204584-152,"24,590.00",
DFID,DFID,23/03/2018,Project delivery costs – supplier services,Research and Evidence Division,THE INSTITUTE OF DEVELOPMENT STUDIE,205121-101,"89,210.75",
DFID,DFID,02/03/2018,Project delivery costs – supplier services,Research and Evidence Division,THE INSTITUTE OF DEVELOPMENT STUDIE,205121-101,"89,210.75",
DFID,DFID,02/03/2018,Project delivery costs – supplier services,Research and Evidence Division,THE INSTITUTE OF DEVELOPMENT STUDIE,205121-101,"136,783.10",
DFID,DFID,07/03/2018,Aid Programme - Voluntary contributions,East and Central Africa,ICRAF,204956-102,"232,835.00",
DFID,DFID,15/03/2018,Aid Programme - Accountable Grant Payments,"Asia, Caribbean and Overseas Territories",INTERNATIONAL CENTRE FOR DIARRO,204131-103,"32,892.66",
DFID,DFID,19/03/2018,Aid Programme - Accountable Grant Payments,Policy Division,ISLAMIC RELIEF,203559-115,"100,820.00",
DFID,DFID,09/03/2018,Project delivery costs – supplier services,Research and Evidence Division,THE UNIVERSITY OF MANCHESTER,204584-156,"44,533.00",
DFID,DFID,23/03/2018,Aid Programme - Voluntary contributions,"Asia, Caribbean and Overseas Territories",INTER AMERICAN DEVELOPMENT BANK,203643-102,"1,099,999.00",
DFID,DFID,29/03/2018,Aid Programme - Humanitarian Material Relief Assistance and Services,"Asia, Caribbean and Overseas Territories",INTERNATIONAL RESCUE COMMITTEE UK,204603-105,"619,830.00",
DFID,DFID,29/03/2018,Aid Programme - Accountable Grant Payments,"Asia, Caribbean and Overseas Territories",INTERNATIONAL RESCUE COMMITTEE UK,204603-116,"206,610.00",
DFID,DFID,06/03/2018,Research and development costs - supplier services,Research and Evidence Division,INSTITUTE OF DEVELOPMENT STUDIES,202042-102,"247,672.86",
DFID,DFID,14/03/2018,Aid Programme - Voluntary contributions,Middle East and North Africa Division,IBRD HSBC T,204527-101,"300,000.00",
DFID,DFID,27/03/2018,Aid Programme - Trust Funds contributions,Research and Evidence Division,IBRD HSBC T,203933-104,"200,000.00",
DFID,DFID,26/03/2018,Aid Programme - Trust Funds contributions,Middle East and North Africa Division,IBRD HSBC T,205200-105,"2,000,000.00",
DFID,DFID,28/03/2018,Aid Programme - Trust Funds contributions,Economic Development Division,IBRD HSBC T,204255-105,"273,884.00",
DFID,DFID,26/03/2018,Aid Programme - Trust Funds contributions,Research and Evidence Division,IBRD HSBC T,204784-103,"1,250,000.00",
DFID,DFID,07/03/2018,Aid Programme - Trust Funds contributions,West and Southern Africa,IBRD HSBC T,202854-101,"200,000.00",
DFID,DFID,13/03/2018,Aid Programme - Trust Funds contributions,West and Southern Africa,IBRD HSBC T,202854-101,"5,000.00",
DFID,DFID,23/03/2018,Aid Programme - Trust Funds contributions,Economic Development Division,IBRD HSBC T,203308-126,"216,000.00",
DFID,DFID,09/03/2018,Aid Programme - Trust Funds contributions,Research and Evidence Division,IBRD HSBC T,200806-101,"1,000,000.00",
DFID,DFID,27/03/2018,Aid Programme - Trust Funds contributions,Research and Evidence Division,IBRD HSBC T,203933-103,"724,839.35",
DFID,DFID,22/03/2018,Project delivery costs – supplier services,Policy Division,IOD PARC,200763-101,"28,693.75",
DFID,DFID,08/03/2018,Project delivery costs – supplier services,Research and Evidence Division,IOD PARC,205109-101,"52,500.49",
DFID,DFID,26/03/2018,Project delivery costs – supplier services,Policy Division,IOD PARC,203516-105,"5,347.50",
DFID,DFID,15/03/2018,Project delivery costs – supplier services,Policy Division,IOD PARC,203516-105,"1,822.50",
DFID,DFID,19/03/2018,Aid Programme - Trust Funds contributions,Research and Evidence Division,IBRD (HSBC)  C/O THE WORLD BANK,204931-102,"810,751.00",
DFID,DFID,05/03/2018,Aid Programme - Trust Funds contributions,Policy Division,IBRD (HSBC)  C/O THE WORLD BANK,204691-104,"1,000,000.00",
DFID,DFID,05/03/2018,Aid Programme - Joint programme contribution,Economic Development Division,INTERNATIONAL TRADE CENTRE,202762-106,"90,000.00",
DFID,DFID,05/03/2018,Aid Programme - Joint programme contribution,"Asia, Caribbean and Overseas Territories",INTERNATIONAL TRADE CENTRE,202762-101,"380,000.00",
DFID,DFID,05/03/2018,Aid Programme - Accountable Grant Payments,Middle East and North Africa Division,INTERNATIONAL MEDICAL CORPS (UK),300337-101,"587,592.00",
DFID,DFID,15/03/2018,Aid Programme - Accountable Grant Payments,East and Central Africa,INTERNATIONAL MEDICAL CORPS (UK),204019-122,"1,396,790.00",
DFID,DFID,15/03/2018,Project delivery costs – supplier services,Policy Division,IMPERIAL COLLEGE LONDON,200706-101,"114,065.27",
DFID,DFID,13/03/2018,Training Providers/Facilitation Services,Human Resources,INSIGHTS LEARNING & DEVELOPMENT LTD,100266-107,"2,332.20",
DFID,DFID,08/03/2018,Hostile Environment Training,East and Central Africa,KELLOGG BROWN & ROOT LIMITED,101625-112,655.00,
DFID,DFID,20/03/2018,Hostile Environment Training,East and Central Africa,KELLOGG BROWN & ROOT LIMITED,101625-113,545.83,
DFID,DFID,06/03/2018,Hostile Environment Training,East and Central Africa,KELLOGG BROWN & ROOT LIMITED,101625-113,655.00,
DFID,DFID,16/03/2018,Hostile Environment Training,Economic Development Division,KELLOGG BROWN & ROOT LIMITED,100124-101,545.83,
DFID,DFID,22/03/2018,Hostile Environment Training,Communications Division,KELLOGG BROWN & ROOT LIMITED,100138-101,655.00,
DFID,DFID,08/03/2018,Hostile Environment Training,Top Management Group,KELLOGG BROWN & ROOT LIMITED,100232-106,655.00,
DFID,DFID,12/03/2018,Hostile Environment Training,Policy Division,KELLOGG BROWN & ROOT LIMITED,100098-101,545.83,
DFID,DFID,19/03/2018,Hostile Environment Training,"Conflict, Humanitarian, Security & Stabilisation Division",KELLOGG BROWN & ROOT LIMITED,100049-101,655.00,
DFID,DFID,15/03/2018,Hostile Environment Training,"Conflict, Humanitarian, Security & Stabilisation Division",KELLOGG BROWN & ROOT LIMITED,202410-108,655.00,
DFID,DFID,13/03/2018,Hostile Environment Training,"Asia, Caribbean and Overseas Territories",Supplier Name withheld,101601-110,655.00,
DFID,DFID,12/03/2018,Hostile Environment Training,West and Southern Africa,KELLOGG BROWN & ROOT LIMITED,101622-106,"19,200.00",
DFID,DFID,08/03/2018,Hostile Environment Training,Research and Evidence Division,KELLOGG BROWN & ROOT LIMITED,202392-109,583.00,
DFID,DFID,05/03/2018,Hostile Environment Training,East and Central Africa,KELLOGG BROWN & ROOT LIMITED,202594-101,655.00,
DFID,DFID,02/03/2018,Hostile Environment Training,Middle East and North Africa Division,KELLOGG BROWN & ROOT LIMITED,204055-101,655.00,
DFID,DFID,09/03/2018,Hostile Environment Training,"Conflict, Humanitarian, Security & Stabilisation Division",KELLOGG BROWN & ROOT LIMITED,205280-102,655.00,
DFID,DFID,23/03/2018,Hostile Environment Training,Middle East and North Africa Division,KELLOGG BROWN & ROOT LIMITED,204981-101,655.00,
DFID,DFID,19/03/2018,Hostile Environment Training,"Conflict, Humanitarian, Security & Stabilisation Division",KELLOGG BROWN & ROOT LIMITED,202410-107,655.00,
DFID,DFID,02/03/2018,Hostile Environment Training,West and Southern Africa,KELLOGG BROWN & ROOT LIMITED,101622-106,545.83,
DFID,DFID,02/03/2018,Hostile Environment Training,Middle East and North Africa Division,KELLOGG BROWN & ROOT LIMITED,300465-101,655.00,
DFID,DFID,21/03/2018,Hostile Environment Training,Middle East and North Africa Division,KELLOGG BROWN & ROOT LIMITED,100146-101,655.00,
DFID,DFID,05/03/2018,Hostile Environment Training,East and Central Africa,KELLOGG BROWN & ROOT LIMITED,101633-101,545.83,
DFID,DFID,29/03/2018,Training - Course Fees,Research and Evidence Division,LIVERPOOL SCHOOL OF TROPICAL MEDICINE,203874-107,"6,825.00",
DFID,DFID,12/03/2018,Project delivery costs – supplier services,Research and Evidence Division,London School of Hygiene and Tropical Medicine,203569-102,"227,959.52",
DFID,DFID,15/03/2018,Project delivery costs – supplier services,Research and Evidence Division,London School of Hygiene and Tropical Medicine,203806-102,"282,056.31",
DFID,DFID,28/03/2018,Project delivery costs – supplier services,East and Central Africa,London School of Hygiene and Tropical Medicine,203155-103,"331,462.00",
DFID,DFID,28/03/2018,Project delivery costs – supplier services,East and Central Africa,London School of Hygiene and Tropical Medicine,203155-103,"263,840.00",
DFID,DFID,15/03/2018,Research and development costs - supplier services,Research and Evidence Division,London School of Hygiene and Tropical Medicine,201889-103,"225,872.29",
DFID,DFID,27/03/2018,Aid Programme - Accountable Grant Payments,Research and Evidence Division,LOUGHBOROUGH UNIVERSITY,203781-107,"19,618.70",
DFID,DFID,27/03/2018,Aid Programme - Accountable Grant Payments,Research and Evidence Division,LOUGHBOROUGH UNIVERSITY,203781-107,"15,978.50",
DFID,DFID,27/03/2018,Aid Programme - Accountable Grant Payments,Research and Evidence Division,LOUGHBOROUGH UNIVERSITY,203781-107,"19,632.41",
DFID,DFID,12/03/2018,Aid Programme - Core contributions,Research and Evidence Division,MEDICAL RESEARCH COUNCIL,201267-106,"764,925.59",
DFID,DFID,13/03/2018,Aid Programme - Core contributions,Research and Evidence Division,MEDICAL RESEARCH COUNCIL,201267-107,"146,782.24",
DFID,DFID,12/03/2018,Aid Programme - Core contributions,Research and Evidence Division,MEDICAL RESEARCH COUNCIL,203093-102,"243,164.16",
DFID,DFID,28/03/2018,Project delivery costs – supplier services,East and Central Africa,MOTT MACDONALD LTD,203871-102,"95,519.42",
DFID,DFID,28/03/2018,Project delivery costs – supplier services,East and Central Africa,MOTT MACDONALD LTD,203871-107,"34,490.01",
DFID,DFID,26/03/2018,Project delivery costs – supplier services,"Asia, Caribbean and Overseas Territories",MOTT MACDONALD LTD,205138-102,"459,571.00",
DFID,DFID,07/03/2018,Project delivery costs – supplier services,East and Central Africa,MOTT MACDONALD LTD,202893-102,"68,424.28",
DFID,DFID,22/03/2018,Project delivery costs – supplier services,West and Southern Africa,MOTT MACDONALD LTD,205234-102,"213,909.83",
DFID,DFID,05/03/2018,Project delivery costs – supplier services,West and Southern Africa,MOTT MACDONALD LTD,205195-103,"18,809.57",
DFID,DFID,28/03/2018,Project delivery costs – supplier services,West and Southern Africa,MOTT MACDONALD LTD,202942-102,"400,834.80",
DFID,DFID,22/03/2018,Project delivery costs – supplier services,"Asia, Caribbean and Overseas Territories",MOTT MACDONALD LTD,202488-107,"311,976.88",
DFID,DFID,29/03/2018,Project delivery costs – supplier services,Policy Division,MOTT MACDONALD LTD,203148-101,"185,127.94",
DFID,DFID,09/03/2018,Project delivery costs – supplier services,Policy Division,MOTT MACDONALD LTD,203148-101,"291,986.44",
DFID,DFID,08/03/2018,Project delivery costs – supplier services,East and Central Africa,MOTT MACDONALD LTD,203641-103,"24,673.19",
DFID,DFID,23/03/2018,Project delivery costs – supplier services,West and Southern Africa,MOTT MACDONALD LTD,203154-103,"200,000.00",
DFID,DFID,23/03/2018,Project delivery costs – supplier services,East and Central Africa,MOTT MACDONALD LTD,203363-103,"464,663.05",
DFID,DFID,21/03/2018,Project delivery costs – supplier services,East and Central Africa,MOTT MACDONALD LTD,204288-103,"255,702.58",
DFID,DFID,28/03/2018,Project delivery costs – supplier services,"Asia, Caribbean and Overseas Territories",MOTT MACDONALD LTD,204277-102,"88,053.21",
DFID,DFID,28/03/2018,Aid Programme - Challenge Fund payments,"Asia, Caribbean and Overseas Territories",MOTT MACDONALD LTD,204277-104,"330,393.08",
DFID,DFID,29/03/2018,Project delivery costs – supplier services,"Asia, Caribbean and Overseas Territories",MOTT MACDONALD LTD,204023-104,"176,879.73",
DFID,DFID,28/03/2018,Data Network - land lines,Business Solutions Division Level,VODAFONE LIMITED,203329-103,"185,317.17",Rental charge for telecommunication data links (WAN) for offices out with the European Union for January 2018
DFID,DFID,28/03/2018,Data Network - land lines,Business Solutions Division Level,VODAFONE LIMITED,203329-103,"2,219.22",
DFID,DFID,28/03/2018,Telephone Usage & services,Business Solutions Division Level,VODAFONE LIMITED,203329-103,"6,954.16",
DFID,DFID,29/03/2018,Telephone Usage & services,Business Solutions Division Level,VODAFONE LIMITED,200002-168,"21,480.86",
DFID,DFID,28/03/2018,Data Network - land lines,Business Solutions Division Level,VODAFONE LIMITED,200002-185,"2,219.22",
DFID,DFID,28/03/2018,Telephone Usage & services,Business Solutions Division Level,VODAFONE LIMITED,200002-185,"6,954.17",
DFID,DFID,09/03/2018,Data Network - land lines,Business Solutions Division Level,VODAFONE LIMITED,200002-187,"14,892.07",
DFID,DFID,09/03/2018,Aid Programme - Accountable Grant Payments,Middle East and North Africa Division,MINES ADVISORY GROUP,300480-101,"269,997.00",
DFID,DFID,26/03/2018,Project delivery costs – supplier services,East and Central Africa,MAXWELL STAMP PLC,204626-101,"464,845.96",
DFID,DFID,22/03/2018,Aid Programme - Core contributions,Research and Evidence Division,MET OFFICE,204624-105,"45,548.00",
DFID,DFID,21/03/2018,Aid Programme - Core contributions,Research and Evidence Division,MET OFFICE,204624-105,"129,253.20",
DFID,DFID,21/03/2018,Aid Programme - Core contributions,East and Central Africa,MET OFFICE,204624-107,"156,885.60",
DFID,DFID,24/03/2018,Aid Programme - Core contributions,East and Central Africa,MET OFFICE,204624-103,"651,272.00",
DFID,DFID,20/03/2018,Aid Programme - Accountable Grant Payments,Middle East and North Africa Division,MERCY CORPS EUROPE,300034-101,"1,098,751.00",
DFID,DFID,27/03/2018,Aid Programme - Accountable Grant Payments,Middle East and North Africa Division,Supplier Name withheld,300090-102,"482,260.00",
DFID,DFID,26/03/2018,Print Services,Business Solutions Division Level,RICOH UK LTD,200001-113,"25,830.97",Managed Print Service costs for the period April 2017 to March 2018
DFID,DFID,02/03/2018,Aid Programme - Accountable Grant Payments,"Conflict, Humanitarian, Security & Stabilisation Division",MAPACTION,202878-104,"51,262.92",
DFID,DFID,23/03/2018,Aid Programme - Accountable Grant Payments,West and Southern Africa,OXFAM INSTITUTIONAL INCOME ACCOUNT,300067-106,"1,015,148.00",
DFID,DFID,26/03/2018,Aid Programme - Accountable Grant Payments,East and Central Africa,OXFAM INSTITUTIONAL INCOME ACCOUNT,204019-124,"258,115.00",
DFID,DFID,26/03/2018,Accountable Grant Payments,East and Central Africa,OXFAM INSTITUTIONAL INCOME ACCOUNT,204019-127,"1,032,460.00",
DFID,DFID,20/03/2018,Project delivery costs – supplier services,Research and Evidence Division,OXFORD POLICY MANAGEMENT,203962-102,"105,895.00",
DFID,DFID,16/03/2018,Project delivery costs – supplier services,West and Southern Africa,OXFORD POLICY MANAGEMENT,101613-101,"6,755.01",
DFID,DFID,13/03/2018,Project delivery costs – supplier services,West and Southern Africa,OXFORD POLICY MANAGEMENT,101613-101,"6,211.50",
DFID,DFID,19/03/2018,Project delivery costs – supplier services,"Asia, Caribbean and Overseas Territories",OXFORD POLICY MANAGEMENT,201367-104,"41,950.00",
DFID,DFID,14/03/2018,Project delivery costs – supplier services,"Asia, Caribbean and Overseas Territories",OXFORD POLICY MANAGEMENT,300238-102,"48,811.42",
DFID,DFID,21/03/2018,Project delivery costs – supplier services,East and Central Africa,OXFORD POLICY MANAGEMENT,200221-107,"26,965.82",
DFID,DFID,22/03/2018,Project delivery costs – supplier services,East and Central Africa,OXFORD POLICY MANAGEMENT,200221-107,"11,695.31",
DFID,DFID,26/03/2018,Project delivery costs – supplier services,West and Southern Africa,OXFORD POLICY MANAGEMENT,203161-102,"227,274.45",
DFID,DFID,02/03/2018,Project delivery costs – supplier services,West and Southern Africa,OXFORD POLICY MANAGEMENT,203161-102,"39,650.00",
DFID,DFID,26/03/2018,Project delivery costs – supplier services,West and Southern Africa,OXFORD POLICY MANAGEMENT,203161-102,"69,925.00",
DFID,DFID,14/03/2018,Project delivery costs – supplier services,Middle East and North Africa Division,OXFORD POLICY MANAGEMENT,300239-102,"22,265.78",
DFID,DFID,09/03/2018,Project delivery costs – supplier services,West and Southern Africa,OXFORD POLICY MANAGEMENT,205126-101,"229,902.80",
DFID,DFID,29/03/2018,Project delivery costs – supplier services,"Asia, Caribbean and Overseas Territories",OXFORD POLICY MANAGEMENT,202488-101,"89,876.00",
DFID,DFID,12/03/2018,Project delivery costs – supplier services,"Asia, Caribbean and Overseas Territories",OXFORD POLICY MANAGEMENT,202697-102,"29,892.19",
DFID,DFID,13/03/2018,Project delivery costs – supplier services,"Asia, Caribbean and Overseas Territories",OXFORD POLICY MANAGEMENT,202697-102,"3,736.52",
DFID,DFID,07/03/2018,Project delivery costs – supplier services,West and Southern Africa,OXFORD POLICY MANAGEMENT,201629-104,"36,399.98",
DFID,DFID,22/03/2018,Project delivery costs – supplier services,East and Central Africa,OXFORD POLICY MANAGEMENT,204005-103,"77,740.81",
DFID,DFID,12/03/2018,Project delivery costs – supplier services,"Asia, Caribbean and Overseas Territories",OXFORD POLICY MANAGEMENT,202367-103,"313,398.65",
DFID,DFID,20/03/2018,Project delivery costs – supplier services,"Asia, Caribbean and Overseas Territories",OXFORD POLICY MANAGEMENT,202367-103,"324,884.14",
DFID,DFID,22/03/2018,Project delivery costs – supplier services,West and Southern Africa,OXFORD POLICY MANAGEMENT,203536-108,"4,646.60",
DFID,DFID,27/03/2018,Project delivery costs – supplier services,Research and Evidence Division,OXFORD POLICY MANAGEMENT,203339-105,"14,437.00",
DFID,DFID,16/03/2018,Project delivery costs – supplier services,Research and Evidence Division,OXFORD POLICY MANAGEMENT,203339-105,"13,569.60",
DFID,DFID,07/03/2018,Project delivery costs – supplier services,Research and Evidence Division,OXFORD POLICY MANAGEMENT,203339-105,"35,600.00",
DFID,DFID,21/03/2018,Project delivery costs – supplier services,Policy Division,OXFORD POLICY MANAGEMENT,203166-107,"12,000.00",
DFID,DFID,22/03/2018,Project delivery costs – supplier services,"Asia, Caribbean and Overseas Territories",OXFORD POLICY MANAGEMENT,203174-102,"25,755.29",
DFID,DFID,08/03/2018,Project delivery costs – supplier services,West and Southern Africa,OXFORD POLICY MANAGEMENT,205066-101,"194,776.29",
DFID,DFID,09/03/2018,Project delivery costs – supplier services,East and Central Africa,OXFORD POLICY MANAGEMENT,204258-102,"187,088.92",
DFID,DFID,13/03/2018,Project delivery costs – supplier services,Policy Division,OXFORD POLICY MANAGEMENT,203572-102,"51,999.60",
DFID,DFID,20/03/2018,Research and development costs - supplier services,Research and Evidence Division,OXFORD POLICY MANAGEMENT,204773-102,"48,929.00",
DFID,DFID,05/03/2018,Research and development costs - supplier services,Research and Evidence Division,OXFORD POLICY MANAGEMENT,204773-102,"190,314.11",
DFID,DFID,07/03/2018,Research and development costs - supplier services,Research and Evidence Division,OXFORD POLICY MANAGEMENT,204773-102,"48,228.33",
DFID,DFID,05/03/2018,Project delivery costs – supplier services,Economic Development Division,OXFORD POLICY MANAGEMENT,204256-101,"158,382.25",
DFID,DFID,02/03/2018,Project delivery costs – supplier services,Research and Evidence Division,OXFORD POLICY MANAGEMENT,204322-102,"778,635.53",
DFID,DFID,07/03/2018,Project delivery costs – supplier services,"Asia, Caribbean and Overseas Territories",OXFORD POLICY MANAGEMENT,114293-105,"90,418.00",
DFID,DFID,08/03/2018,Project delivery costs – supplier services,"Asia, Caribbean and Overseas Territories",OXFORD POLICY MANAGEMENT,114293-105,"90,418.00",
DFID,DFID,20/03/2018,Project delivery costs – supplier services,East and Central Africa,OXFORD POLICY MANAGEMENT,203307-105,"61,253.46",
DFID,DFID,29/03/2018,Project delivery costs – supplier services,East and Central Africa,OXFORD POLICY MANAGEMENT,204339-103,"165,895.44",
DFID,DFID,02/03/2018,Project delivery costs – supplier services,West and Southern Africa,OXFORD POLICY MANAGEMENT,202623-110,"28,557.86",
DFID,DFID,06/03/2018,Project delivery costs – supplier services,Research and Evidence Division,OXFORD POLICY MANAGEMENT,203339-105,"18,021.47",
DFID,DFID,15/03/2018,Project delivery costs – supplier services,"Asia, Caribbean and Overseas Territories",OPTIONS CONSULTANCY SERVICES LIMITED,203390-104,"40,480.00",
DFID,DFID,15/03/2018,Project delivery costs – supplier services,"Asia, Caribbean and Overseas Territories",OPTIONS CONSULTANCY SERVICES LIMITED,203390-104,"38,350.00",
DFID,DFID,21/03/2018,Project delivery costs – supplier services,"Asia, Caribbean and Overseas Territories",OPTIONS CONSULTANCY SERVICES LIMITED,205145-101,"148,900.00",
DFID,DFID,27/03/2018,Project delivery costs – supplier services,"Asia, Caribbean and Overseas Territories",OPTIONS CONSULTANCY SERVICES LIMITED,205145-101,"100,000.00",
DFID,DFID,09/03/2018,Project delivery costs – supplier services,"Asia, Caribbean and Overseas Territories",OPTIONS CONSULTANCY SERVICES LIMITED,205145-103,"65,143.00",
DFID,DFID,09/03/2018,Project delivery costs – supplier services,"Asia, Caribbean and Overseas Territories",OPTIONS CONSULTANCY SERVICES LIMITED,205145-106,"37,225.00",
DFID,DFID,21/03/2018,Project delivery costs – supplier services,East and Central Africa,OPTIONS CONSULTANCY SERVICES LIMITED,203024-103,"150,000.00",
DFID,DFID,21/03/2018,Project delivery costs – supplier services,East and Central Africa,OPTIONS CONSULTANCY SERVICES LIMITED,203024-103,"80,000.00",
DFID,DFID,13/03/2018,Project delivery costs – supplier services,West and Southern Africa,OPTIONS CONSULTANCY SERVICES LIMITED,202214-103,"177,725.00",
DFID,DFID,06/03/2018,Office Equipment - Purchases,Group Operations,ORANGEBOX LTD,203717-101,877.49,
DFID,DFID,06/03/2018,Project delivery costs – supplier services,Economic Development Division,PRICEWATERHOUSECOOPERS,204250-101,"134,667.17",
DFID,DFID,06/03/2018,Project delivery costs – supplier services,Economic Development Division,PRICEWATERHOUSECOOPERS,204250-102,"59,834.99",
DFID,DFID,23/03/2018,Project delivery costs – supplier services,Economic Development Division,PRICEWATERHOUSECOOPERS,114178-104,"327,274.87",
DFID,DFID,23/03/2018,Project delivery costs – supplier services,Economic Development Division,PRICEWATERHOUSECOOPERS,114178-104,"88,808.62",
DFID,DFID,06/03/2018,Project delivery costs – supplier services,Economic Development Division,PRICEWATERHOUSECOOPERS,114178-104,"345,357.24",
DFID,DFID,05/03/2018,Project delivery costs – supplier services,Economic Development Division,PRICEWATERHOUSECOOPERS,204531-101,"126,721.04",
DFID,DFID,26/03/2018,Project delivery costs – supplier services,West and Southern Africa,PRICEWATERHOUSECOOPERS,203161-104,"386,566.00",
DFID,DFID,05/03/2018,Project delivery costs – supplier services,Economic Development Division,PRICEWATERHOUSECOOPERS,202939-113,"70,564.00",
DFID,DFID,05/03/2018,Project delivery costs – supplier services,Economic Development Division,PRICEWATERHOUSECOOPERS,202939-113,"145,936.75",
DFID,DFID,27/03/2018,Project delivery costs – supplier services,Economic Development Division,PRICEWATERHOUSECOOPERS,202939-113,"37,518.00",
DFID,DFID,29/03/2018,Project delivery costs – supplier services,Research and Evidence Division,PRICEWATERHOUSECOOPERS,203835-104,"142,316.47",
DFID,DFID,27/03/2018,Project delivery costs – supplier services,Research and Evidence Division,PRICEWATERHOUSECOOPERS,203835-104,"5,992.07",
DFID,DFID,27/03/2018,Project delivery costs – supplier services,Research and Evidence Division,PRICEWATERHOUSECOOPERS,200822-103,"13,552.54",
DFID,DFID,27/03/2018,Project delivery costs – supplier services,"Asia, Caribbean and Overseas Territories",PRICEWATERHOUSECOOPERS,205093-103,"17,992.43",
DFID,DFID,26/03/2018,Project delivery costs – supplier services,"Asia, Caribbean and Overseas Territories",PRICEWATERHOUSECOOPERS,205093-103,"725,425.00",
DFID,DFID,26/03/2018,Project delivery costs – supplier services,"Asia, Caribbean and Overseas Territories",PRICEWATERHOUSECOOPERS,205093-103,"989,026.00",
DFID,DFID,22/03/2018,Project delivery costs – supplier services,"Asia, Caribbean and Overseas Territories",PRICEWATERHOUSECOOPERS,300109-101,"78,782.41",
DFID,DFID,13/03/2018,Project delivery costs – supplier services,"Asia, Caribbean and Overseas Territories",PRICEWATERHOUSECOOPERS,300109-101,"39,391.58",
DFID,DFID,13/03/2018,Project delivery costs – supplier services,"Asia, Caribbean and Overseas Territories",PRICEWATERHOUSECOOPERS,300109-102,"13,130.52",
DFID,DFID,22/03/2018,Project delivery costs – supplier services,"Asia, Caribbean and Overseas Territories",PRICEWATERHOUSECOOPERS,300109-102,"26,260.80",
DFID,DFID,05/03/2018,Project delivery costs – supplier services,Economic Development Division,PRICEWATERHOUSECOOPERS,202939-103,"78,511.50",
DFID,DFID,27/03/2018,Project delivery costs – supplier services,Economic Development Division,PRICEWATERHOUSECOOPERS,202939-103,"65,054.27",
DFID,DFID,05/03/2018,Project delivery costs – supplier services,Economic Development Division,PRICEWATERHOUSECOOPERS,202939-103,"48,022.13",
DFID,DFID,27/03/2018,Project delivery costs – supplier services,Economic Development Division,PRICEWATERHOUSECOOPERS,202939-115,"11,358.00",
DFID,DFID,05/03/2018,Project delivery costs – supplier services,Economic Development Division,PRICEWATERHOUSECOOPERS,202939-115,"16,509.00",
DFID,DFID,05/03/2018,Project delivery costs – supplier services,Economic Development Division,PRICEWATERHOUSECOOPERS,202939-115,"14,848.20",
DFID,DFID,07/03/2018,Storage & Distribution costs,"Asia, Caribbean and Overseas Territories",PICKFORDS LTD,101624-101,625.00,
DFID,DFID,07/03/2018,Storage & Distribution costs,"Asia, Caribbean and Overseas Territories",PICKFORDS LTD,101624-101,"2,615.96",
DFID,DFID,21/03/2018,Storage & Distribution costs,Economic Development Division,PICKFORDS LTD,202373-101,915.00,
DFID,DFID,19/03/2018,Storage & Distribution costs,West and Southern Africa,PICKFORDS LTD,101610-101,"1,087.70",
DFID,DFID,26/03/2018,Storage & Distribution costs,West and Southern Africa,PICKFORDS LTD,101629-101,575.14,
DFID,DFID,19/03/2018,Storage & Distribution costs,West and Southern Africa,PICKFORDS LTD,101622-101,865.14,
DFID,DFID,07/03/2018,Storage & Distribution costs,West and Southern Africa,PICKFORDS LTD,101613-101,609.29,
DFID,DFID,02/03/2018,Storage & Distribution costs,"Asia, Caribbean and Overseas Territories",PICKFORDS LTD,100185-101,669.75,
DFID,DFID,27/03/2018,Storage & Distribution costs,East and Central Africa,PICKFORDS LTD,101612-101,"13,986.58",
DFID,DFID,28/03/2018,Storage & Distribution costs,East and Central Africa,PICKFORDS LTD,101625-110,598.60,
DFID,DFID,06/03/2018,Storage & Distribution costs,"Asia, Caribbean and Overseas Territories",PICKFORDS LTD,101624-101,630.19,
DFID,DFID,13/03/2018,Storage & Distribution costs,West and Southern Africa,PICKFORDS LTD,101618-101,"1,205.91",
DFID,DFID,22/03/2018,Storage & Distribution costs,"Asia, Caribbean and Overseas Territories",PICKFORDS LTD,201724-154,651.60,
DFID,DFID,06/03/2018,Storage & Distribution costs,West and Southern Africa,PICKFORDS LTD,101638-101,524.73,
DFID,DFID,19/03/2018,Storage & Distribution costs,"Asia, Caribbean and Overseas Territories",PICKFORDS LTD,101603-101,"1,176.29",
DFID,DFID,19/03/2018,Storage & Distribution costs,"Asia, Caribbean and Overseas Territories",PICKFORDS LTD,101603-101,505.86,
DFID,DFID,20/03/2018,Storage & Distribution costs,"Asia, Caribbean and Overseas Territories",PICKFORDS LTD,101603-101,"6,782.41",
DFID,DFID,12/03/2018,Storage & Distribution costs,"Asia, Caribbean and Overseas Territories",PICKFORDS LTD,101604-101,617.83,
DFID,DFID,19/03/2018,Storage & Distribution costs,West and Southern Africa,PICKFORDS LTD,101622-101,"1,079.33",
DFID,DFID,13/03/2018,Storage & Distribution costs,West and Southern Africa,PICKFORDS LTD,101622-106,762.87,
DFID,DFID,07/03/2018,Storage & Distribution costs,West and Southern Africa,PICKFORDS LTD,101622-106,"2,615.95",
DFID,DFID,07/03/2018,Storage & Distribution costs,West and Southern Africa,PICKFORDS LTD,101622-106,625.00,
DFID,DFID,29/03/2018,Storage & Distribution costs,East and Central Africa,PICKFORDS LTD,101630-101,736.50,
DFID,DFID,12/03/2018,Storage & Distribution costs,Middle East and North Africa Division,PICKFORDS LTD,201705-101,"1,066.14",
DFID,DFID,27/03/2018,Aid Programme - Accountable Grant Payments,East and Central Africa,POPULATION  SERVICES INTERNATIONAL,204903-102,"390,000.00",
DFID,DFID,13/03/2018,Project delivery costs – supplier services,East and Central Africa,POPULATION  SERVICES INTERNATIONAL,204266-103,"303,908.00",
DFID,DFID,08/03/2018,Project delivery costs – supplier services,East and Central Africa,POPULATION  SERVICES INTERNATIONAL,300304-102,"596,380.00",
DFID,DFID,05/03/2018,Aid Programme - Accountable Grant Payments,East and Central Africa,THE RAINFOREST FOUNDATION UK,204956-101,"601,646.51",
DFID,DFID,07/03/2018,Training Providers/Facilitation Services,Economic Development Division,RADA ENTERPRISES LTD,100124-101,780.00,
DFID,DFID,19/03/2018,Project delivery costs – supplier services,West and Southern Africa,THE SAVE THE CHILDREN FUND,202623-117,"24,971.47",
DFID,DFID,29/03/2018,Aid Programme - Accountable Grant Payments,West and Southern Africa,THE SAVE THE CHILDREN FUND,203981-108,"49,451.40",
DFID,DFID,28/03/2018,Project delivery costs – supplier services,East and Central Africa,THE SAVE THE CHILDREN FUND,202891-102,"99,292.00",
DFID,DFID,29/03/2018,Aid Programme - Humanitarian Material Relief Assistance and Services,"Conflict, Humanitarian, Security & Stabilisation Division",SAVE THE CHILDREN,204118-102,"1,500,000.00",
DFID,DFID,22/03/2018,Aid Programme - Humanitarian Material Relief Assistance and Services,"Conflict, Humanitarian, Security & Stabilisation Division",SAVE THE CHILDREN,204897-101,"970,960.00",
DFID,DFID,20/03/2018,Research and development costs - supplier services,Research and Evidence Division,SCHOOL OF ORIENTAL & AFRICAN STUDIES (UK),203752-104,"157,670.09",
DFID,DFID,28/03/2018,Project delivery costs – supplier services,Policy Division,Social Development Direct Ltd,203245-106,"21,769.20",
DFID,DFID,23/03/2018,Operating Lease rental of buildings,Non-Departmental Public Body,SCOTLAND OFFICE,204859-104,"9,808.77",
DFID,DFID,14/03/2018,Project delivery costs – supplier services,Policy Division,SOUTHWOOD CONSULTANTS,204963-101,"3,240.00",
DFID,DFID,06/03/2018,Aid Programme - Accountable Grant Payments,Policy Division,SIGHT SAVERS INTERNATIONAL,203559-127,"460,000.00",
DFID,DFID,26/03/2018,Aid Programme - Accountable Grant Payments,West and Southern Africa,SAVE THE CHILDREN UK,300298-101,"96,663.00",
DFID,DFID,23/03/2018,Storage & Distribution costs,Business Solutions Division Level,TNT Express (UK) Ltd,200001-101,"7,415.78",
DFID,DFID,20/03/2018,Storage & Distribution costs,Business Solutions Division Level,TNT Express (UK) Ltd,200001-101,"5,400.68",
DFID,DFID,26/03/2018,Legal costs,Economic Development Division,GOVERNMENT LEGAL DEPARTMENT,300351-101,"2,357.28",
DFID,DFID,12/03/2018,Aid Programme - Voluntary contributions,Middle East and North Africa Division,UNICEF,300331-101,"80,000.00",
DFID,DFID,22/03/2018,Research and development costs - supplier services,Research and Evidence Division,TEARFUND,204584-149,"12,487.00",
DFID,DFID,23/03/2018,Aid Programme - Accountable Grant Payments,Economic Development Division,UNIVERSITY OF BIRMINGHAM,204757-103,"46,748.03",
DFID,DFID,19/03/2018,Aid Programme - Accountable Grant Payments,Research and Evidence Division,University Of Durham,201884-112,"94,747.97",
DFID,DFID,05/03/2018,Research and development costs - supplier services,Research and Evidence Division,University of Oxford.,201900-105,"591,878.15",
DFID,DFID,29/03/2018,Aid Programme - Voluntary contributions,West and Southern Africa,UNDP CONTRIBUTIONS ACCOUNT,203878-102,"400,000.00",
DFID,DFID,26/03/2018,Aid Programme - Core contributions,"Asia, Caribbean and Overseas Territories",Supplier Name withheld,205089-101,"2,000,000.00",
DFID,DFID,14/03/2018,Aid Programme - Core contributions,"Asia, Caribbean and Overseas Territories",UNDP GBP Contributions,202328-110,"35,991.50",
DFID,DFID,09/03/2018,Aid Programme - Core contributions,"Asia, Caribbean and Overseas Territories",UNDP GBP Contributions,202949-104,"5,641.92",
DFID,DFID,14/03/2018,Aid Programme - Voluntary contributions,"Asia, Caribbean and Overseas Territories",UNDP GBP Contributions,203491-101,"120,000.00",
DFID,DFID,14/03/2018,Aid Programme - Voluntary contributions,"Asia, Caribbean and Overseas Territories",UNDP GBP Contributions,203491-103,"80,000.00",
DFID,DFID,14/03/2018,Aid Programme - Voluntary contributions,"Asia, Caribbean and Overseas Territories",UNDP GBP Contributions,203491-104,"100,000.00",
DFID,DFID,14/03/2018,Aid Programme - Voluntary contributions,"Asia, Caribbean and Overseas Territories",UNDP GBP Contributions,203491-105,"50,000.00",
DFID,DFID,09/03/2018,Aid Programme - Pooled/Basket funding,West and Southern Africa,UNDP GBP Contributions,203878-106,"500,000.00",
DFID,DFID,05/03/2018,Research and development costs - supplier services,Research and Evidence Division,UNIVERSITY OF LEEDS,201025-103,"274,501.72",
DFID,DFID,07/03/2018,Project delivery costs – supplier services,East and Central Africa,United Nation’s Children Fund (UNICEF),203473-103,"49,860.00",
DFID,DFID,01/03/2018,Aid Programme - Strategic Grant Arrangement payments,Research and Evidence Division,United Nation’s Children Fund (UNICEF),203705-134,"238,680.00",
DFID,DFID,13/03/2018,Aid Programme - Voluntary contributions,East and Central Africa,United Nation’s Children Fund (UNICEF),204019-118,"3,196,551.00",
DFID,DFID,15/03/2018,Aid Programme - Accountable Grant Payments,International Relations Division,UNESCO (,204875-101,"70,166.56",
DFID,DFID,20/03/2018,Telephone Usage & services,Business Solutions Division Level,VODAFONE CORPORATE,200002-170,"29,520.67",UK HQ Mobile rental and call charges for February 2018
DFID,DFID,20/03/2018,Telephone Usage & services,Business Solutions Division Level,VODAFONE CORPORATE,200002-170,"9,980.20",
DFID,DFID,19/03/2018,Aid Programme - Accountable Grant Payments,Policy Division,UNICEF UK,203559-166,"340,952.76",
DFID,DFID,29/03/2018,Data Network - land lines,Business Solutions Division Level,VERIZON UK LIMITED,200002-126,"9,216.41",
DFID,DFID,29/03/2018,Data Network - land lines,Business Solutions Division Level,VERIZON UK LIMITED,200002-126,"9,813.72",
DFID,DFID,07/03/2018,Aid Programme - Accountable Grant Payments,Middle East and North Africa Division,WORLD VISION,300460-102,"43,789.00",
DFID,DFID,07/03/2018,Aid Programme - Accountable Grant Payments,Middle East and North Africa Division,WORLD VISION,300460-102,"67,899.00",
DFID,DFID,07/03/2018,Aid Programme - Accountable Grant Payments,Economic Development Division,WESTMINSTER FOUNDATION FOR DEMOCRACY,204757-101,"275,295.00",
DFID,DFID,21/03/2018,Hotels - Accommodation only,West and Southern Africa,Wendels Guest House,101618-101,557.90,
DFID,DFID,09/03/2018,Air fares,"Asia, Caribbean and Overseas Territories",Mukwa Travel and Tours,101621-101,777.79,
DFID,DFID,23/03/2018,Recruitment costs,West and Southern Africa,Zambia Daily Mail Ltd,101637-101,572.73,
DFID,DFID,23/03/2018,Recruitment costs,West and Southern Africa,Times Printpak (Z) Ltd,101637-101,524.10,
DFID,DFID,23/03/2018,Air fares,"Asia, Caribbean and Overseas Territories",Jaya Travels & Tours Ltd,101621-108,577.85,
DFID,DFID,20/03/2018,Air fares,"Asia, Caribbean and Overseas Territories",Jaya Travels & Tours Ltd,101621-101,756.00,
DFID,DFID,23/03/2018,Staff Travel - Air Fares,"Asia, Caribbean and Overseas Territories",Jaya Travels & Tours Ltd,101621-101,"1,272.61",
DFID,DFID,23/03/2018,Air fares,West and Southern Africa,Jaya Travels & Tours Ltd,101620-101,893.15,
DFID,DFID,26/03/2018,Office Equipment - Purchases,"Asia, Caribbean and Overseas Territories",Constellation Pvt. Ltd,101621-101,"2,241.95",
DFID,DFID,20/03/2018,Hotels - Accommodation only,"Asia, Caribbean and Overseas Territories",Hotel Himalaya Pvt Ltd,101621-101,566.12,
DFID,DFID,19/03/2018,Air fares,West and Southern Africa,Jeffery Travels,101610-101,834.29,
DFID,DFID,15/03/2018,Air fares,West and Southern Africa,Jeffery Travels,101610-101,"1,563.35",
DFID,DFID,16/03/2018,Air fares,West and Southern Africa,Jeffery Travels,101610-101,"1,563.35",
DFID,DFID,14/03/2018,Project delivery costs – supplier services,West and Southern Africa,Accra City Hotel,204918-101,651.66,
DFID,DFID,05/03/2018,Hotels - Accommodation only,East and Central Africa,Sheraton Hotel,101635-101,667.31,
DFID,DFID,23/03/2018,Hotels - Accommodation only,Finance and Corporate Performance Division,Sheraton Hotel,202836-101,779.34,
DFID,DFID,23/03/2018,Hotels - Accommodation only,East and Central Africa,Sheraton Hotel,101635-101,518.15,
DFID,DFID,23/03/2018,Hotels - Accommodation only,East and Central Africa,Sheraton Hotel,101635-101,779.34,
DFID,DFID,23/03/2018,Hotels - Accommodation only,East and Central Africa,Sheraton Hotel,101635-101,909.22,
DFID,DFID,23/03/2018,Hotels - Accommodation only,East and Central Africa,Sheraton Hotel,101635-101,"1,039.10",
DFID,DFID,23/03/2018,Hotels - Accommodation only,West and Southern Africa,Sheraton Hotel,101618-101,519.56,
DFID,DFID,14/03/2018,Hotels - Accommodation only,East and Central Africa,Sheraton Hotel,101635-101,660.01,
DFID,DFID,28/03/2018,Data Network - land lines,Business Solutions Division Level,INFOCOM LTD,203329-102,"1,756.93",
DFID,DFID,19/03/2018,Air fares,East and Central Africa,Simbatravelcare Limited,101635-101,892.40,
DFID,DFID,19/03/2018,Air fares,East and Central Africa,Simbatravelcare Limited,101635-101,677.91,
DFID,DFID,01/03/2018,Air fares,East and Central Africa,Simbatravelcare Limited,101635-101,729.77,
DFID,DFID,14/03/2018,Air fares,East and Central Africa,Simbatravelcare Limited,101635-101,861.45,
DFID,DFID,14/03/2018,Air fares,East and Central Africa,Simbatravelcare Limited,101635-101,861.45,
DFID,DFID,20/03/2018,Air fares,West and Southern Africa,Simbatravelcare Limited,101613-101,518.23,
DFID,DFID,23/03/2018,Air fares,West and Southern Africa,Simbatravelcare Limited,101613-101,871.90,
DFID,DFID,23/03/2018,Air fares,East and Central Africa,Simbatravelcare Limited,203603-105,629.87,
DFID,DFID,16/03/2018,Air fares,East and Central Africa,WFP Somalia,101630-101,"2,693.41",
DFID,DFID,15/03/2018,Research and development costs - supplier services,Research and Evidence Division,The Population Council,201398-103,"357,924.02",
DFID,DFID,29/03/2018,Project delivery costs – supplier services,East and Central Africa, Khulisa Management Services,204970-107,"23,258.00",
DFID,DFID,21/03/2018,Hotels - Accommodation only,West and Southern Africa,Hotel Cardoso S A R L,101620-101,"1,155.19",
DFID,DFID,26/03/2018,Hotels - Accommodation only,West and Southern Africa,Hotel Cardoso S A R L,101620-101,"1,142.27",
DFID,DFID,16/03/2018,Hotels - Accommodation only,West and Southern Africa,Supplier Name withheld,101622-106,"2,349.24",
DFID,DFID,05/03/2018,Legal costs,West and Southern Africa,O.O. OLOWOKURE & CO.,101622-106,654.12,
DFID,DFID,26/03/2018,Project delivery costs – supplier services,West and Southern Africa,PKF Professional Services,203851-113,"9,826.10",
DFID,DFID,12/03/2018,Air fares,"Asia, Caribbean and Overseas Territories",MAF Bangladesh,101603-101,"1,226.85",
DFID,DFID,16/03/2018,Aid Programme - Accountable Grant Payments,East and Central Africa,Overseas Development Institute.,204458-117,"15,565.52",
DFID,DFID,16/03/2018,Aid Programme - Accountable Grant Payments,East and Central Africa,Overseas Development Institute.,204458-117,"123,170.17",
DFID,DFID,20/03/2018,Aid Programme - Accountable Grant Payments,Economic Development Division,Overseas Development Institute.,204252-127,986.10,
DFID,DFID,20/03/2018,Aid Programme - Accountable Grant Payments,Economic Development Division,Overseas Development Institute.,204252-127,"24,905.85",
DFID,DFID,13/03/2018,Aid Programme - Accountable Grant Payments,Economic Development Division,Overseas Development Institute.,204252-129,"18,172.31",
DFID,DFID,13/03/2018,Aid Programme - Accountable Grant Payments,Economic Development Division,Overseas Development Institute.,204252-129,"270,685.86",
DFID,DFID,09/03/2018,Aid Programme - Voluntary contributions,Middle East and North Africa Division,UN OCHA,300417-104,"1,000,000.00",
DFID,DFID,13/03/2018,Aid Programme - Humanitarian Material Relief Assistance and Services,"Asia, Caribbean and Overseas Territories",UN OCHA,204603-109,"2,000,000.00",
DFID,DFID,13/03/2018,Aid Programme - Humanitarian Material Relief Assistance and Services,"Asia, Caribbean and Overseas Territories",UN OCHA,204603-114,"800,000.00",
DFID,DFID,06/03/2018,Aid Programme - Humanitarian Material Relief Assistance and Services,"Conflict, Humanitarian, Security & Stabilisation Division",FAO,300491-101,"74,500.00",
DFID,DFID,23/03/2018,Aid Programme - Voluntary contributions,West and Southern Africa,FAO,203429-101,"187,669.00",
DFID,DFID,09/03/2018,Aid Programme - Voluntary contributions,East and Central Africa,FAO,205128-102,"3,200,000.00",
DFID,DFID,13/03/2018,Aid Programme - Voluntary contributions,East and Central Africa,WFP CONTRIBUTIONS UNIT,205128-102,"5,650,000.00",
DFID,DFID,29/03/2018,Aid Programme - Voluntary contributions,Middle East and North Africa Division,WFP CONTRIBUTIONS UNIT,300434-101,"5,000,000.00",
DFID,DFID,14/03/2018,Aid Programme - Voluntary contributions,West and Southern Africa,WFP CONTRIBUTIONS UNIT,300432-112,"2,250,197.00",
DFID,DFID,16/03/2018,Aid Programme - Voluntary contributions,East and Central Africa,WFP CONTRIBUTIONS UNIT,300245-102,"808,777.81",
DFID,DFID,21/03/2018,Aid Programme - Voluntary contributions,East and Central Africa,WFP CONTRIBUTIONS UNIT,204019-117,"500,000.00",
DFID,DFID,21/03/2018,Aid Programme - Voluntary contributions,East and Central Africa,WFP CONTRIBUTIONS UNIT,204019-101,"2,000,000.00",
DFID,DFID,08/03/2018,Telephone Usage & services,Business Solutions Division Level,KUBE NETWORKS LTD,200002-126,"1,082.12",
DFID,DFID,05/03/2018,Project delivery costs – supplier services,West and Southern Africa,IPA-International Procurement Agency (BV),205182-104,"11,436.32",
DFID,DFID,05/03/2018,Project delivery costs – supplier services,West and Southern Africa,IPA-International Procurement Agency (BV),205182-104,"11,499.59",
DFID,DFID,09/03/2018,DFID Purchased Relief Supplies,Policy Division,IPA-International Procurement Agency (BV),201724-144,"6,852.39",
DFID,DFID,20/03/2018,"Repairs, Maintenance and Alterations – Other Building Costs",Group Operations,EVAC+CHAIR INTERNATIONAL LTD,100106-101,780.00,
DFID,DFID,09/03/2018,Project delivery costs – supplier services,Policy Division,KPMG EAST AFRICA LTD,201724-102,"101,325.00",
DFID,DFID,23/03/2018,Research and development costs - supplier services,Research and Evidence Division,LONDON SCHOOL OF ECONOMICS AND POLITICAL SCIENCE,204428-102,"236,505.44",
DFID,DFID,21/03/2018,Project delivery costs – supplier services,East and Central Africa,UPPER QUARTILE,203871-108,"89,903.00",
DFID,DFID,20/03/2018,Project delivery costs – supplier services,West and Southern Africa,UPPER QUARTILE,202098-102,"36,082.00",
DFID,DFID,22/03/2018,Project delivery costs – supplier services,West and Southern Africa,Holiday Inn Accra,201629-103,"1,310.29",
DFID,DFID,07/03/2018,Aid Programme - Core contributions,"Asia, Caribbean and Overseas Territories",Supplier Name withheld,205112-101,"207,548.59",
DFID,DFID,26/03/2018,Aid Programme - Joint programme contribution,West and Southern Africa,UNFPA,204640-107,"1,492,699.00",
DFID,DFID,19/03/2018,Aid Programme - Joint programme contribution,West and Southern Africa,UNFPA,205074-106,"500,000.00",
DFID,DFID,16/03/2018,Aid Programme - Trust Funds contributions,West and Southern Africa,UNFPA,300360-101,"1,500,000.00",
DFID,DFID,15/03/2018,Aid Programme - Voluntary contributions,Middle East and North Africa Division,UNHCR,300404-102,"1,834,333.74",
DFID,DFID,15/03/2018,Aid Programme - Voluntary contributions,Middle East and North Africa Division,UNHCR,300404-102,"2,000,000.00",
DFID,DFID,27/03/2018,Project delivery costs – supplier services,Economic Development Division,KPMG LLP,204255-101,"21,425.93",
DFID,DFID,26/03/2018,Project delivery costs – supplier services,Economic Development Division,KPMG LLP,204255-101,795.64,
DFID,DFID,20/03/2018,Aid Programme - Voluntary contributions,Research and Evidence Division,UNDESA,205155-101,"600,000.00",
DFID,DFID,27/03/2018,Aid Programme - Voluntary contributions,Policy Division,WHO (GENEVA),300350-101,"2,000,000.00",
DFID,DFID,28/03/2018,Aid Programme - Voluntary contributions,West and Southern Africa,WHO (GENEVA),204640-104,"254,562.00",
DFID,DFID,28/03/2018,Aid Programme - Voluntary contributions,West and Southern Africa,WHO (GENEVA),204640-110,"33,493.00",
DFID,DFID,28/03/2018,Aid Programme - Voluntary contributions,West and Southern Africa,WHO (GENEVA),204640-111,"107,707.00",
DFID,DFID,27/03/2018,Aid Programme - Voluntary contributions,East and Central Africa,WHO (GENEVA),203155-104,"918,411.00",
DFID,DFID,16/03/2018,Aid Programme - Core contributions,Research and Evidence Division,WHO (GENEVA),202769-104,"1,000,000.00",
DFID,DFID,15/03/2018,Aid Programme - Core contributions,Research and Evidence Division,WHO (GENEVA),203083-102,"700,000.00",
DFID,DFID,14/03/2018,Aid Programme - Pooled/Basket funding,Research and Evidence Division,WHO (GENEVA),204765-104,"333,000.00",
DFID,DFID,06/03/2018,Subscriptions,Communications Division,THE PRESS ASSOCIATION,100197-101,621.23,
DFID,DFID,28/03/2018,Project delivery costs – supplier services,Middle East and North Africa Division,CHEMONICS,300460-101,"42,256.00",
DFID,DFID,12/03/2018,Aid Programme - Voluntary contributions,"Conflict, Humanitarian, Security & Stabilisation Division",IOM,300461-106,"10,000.00",
DFID,DFID,12/03/2018,Aid Programme - Accountable Grant Payments,West and Southern Africa,SEARCH FOR COMMON GROUND,202416-114,"250,000.00",
DFID,DFID,26/03/2018,Aid Programme - Accountable Grant Payments,West and Southern Africa,SEARCH FOR COMMON GROUND,203878-103,"500,000.00",
DFID,DFID,27/03/2018,Project delivery costs – supplier services,Research and Evidence Division,IPE Global Ltd.,205053-109,"44,738.52",
DFID,DFID,02/03/2018,Project delivery costs – supplier services,"Asia, Caribbean and Overseas Territories",IPE Global Ltd.,204237-101,"6,260.84",
DFID,DFID,05/03/2018,Project delivery costs – supplier services,"Asia, Caribbean and Overseas Territories",IPE Global Ltd.,204237-101,"51,920.00",
DFID,DFID,28/03/2018,Project delivery costs – supplier services,"Asia, Caribbean and Overseas Territories",IPE Global Ltd.,204237-101,"206,129.48",
DFID,DFID,28/03/2018,Project delivery costs – supplier services,"Asia, Caribbean and Overseas Territories",IPE Global Ltd.,204237-101,"10,009.34",
DFID,DFID,29/03/2018,Project delivery costs – supplier services,"Asia, Caribbean and Overseas Territories",IPE Global Ltd.,204794-103,"59,000.00",
DFID,DFID,29/03/2018,Project delivery costs – supplier services,"Asia, Caribbean and Overseas Territories",IPE Global Ltd.,204794-103,"79,650.00",
DFID,DFID,29/03/2018,Project delivery costs – supplier services,"Asia, Caribbean and Overseas Territories",IPE Global Ltd.,204794-103,"27,550.69",
DFID,DFID,29/03/2018,Project delivery costs – supplier services,"Asia, Caribbean and Overseas Territories",IPE Global Ltd.,204794-103,"159,300.00",
DFID,DFID,22/03/2018,Project delivery costs – supplier services,"Asia, Caribbean and Overseas Territories",IPE Global Ltd.,204623-113,"130,000.00",
DFID,DFID,15/03/2018,Aid Programme - Accountable Grant Payments,West and Southern Africa,EFInA,104187-104,"292,353.16",
DFID,DFID,28/03/2018,Aid Programme - Accountable Grant Payments,Research and Evidence Division,THE INTERNATIONAL COMMITTEE OF THE RED CROSS (ICRC),203705-121,"53,000.00",
DFID,DFID,27/03/2018,Aid Programme - Voluntary contributions,"Asia, Caribbean and Overseas Territories",THE INTERNATIONAL COMMITTEE OF THE RED CROSS (ICRC),300561-104,"4,335,000.00",
DFID,DFID,13/03/2018,Aid Programme - Accountable Grant Payments,Economic Development Division,International Centre for Trade and Sustainable Development,204717-101,"425,000.00",
DFID,DFID,02/03/2018,Aid Programme - Accountable Grant Payments,West and Southern Africa,INTERNATIONAL RESCUE COMMITTEE,300432-102,"326,691.09",
DFID,DFID,27/03/2018,Aid Programme - Accountable Grant Payments,West and Southern Africa,INTERNATIONAL RESCUE COMMITTEE,205182-103,"30,945.00",
DFID,DFID,14/03/2018,Aid Programme - Accountable Grant Payments,Middle East and North Africa Division,INTERNATIONAL RESCUE COMMITTEE,300349-101,"775,341.00",
DFID,DFID,19/03/2018,Aid Programme - Accountable Grant Payments,"Conflict, Humanitarian, Security & Stabilisation Division",INTERNATIONAL RESCUE COMMITTEE,204060-101,"32,155.00",
DFID,DFID,20/03/2018,Aid Programme - Core contributions,Research and Evidence Division,Medicines for Malaria Venture,300341-104,"2,000,000.00",
DFID,DFID,15/03/2018,Aid Programme - Core contributions,Research and Evidence Division,WELLCOME TRUST,204765-103,"255,327.00",
DFID,DFID,26/03/2018,Aid Programme - Core contributions,Policy Division,WORLD HEALTH ORGANISATION (WHO),204028-102,"5,000,000.00",
DFID,DFID,28/03/2018,Project delivery costs – supplier services,"Asia, Caribbean and Overseas Territories",ECORYS UK Ltd.,202328-102,"13,017.82",
DFID,DFID,08/03/2018,Aid Programme - Core contributions,Research and Evidence Division,BILL & MELINDA GATES FOUNDATION (USD),204420-103,"882,693.25",
DFID,DFID,12/03/2018,Aid Programme - Partnership Programme Arrangements,Policy Division,BILL & MELINDA GATES FOUNDATION (USD),201101-112,"416,184.13",
DFID,DFID,02/03/2018,Project delivery costs – supplier services,Non-Departmental Public Body,Southern Sun Hotels(T) Ltd (USD),204873-103,803.09,
DFID,DFID,12/03/2018,Aid Programme - Accountable Grant Payments,"Asia, Caribbean and Overseas Territories",Chinadialogue,202775-104,"18,525.87",
DFID,DFID,09/03/2018,Aid Programme - Joint programme contribution,Research and Evidence Division,Engineering & Physical Sciences Research Council,203781-106,"51,855.43",
DFID,DFID,28/03/2018,Project delivery costs – supplier services,West and Southern Africa,BMB  MOTT  MACDONALD,204242-102,"83,027.87",
DFID,DFID,07/03/2018,Project delivery costs – supplier services,East and Central Africa,BMB  MOTT  MACDONALD,202511-102,"356,562.81",
DFID,DFID,07/03/2018,Project delivery costs – supplier services,East and Central Africa,BMB  MOTT  MACDONALD,202511-102,"92,835.87",
DFID,DFID,22/03/2018,Fund monies to be managed and dispersed by the supplier,East and Central Africa,BMB  MOTT  MACDONALD,203383-101,"136,198.00",
DFID,DFID,12/03/2018,Aid Programme - Strategic Grant Arrangement payments,"Asia, Caribbean and Overseas Territories",International Water Management Institute (IWMI),202775-111,"44,098.00",
DFID,DFID,16/03/2018,Aid Programme - Accountable Grant Payments,"Asia, Caribbean and Overseas Territories",Manusher Jonno Foundation,204195-101,"400,022.00",
DFID,DFID,28/03/2018,Aid Programme - Accountable Grant Payments,"Asia, Caribbean and Overseas Territories",UCEP - Underpriveliged Childrens Education Programs,203870-104,"503,846.00",
DFID,DFID,07/03/2018,Project delivery costs – supplier services,East and Central Africa,Crowe Clark Whitehill,203986-105,"4,890.00",
DFID,DFID,06/03/2018,Project delivery costs – supplier services,East and Central Africa,Crowe Clark Whitehill,203986-105,"3,260.00",
DFID,DFID,28/03/2018,Project delivery costs – supplier services,East and Central Africa,Crowe Clark Whitehill,204635-103,"24,000.00",
DFID,DFID,27/03/2018,Project delivery costs – supplier services,West and Southern Africa,CARDNO EMERGING MARKETS (UK) LTD,204179-105,"122,337.08",
DFID,DFID,27/03/2018,Project delivery costs – supplier services,West and Southern Africa,CARDNO EMERGING MARKETS (UK) LTD,204179-105,"112,465.14",
DFID,DFID,27/03/2018,Project delivery costs – supplier services,West and Southern Africa,CARDNO EMERGING MARKETS (UK) LTD,204179-105,"26,151.51",
DFID,DFID,28/03/2018,Research and development costs - supplier services,Research and Evidence Division,CARDNO EMERGING MARKETS (UK) LTD,203048-107,"190,286.00",
DFID,DFID,28/03/2018,Project delivery costs – supplier services,East and Central Africa,CARDNO EMERGING MARKETS (UK) LTD,205052-104,"33,281.36",
DFID,DFID,28/03/2018,Aid Programme - Accountable Grant Payments,Research and Evidence Division,International Initiative for Impact Evaluation(3ie),200135-107,"253,174.00",
DFID,DFID,19/03/2018,Aid Programme - Accountable Grant Payments,Research and Evidence Division,International Initiative for Impact Evaluation(3ie),200135-108,"343,409.00",
DFID,DFID,02/03/2018,Aid Programme - Accountable Grant Payments,Research and Evidence Division,International Initiative for Impact Evaluation(3ie),200135-106,"62,629.00",
DFID,DFID,16/03/2018,Aid Programme - Accountable Grant Payments,Research and Evidence Division,International Initiative for Impact Evaluation(3ie),203650-104,"272,956.00",
DFID,DFID,29/03/2018,Bank Charges/Services,Group Operations,Government Actuary's Department,100182-101,"16,238.92",
DFID,DFID,02/03/2018,Bank Charges/Services,Group Operations,Government Actuary's Department,100182-101,"5,184.23",
DFID,DFID,12/03/2018,Aid Programme - Core contributions,Research and Evidence Division,Asian Vegetable Research and Development Center (AVRDC),205271-102,"800,000.00",
DFID,DFID,09/03/2018,Project delivery costs – supplier services,"Asia, Caribbean and Overseas Territories",RURAL RECONSTRUCTION NEPAL,203764-110,"43,056.00",
DFID,DFID,09/03/2018,Project delivery costs – supplier services,"Asia, Caribbean and Overseas Territories",RURAL RECONSTRUCTION NEPAL,203764-104,"727,214.00",
DFID,DFID,08/03/2018,Aid Programme - Voluntary contributions,"Conflict, Humanitarian, Security & Stabilisation Division", OECD,300358-105,"100,000.00",
DFID,DFID,27/03/2018,Training - Travel & Subsistence,"Asia, Caribbean and Overseas Territories",BONDS TRAVEL BUREAU,101624-101,567.69,
DFID,DFID,27/03/2018,Air fares,"Asia, Caribbean and Overseas Territories",BONDS TRAVEL BUREAU,101624-101,601.23,
DFID,DFID,29/03/2018,Training - Travel & Subsistence,"Asia, Caribbean and Overseas Territories",BONDS TRAVEL BUREAU,101624-101,684.52,
DFID,DFID,05/03/2018,Air fares,"Asia, Caribbean and Overseas Territories",BONDS TRAVEL BUREAU,101624-101,735.81,
DFID,DFID,06/03/2018,Data Network - land lines,Business Solutions Division Level,NAYATEL (PVT) LTD,203329-102,936.56,
DFID,DFID,15/03/2018,Air fares,"Asia, Caribbean and Overseas Territories",OMAR TRAVELS,204053-101,569.00,
DFID,DFID,05/03/2018,Training - Travel & Subsistence,"Asia, Caribbean and Overseas Territories",OMAR TRAVELS,100185-101,805.49,
DFID,DFID,21/03/2018,Hotels - Accommodation only,"Asia, Caribbean and Overseas Territories",PEARL CONTINENTAL HOTEL LAHORE,204605-101,"2,230.31",
DFID,DFID,20/03/2018,Hotels - Accommodation only,"Asia, Caribbean and Overseas Territories",PEARL CONTINENTAL HOTEL LAHORE,204605-101,669.09,
DFID,DFID,20/03/2018,Hotels - Accommodation only,"Asia, Caribbean and Overseas Territories",PEARL CONTINENTAL HOTEL LAHORE,204605-101,"1,391.32",
DFID,DFID,27/03/2018,Hotels - Accommodation only,"Asia, Caribbean and Overseas Territories",Supplier Name withheld,101624-101,"1,916.11",
DFID,DFID,08/03/2018,Project delivery costs – supplier services,"Asia, Caribbean and Overseas Territories","McKinsey & Co, Inc UK",202697-109,"345,951.00",
DFID,DFID,12/03/2018,Medical/Health Services,West and Southern Africa,FLIMAS,101638-101,"4,577.91",
DFID,DFID,14/03/2018,Aid Programme - Accountable Grant Payments,Research and Evidence Division,Practical Action (GBP),204343-106,"18,475.02",
DFID,DFID,12/03/2018,Aid Programme - Voluntary contributions,Policy Division,Access to Medicine Foundation,204689-101,"500,000.00",
DFID,DFID,20/03/2018,Hostile Environment Training,East and Central Africa,UNDP Somalia,100218-101,545.41,
DFID,DFID,16/03/2018,Staff Travel - Air Fares,West and Southern Africa,UNHAS - WFP (DRC),101610-101,"5,082.32",
DFID,DFID,16/03/2018,Contract Catering Services,East and Central Africa,Chatham House Enterprises,100016-110,"3,650.00",
DFID,DFID,26/03/2018,Training - Course Fees,Business Solutions Division Level,QA Limited,300328-101,924.00,
DFID,DFID,09/03/2018,Project delivery costs – supplier services,West and Southern Africa,Cresta Golfview Hotel Lusaka,203627-111,885.29,
DFID,DFID,02/03/2018,Project delivery costs – supplier services,"Asia, Caribbean and Overseas Territories",PALLADIUM INTERNATIONAL,202488-105,"477,066.27",
DFID,DFID,22/03/2018,Project delivery costs – supplier services,"Asia, Caribbean and Overseas Territories",PALLADIUM INTERNATIONAL,202488-105,"344,739.93",
DFID,DFID,23/03/2018,Project delivery costs – supplier services,East and Central Africa,PALLADIUM INTERNATIONAL,202547-102,"240,988.49",
DFID,DFID,23/03/2018,Project delivery costs – supplier services,East and Central Africa,PALLADIUM INTERNATIONAL,202547-102,"42,952.49",
DFID,DFID,27/03/2018,Aid Programme - Voluntary contributions,Research and Evidence Division,International Monetary Fund (GBP),202960-104,"1,686,953.00",
DFID,DFID,05/03/2018,Aid Programme - Voluntary contributions,Research and Evidence Division,International Monetary Fund (GBP),204933-101,"605,740.00",
DFID,DFID,19/03/2018,Project delivery costs – supplier services,West and Southern Africa,HM REVENUE AND CUSTOMS Acc,204918-101,"4,098.81",
DFID,DFID,29/03/2018,Project delivery costs – supplier services,West and Southern Africa,HM REVENUE AND CUSTOMS Acc,204918-101,"18,850.81",
DFID,DFID,22/03/2018,Office Equipment - Purchases,Group Operations,Evolution (Electronic Security Systems) Ltd,203717-101,"61,059.36",Security access purchases to maintain DFIDs security requirements for our Whitehall and and East Kilbride HQs
DFID,DFID,29/03/2018,Aid Programme - Joint programme contribution,East and Central Africa,The World Bank (EFO),203986-107,"87,156.00",
DFID,DFID,09/03/2018,Aid Programme - Voluntary contributions,"Asia, Caribbean and Overseas Territories",The World Bank (EFO),203385-102,"270,615.00",
DFID,DFID,13/03/2018,Aid Programme - Accountable Grant Payments,"Asia, Caribbean and Overseas Territories",INTERNATIONAL IDEA,203764-113,"67,051.56",
DFID,DFID,20/03/2018,Hotels - Accommodation only,Finance and Corporate Performance Division,Hotel Shangrila Pvt. Ltd,100201-101,503.81,
DFID,DFID,16/03/2018,Auditors Remuneration & Expenses - Cash,West and Southern Africa,Baker Tilly Nigeria,202694-102,"17,490.87",
DFID,DFID,27/03/2018,Hotels - Accommodation only,"Asia, Caribbean and Overseas Territories",Supplier Name withheld,101624-101,895.70,
DFID,DFID,28/03/2018,Hotels - Accommodation only,"Asia, Caribbean and Overseas Territories",Supplier Name withheld,101624-101,"1,121.17",
DFID,DFID,05/03/2018,Hotels - Accommodation only,"Asia, Caribbean and Overseas Territories",Avari Lahore,202495-112,840.47,
DFID,DFID,15/03/2018,Hotels - Accommodation only,"Asia, Caribbean and Overseas Territories",Supplier Name withheld,101624-101,949.35,
DFID,DFID,07/03/2018,Project delivery costs – supplier services,East and Central Africa,Ifakara Health Institute,202959-103,"3,595.30",
DFID,DFID,22/03/2018,Aid Programme - Voluntary contributions,"Conflict, Humanitarian, Security & Stabilisation Division",Development Initiatives Poverty Research Ltd,300339-108,"51,106.50",
DFID,DFID,02/03/2018,Air fares,East and Central Africa,Bon Voyage Travel Centre Ltd(USD),101634-101,"1,767.27",
DFID,DFID,02/03/2018,Air fares,East and Central Africa,Bon Voyage Travel Centre Ltd(USD),101634-101,"2,690.18",
DFID,DFID,20/03/2018,Hotels - Accommodation only,East and Central Africa,Bon Voyage Travel Centre Ltd(USD),101634-101,739.81,
DFID,DFID,23/03/2018,Air fares,East and Central Africa,Bon Voyage Travel Centre Ltd(USD),101634-101,"1,050.96",
DFID,DFID,20/03/2018,Air fares,East and Central Africa,Bon Voyage Travel Centre Ltd(USD),101634-101,"1,072.19",
DFID,DFID,19/03/2018,Air fares,East and Central Africa,Bon Voyage Travel Centre Ltd(USD),101634-101,659.97,
DFID,DFID,19/03/2018,Air fares,East and Central Africa,Bon Voyage Travel Centre Ltd(USD),101634-101,817.79,
DFID,DFID,02/03/2018,Air fares,East and Central Africa,Bon Voyage Travel Centre Ltd(USD),101634-101,669.09,
DFID,DFID,02/03/2018,Air fares,East and Central Africa,Bon Voyage Travel Centre Ltd(USD),101634-101,672.73,
DFID,DFID,23/03/2018,Air fares,East and Central Africa,Bon Voyage Travel Centre Ltd(USD),101634-101,976.65,
DFID,DFID,23/03/2018,Air fares,East and Central Africa,Bon Voyage Travel Centre Ltd(USD),101634-101,651.10,
DFID,DFID,23/03/2018,Air fares,East and Central Africa,Bon Voyage Travel Centre Ltd(USD),101634-101,739.56,
DFID,DFID,02/03/2018,Air fares,East and Central Africa,Bon Voyage Travel Centre Ltd(USD),205055-104,"1,629.09",
DFID,DFID,02/03/2018,Air fares,East and Central Africa,Bon Voyage Travel Centre Ltd(USD),101634-101,"2,007.27",
DFID,DFID,19/03/2018,Air fares,East and Central Africa,Bon Voyage Travel Centre Ltd(Tsh),101634-101,679.31,
DFID,DFID,28/03/2018,Research and development costs - supplier services,Research and Evidence Division,Tim Leyland,300361-102,890.15,
DFID,DFID,08/03/2018,Research and development costs - supplier services,Research and Evidence Division,Tim Leyland,300361-102,"1,670.40",
DFID,DFID,27/03/2018,Aid Programme - Core contributions,Research and Evidence Division,AERAS,204136-103,"550,000.00",
DFID,DFID,05/03/2018,Aid Programme - Accountable Grant Payments,East and Central Africa,International Institute for Environment and Development (IIED),204956-106,"151,856.00",
DFID,DFID,23/03/2018,Project delivery costs – supplier services,Economic Development Division,Landell Mills Ltd,114178-106,"24,593.17",
DFID,DFID,12/03/2018,Aid Programme - Joint programme contribution,West and Southern Africa,USAID Washington,204315-103,"115,000.00",
DFID,DFID,16/03/2018,Aid Programme - Core contributions,"Asia, Caribbean and Overseas Territories",USAID Washington,203487-101,"1,350,000.00",
DFID,DFID,06/03/2018,Aid Programme - Joint programme contribution,"Asia, Caribbean and Overseas Territories",USAID Washington,300251-104,"2,000,000.00",
DFID,DFID,29/03/2018,Aid Programme - Voluntary contributions,West and Southern Africa,OHCHR,202416-116,"333,333.00",
DFID,DFID,08/03/2018,Aid Programme - Trust Funds contributions,"Asia, Caribbean and Overseas Territories",SG HAMBROS BANK & TRUST LTD GBP,204358-110,"750,000.00",
DFID,DFID,26/03/2018,Aid Programme - Core contributions,Policy Division,GAVI,204240-101,"187,800,000.00",
DFID,DFID,16/03/2018,Encashment of Promissory Notes,Economic Development Division,CDC Group plc,203444-103,"54,750,000.00",
DFID,DFID,16/03/2018,Encashment of Promissory Notes,Economic Development Division,CDC Group plc,203444-103,"210,873,328.00",
DFID,DFID,16/03/2018,Encashment of Promissory Notes,Economic Development Division,CDC Group plc,203444-106,"74,090,629.00",
DFID,DFID,16/03/2018,Encashment of Promissory Notes,Economic Development Division,CDC Group plc,203444-106,"20,250,000.00",
DFID,DFID,28/03/2018,Aid Programme - Accountable Grant Payments,"Asia, Caribbean and Overseas Territories",DANISH REFUGEE COUNCIL,300561-103,"255,546.42",
DFID,DFID,12/03/2018,Aid Programme - Accountable Grant Payments,Middle East and North Africa Division,DANISH REFUGEE COUNCIL,300086-101,"3,458,311.16",
DFID,DFID,22/03/2018,Aid Programme - Refugee Relief Payments,East and Central Africa,DANISH REFUGEE COUNCIL,300357-107,"12,817.32",
DFID,DFID,28/03/2018,Aid Programme - Accountable Grant Payments,East and Central Africa,DANISH REFUGEE COUNCIL,300280-104,"1,129,067.26",
DFID,DFID,20/03/2018,Aid Programme - Accountable Grant Payments,West and Southern Africa,Clinton Health Access Initiative,203543-104,"39,378.81",
DFID,DFID,14/03/2018,Aid Programme - Accountable Grant Payments,West and Southern Africa,Clinton Health Access Initiative,300036-110,"179,128.07",
DFID,DFID,23/03/2018,Project delivery costs – supplier services,"Asia, Caribbean and Overseas Territories",The Asia Foundation (GBP),202775-109,"221,008.00",
DFID,DFID,09/03/2018,Aid Programme - Accountable Grant Payments,"Asia, Caribbean and Overseas Territories",The Asia Foundation (GBP),203385-103,"59,880.00",
DFID,DFID,07/03/2018,Aid Programme - Accountable Grant Payments,"Asia, Caribbean and Overseas Territories",The Asia Foundation (GBP),204623-101,"142,835.00",
DFID,DFID,06/03/2018,Training - Course Fees,West and Southern Africa,The Knowledge Academy Limited,101620-101,"1,250.00",
DFID,DFID,22/03/2018,Research and development costs - supplier services,Research and Evidence Division,DEVELOPMENT PATHWAYS LTD,204584-135,"28,200.00",
DFID,DFID,28/03/2018,Aid Programme - Accountable Grant Payments,"Asia, Caribbean and Overseas Territories",OBSERVER RESEARCH FOUNDATION,202765-105,"29,060.00",
DFID,DFID,07/03/2018,Aid Programme - Accountable Grant Payments,West and Southern Africa,POLICY AND LEGAL ADVOCACY CENTRE,203851-117,"63,105.25",
DFID,DFID,23/03/2018,Project delivery costs – supplier services,Middle East and North Africa Division,NATIONAL DEMOCTRATIC INSTITUTE,300045-106,"232,087.00",
DFID,DFID,22/03/2018,Aid Programme - Humanitarian Material Relief Assistance and Services,Middle East and North Africa Division,Norwegian Refugee Council,205094-104,"6,064.89",
DFID,DFID,28/03/2018,Aid Programme - Accountable Grant Payments,East and Central Africa,Norwegian Refugee Council,205116-112,"251,532.78",
DFID,DFID,28/03/2018,Aid Programme - Accountable Grant Payments,East and Central Africa,Norwegian Refugee Council,205116-113,"259,154.00",
DFID,DFID,28/03/2018,Aid Programme - Accountable Grant Payments,East and Central Africa,Norwegian Refugee Council,205116-104,"251,531.25",
DFID,DFID,27/03/2018,Aid Programme - Accountable Grant Payments,Middle East and North Africa Division,Norwegian Refugee Council,300290-101,"745,269.00",
DFID,DFID,09/03/2018,Aid Programme - Accountable Grant Payments,East and Central Africa,Norwegian Refugee Council,203462-110,"76,575.42",
DFID,DFID,05/03/2018,Aid Programme - Accountable Grant Payments,East and Central Africa,Norwegian Refugee Council,203462-102,"800,000.00",
DFID,DFID,12/03/2018,Aid Programme - Accountable Grant Payments,East and Central Africa,Norwegian Refugee Council,205128-102,"8,800,000.00",
DFID,DFID,23/03/2018,Project delivery costs – supplier services,Policy Division,CfBT Education Trust,201469-106,"54,488.00",
DFID,DFID,23/03/2018,Project delivery costs – supplier services,Policy Division,CfBT Education Trust,201469-106,"54,488.00",
DFID,DFID,15/03/2018,Project delivery costs – supplier services,Policy Division,CfBT Education Trust,201469-106,"25,703.00",
DFID,DFID,16/03/2018,Training - Course Fees,Finance and Corporate Performance Division,CIPFA BUSINESS LIMITED,203698-101,995.00,
DFID,DFID,02/03/2018,Research and development costs - supplier services,Research and Evidence Division,University of Edinburgh - Finance Department,204326-102,"274,877.03",
DFID,DFID,27/03/2018,Training - Travel & Subsistence,"Asia, Caribbean and Overseas Territories",Gerry's Travel Agency Private Limited,101624-101,659.75,
DFID,DFID,27/03/2018,Training - Travel & Subsistence,"Asia, Caribbean and Overseas Territories",Gerry's Travel Agency Private Limited,101624-101,513.14,
DFID,DFID,27/03/2018,Training - Travel & Subsistence,"Asia, Caribbean and Overseas Territories",Gerry's Travel Agency Private Limited,101624-101,548.82,
DFID,DFID,27/03/2018,Training - Travel & Subsistence,"Asia, Caribbean and Overseas Territories",Gerry's Travel Agency Private Limited,101624-101,602.21,
DFID,DFID,27/03/2018,Air fares,"Asia, Caribbean and Overseas Territories",Gerry's Travel Agency Private Limited,101624-101,"1,322.15",
DFID,DFID,05/03/2018,Air fares,"Asia, Caribbean and Overseas Territories",Gerry's Travel Agency Private Limited,101624-101,"1,491.01",
DFID,DFID,05/03/2018,Training - Travel & Subsistence,"Asia, Caribbean and Overseas Territories",Gerry's Travel Agency Private Limited,101624-101,527.36,
DFID,DFID,05/03/2018,Air fares,"Asia, Caribbean and Overseas Territories",Gerry's Travel Agency Private Limited,101624-101,"1,056.68",
DFID,DFID,08/03/2018,Project delivery costs – supplier services,Policy Division,Triple Line Consulting,203798-103,"4,090.50",
DFID,DFID,14/03/2018,Project delivery costs – supplier services,Research and Evidence Division,Oxford University Innovation Limited,204153-112,"3,417.00",
DFID,DFID,06/03/2018,Project delivery costs – supplier services,Economic Development Division,IMC Worldwide Ltd.,205118-102,"1,726.00",
DFID,DFID,12/03/2018,Project delivery costs – supplier services,Economic Development Division,IMC Worldwide Ltd.,205222-107,"22,167.95",
DFID,DFID,02/03/2018,Project delivery costs – supplier services,Economic Development Division,IMC Worldwide Ltd.,205226-103,"1,432.67",
DFID,DFID,08/03/2018,Project delivery costs – supplier services,Economic Development Division,IMC Worldwide Ltd.,205226-103,"16,970.36",
DFID,DFID,08/03/2018,Project delivery costs – supplier services,West and Southern Africa,IMC Worldwide Ltd.,205195-102,"1,097,483.98",
DFID,DFID,08/03/2018,Project delivery costs – supplier services,Economic Development Division,IMC Worldwide Ltd.,202259-101,"18,072.00",
DFID,DFID,27/03/2018,Project delivery costs – supplier services,Economic Development Division,IMC Worldwide Ltd.,203444-109,"4,076.40",
DFID,DFID,09/03/2018,Project delivery costs – supplier services,"Asia, Caribbean and Overseas Territories",IMC Worldwide Ltd.,203186-103,"98,535.85",
DFID,DFID,09/03/2018,Project delivery costs – supplier services,"Asia, Caribbean and Overseas Territories",IMC Worldwide Ltd.,203186-110,"762,312.63",
DFID,DFID,09/03/2018,Project delivery costs – supplier services,"Asia, Caribbean and Overseas Territories",IMC Worldwide Ltd.,202697-111,"321,940.86",
DFID,DFID,19/03/2018,Project delivery costs – supplier services,"Asia, Caribbean and Overseas Territories",IMC Worldwide Ltd.,202697-104,"3,220,161.00",
DFID,DFID,02/03/2018,Project delivery costs – supplier services,"Asia, Caribbean and Overseas Territories",IMC Worldwide Ltd.,202697-104,"2,251,713.00",
DFID,DFID,09/03/2018,Project delivery costs – supplier services,"Asia, Caribbean and Overseas Territories",IMC Worldwide Ltd.,202328-107,"247,975.83",
DFID,DFID,19/03/2018,Project delivery costs – supplier services,"Asia, Caribbean and Overseas Territories",IMC Worldwide Ltd.,202328-109,"149,579.00",
DFID,DFID,02/03/2018,Project delivery costs – supplier services,"Asia, Caribbean and Overseas Territories",IMC Worldwide Ltd.,202328-109,"809,022.00",
DFID,DFID,21/03/2018,Project delivery costs – supplier services,Research and Evidence Division,IMC Worldwide Ltd.,203844-102,"46,837.50",
DFID,DFID,19/03/2018,Project delivery costs – supplier services,"Asia, Caribbean and Overseas Territories",IMC Worldwide Ltd.,202328-106,"570,825.00",
DFID,DFID,19/03/2018,Project delivery costs – supplier services,West and Southern Africa,IMC Worldwide Ltd.,202455-102,"11,682.97",
DFID,DFID,16/03/2018,Project delivery costs – supplier services,West and Southern Africa,IMC Worldwide Ltd.,203824-103,"163,545.03",
DFID,DFID,23/03/2018,Project delivery costs – supplier services,"Asia, Caribbean and Overseas Territories",IMC Worldwide Ltd.,202927-110,"34,497.00",
DFID,DFID,26/03/2018,Project delivery costs – supplier services,West and Southern Africa,IMC Worldwide Ltd.,204643-104,"11,700.33",
DFID,DFID,26/03/2018,Project delivery costs – supplier services,West and Southern Africa,IMC Worldwide Ltd.,204643-104,"27,495.29",
DFID,DFID,26/03/2018,Project delivery costs – supplier services,West and Southern Africa,IMC Worldwide Ltd.,204643-104,"87,774.01",
DFID,DFID,06/03/2018,Project delivery costs – supplier services,East and Central Africa,IMC Worldwide Ltd.,203596-101,"15,726.00",
DFID,DFID,26/03/2018,Project delivery costs – supplier services,West and Southern Africa,IMC Worldwide Ltd.,203666-105,"126,988.79",
DFID,DFID,15/03/2018,Project delivery costs – supplier services,Economic Development Division,IMC Worldwide Ltd.,205118-102,"35,009.64",
DFID,DFID,28/03/2018,Project delivery costs – supplier services,"Asia, Caribbean and Overseas Territories",IMC Worldwide Ltd.,203427-109,"105,210.62",
DFID,DFID,28/03/2018,Project delivery costs – supplier services,"Asia, Caribbean and Overseas Territories",IMC Worldwide Ltd.,203427-110,"105,210.63",
DFID,DFID,23/03/2018,Project delivery costs – supplier services,East and Central Africa,Integrity Research and Consultancy,205067-101,"139,237.34",
DFID,DFID,19/03/2018,Project delivery costs – supplier services,"Conflict, Humanitarian, Security & Stabilisation Division",DAI Europe,300339-108,"18,339.00",
DFID,DFID,21/03/2018,Project delivery costs – supplier services,West and Southern Africa,DAI Europe,201857-102,"67,423.08",
DFID,DFID,08/03/2018,Project delivery costs – supplier services,West and Southern Africa,DAI Europe,201857-102,"145,843.41",
DFID,DFID,08/03/2018,Project delivery costs – supplier services,West and Southern Africa,DAI Europe,201857-105,"123,332.12",
DFID,DFID,21/03/2018,Project delivery costs – supplier services,East and Central Africa,DAI Europe,202596-105,"310,144.09",
DFID,DFID,08/03/2018,Project delivery costs – supplier services,West and Southern Africa,DAI Europe,201857-102,"37,400.00",
DFID,DFID,26/03/2018,Project delivery costs – supplier services,East and Central Africa,DAI Europe,203574-112,"33,835.03",
DFID,DFID,29/03/2018,Project delivery costs – supplier services,Economic Development Division,DAI Europe,202817-105,"4,815.00",
DFID,DFID,02/03/2018,Project delivery costs – supplier services,East and Central Africa,DAI Europe,202900-102,"753,163.00",
DFID,DFID,15/03/2018,Project delivery costs – supplier services,East and Central Africa,DAI Europe,202900-102,"136,474.84",
DFID,DFID,09/03/2018,Project delivery costs – supplier services,East and Central Africa,DAI Europe,202596-105,"395,000.00",
DFID,DFID,20/03/2018,Project delivery costs – supplier services,"Asia, Caribbean and Overseas Territories",DAI Europe,203186-104,"26,511.31",
DFID,DFID,05/03/2018,Fund monies to be managed and dispersed by the supplier,Middle East and North Africa Division,DAI Europe,201828-101,"179,288.95",
DFID,DFID,26/03/2018,Project delivery costs – supplier services,"Asia, Caribbean and Overseas Territories",DAI Europe,204672-102,"26,908.17",
DFID,DFID,22/03/2018,Aid Programme - Accountable Grant Payments,Research and Evidence Division,DAI Europe,204046-102,"40,066.65",
DFID,DFID,26/03/2018,Project delivery costs – supplier services,East and Central Africa,DAI Europe,203473-103,"40,923.18",
DFID,DFID,26/03/2018,Project delivery costs – supplier services,West and Southern Africa,DAI Europe,203922-101,"480,929.20",
DFID,DFID,06/03/2018,Project delivery costs – supplier services,"Asia, Caribbean and Overseas Territories",DAI Europe,202491-102,"537,368.65",
DFID,DFID,06/03/2018,Aid Programme - Challenge Fund payments,"Asia, Caribbean and Overseas Territories",DAI Europe,202491-106,"176,648.03",
DFID,DFID,20/03/2018,Project delivery costs – supplier services,"Asia, Caribbean and Overseas Territories",DAI Europe,114433-102,"271,210.53",
DFID,DFID,16/03/2018,Project delivery costs – supplier services,East and Central Africa,DAI Europe,204258-101,"18,877.56",
DFID,DFID,22/03/2018,Project delivery costs – supplier services,West and Southern Africa,DAI Europe,204822-101,"203,068.27",
DFID,DFID,07/03/2018,Project delivery costs – supplier services,West and Southern Africa,DAI Europe,204822-101,"127,235.90",
DFID,DFID,07/03/2018,Project delivery costs – supplier services,West and Southern Africa,DAI Europe,201980-102,"157,952.67",
DFID,DFID,14/03/2018,Project delivery costs – supplier services,West and Southern Africa,DAI Europe,201980-102,"26,827.83",
DFID,DFID,14/03/2018,Project delivery costs – supplier services,West and Southern Africa,DAI Europe,201980-102,"35,383.80",
DFID,DFID,02/03/2018,Project delivery costs – supplier services,East and Central Africa,DAI Europe,204437-102,"12,650.70",
DFID,DFID,21/03/2018,Project delivery costs – supplier services,East and Central Africa,DAI Europe,204437-102,"260,810.00",
DFID,DFID,21/03/2018,Project delivery costs – supplier services,East and Central Africa,DAI Europe,204437-104,"49,668.85",
DFID,DFID,02/03/2018,Project delivery costs – supplier services,East and Central Africa,DAI Europe,204437-104,"153,608.07",
DFID,DFID,02/03/2018,Project delivery costs – supplier services,East and Central Africa,DAI Europe,204437-108,"258,167.97",
DFID,DFID,21/03/2018,Project delivery costs – supplier services,East and Central Africa,DAI Europe,204437-108,"21,965.00",
DFID,DFID,15/03/2018,Project delivery costs – supplier services,Middle East and North Africa Division,DAI Europe,204325-102,"45,966.40",
DFID,DFID,07/03/2018,Project delivery costs – supplier services,Research and Evidence Division,DAI Europe,300369-101,"18,345.60",
DFID,DFID,28/03/2018,Project delivery costs – supplier services,"Asia, Caribbean and Overseas Territories",DAI Europe,204604-102,"349,691.05",
DFID,DFID,06/03/2018,Project delivery costs – supplier services,West and Southern Africa,DAI Europe,202585-102,"263,605.71",
DFID,DFID,07/03/2018,Project delivery costs – supplier services,West and Southern Africa,DAI Europe,202585-102,"134,371.78",
DFID,DFID,20/03/2018,Project delivery costs – supplier services,West and Southern Africa,DAI Europe,202585-102,"90,296.49",
DFID,DFID,23/03/2018,Project delivery costs – supplier services,Economic Development Division,DAI Europe,203469-109,"22,275.00",
DFID,DFID,09/03/2018,Project delivery costs – supplier services,Research and Evidence Division,DAI Europe,112082-103,"49,091.75",
DFID,DFID,21/03/2018,Project delivery costs – supplier services,East and Central Africa,DAI Europe,203986-105,"188,788.85",
DFID,DFID,23/03/2018,Project delivery costs – supplier services,East and Central Africa,DAI Europe,203986-105,"182,876.21",
DFID,DFID,26/03/2018,Project delivery costs – supplier services,East and Central Africa,DAI Europe,203986-105,"65,914.68",
DFID,DFID,06/03/2018,Project delivery costs – supplier services,"Asia, Caribbean and Overseas Territories",DAI Europe,204672-102,"127,452.00",
DFID,DFID,05/03/2018,Project delivery costs – supplier services,"Asia, Caribbean and Overseas Territories",DAI Europe,204672-102,"166,104.15",
DFID,DFID,26/03/2018,Project delivery costs – supplier services,"Asia, Caribbean and Overseas Territories",DAI Europe,204672-102,"86,072.80",
DFID,DFID,29/03/2018,Project delivery costs – supplier services,West and Southern Africa,DAI Europe,202476-103,"327,325.79",
DFID,DFID,06/03/2018,Aid Programme - Accountable Grant Payments,East and Central Africa, Catholic Relief Services,300196-109,"945,114.00",
DFID,DFID,06/03/2018,Project delivery costs – supplier services,Policy Division,Sightsavers,203146-103,"38,000.00",
DFID,DFID,28/03/2018,Project delivery costs – supplier services,Policy Division,Sightsavers,203145-101,"515,605.00",
DFID,DFID,29/03/2018,Project delivery costs – supplier services,Policy Division,Sightsavers,203146-103,"155,150.00",
DFID,DFID,06/03/2018,Aid Programme - Accountable Grant Payments,Policy Division,Sightsavers,204731-103,"47,353.00",
DFID,DFID,05/03/2018,Project delivery costs – supplier services,West and Southern Africa,Abt Associates,202342-102,"134,910.71",
DFID,DFID,28/03/2018,Project delivery costs – supplier services,West and Southern Africa,Abt Associates,202342-102,"135,643.18",
DFID,DFID,22/03/2018,Project delivery costs – supplier services,West and Southern Africa,Marie Stopes International (MSI),202656-101,"434,665.00",
DFID,DFID,16/03/2018,Project delivery costs – supplier services,West and Southern Africa,Marie Stopes International (MSI),202656-101,"1,862,003.00",
DFID,DFID,09/03/2018,Project delivery costs – supplier services,East and Central Africa,Marie Stopes International (MSI),204266-102,"1,028,972.00",
DFID,DFID,22/03/2018,Project delivery costs – supplier services,Policy Division,PATH,202676-101,"36,876.16",
DFID,DFID,09/03/2018,Project delivery costs – supplier services,Policy Division,PATH,204954-102,"13,232.00",
DFID,DFID,09/03/2018,Project delivery costs – supplier services,Policy Division,PATH,204954-102,"12,068.75",
DFID,DFID,09/03/2018,Project delivery costs – supplier services,Policy Division,WYG International,203571-102,"86,611.96",
DFID,DFID,07/03/2018,Research and development costs - supplier services,Research and Evidence Division,WYG International,204563-104,"103,499.74",
DFID,DFID,22/03/2018,Project delivery costs – supplier services,East and Central Africa,WYG International,300230-105,"33,131.66",
DFID,DFID,22/03/2018,Project delivery costs – supplier services,East and Central Africa,WYG International,300230-105,"7,760.00",
DFID,DFID,15/03/2018,Project delivery costs – supplier services,East and Central Africa,WYG International,300230-105,"310,988.85",
DFID,DFID,05/03/2018,Project delivery costs – supplier services,"Asia, Caribbean and Overseas Territories",WYG International,204952-102,"44,722.00",
DFID,DFID,08/03/2018,Project delivery costs – supplier services,"Asia, Caribbean and Overseas Territories",LTS International Ltd.,205258-101,"191,341.91",
DFID,DFID,21/03/2018,Project delivery costs – supplier services,Policy Division,LTS International Ltd.,201724-135,"32,659.91",
DFID,DFID,05/03/2018,Project delivery costs – supplier services,Policy Division,LTS International Ltd.,201724-135,"64,038.51",
DFID,DFID,13/03/2018,Project delivery costs – supplier services,Policy Division,LTS International Ltd.,202745-105,"118,019.00",
DFID,DFID,16/03/2018,Project delivery costs – supplier services,East and Central Africa,LTS International Ltd.,203152-102,"103,845.60",
DFID,DFID,13/03/2018,Project delivery costs – supplier services,East and Central Africa,Mannion Daniels Limited,202169-103,"12,917.88",
DFID,DFID,28/03/2018,Project delivery costs – supplier services,"Asia, Caribbean and Overseas Territories",KPMG (KASPL),202867-103,"28,454.00",
DFID,DFID,29/03/2018,Project delivery costs – supplier services,"Asia, Caribbean and Overseas Territories",KPMG (KASPL),202867-103,"3,546.00",
DFID,DFID,16/03/2018,Project delivery costs – supplier services,"Asia, Caribbean and Overseas Territories",KPMG (KASPL),202867-103,"10,391.00",
DFID,DFID,08/03/2018,Aid Programme - Accountable Grant Payments,"Asia, Caribbean and Overseas Territories",International Foundation for Electoral Systems,203487-102,"156,197.00",
DFID,DFID,02/03/2018,Project delivery costs – supplier services,East and Central Africa,GDSI UK LIMITED,203462-103,"300,000.00",
DFID,DFID,28/03/2018,Project delivery costs – supplier services,"Asia, Caribbean and Overseas Territories",PricewaterhouseCoopers Pvt.Ltd,204135-101,"203,100.00",
DFID,DFID,28/03/2018,Project delivery costs – supplier services,"Asia, Caribbean and Overseas Territories",PricewaterhouseCoopers Pvt.Ltd,204135-102,"31,921.00",
DFID,DFID,29/03/2018,Project delivery costs – supplier services,"Asia, Caribbean and Overseas Territories",PricewaterhouseCoopers Pvt.Ltd,204135-102,"36,082.00",
DFID,DFID,20/03/2018,Project delivery costs – supplier services,"Asia, Caribbean and Overseas Territories",PricewaterhouseCoopers Pvt.Ltd,204176-101,"173,430.00",
DFID,DFID,28/03/2018,Project delivery costs – supplier services,"Asia, Caribbean and Overseas Territories",PricewaterhouseCoopers Pvt.Ltd,202865-101,"204,154.00",
DFID,DFID,29/03/2018,Project delivery costs – supplier services,"Asia, Caribbean and Overseas Territories",PricewaterhouseCoopers Pvt.Ltd,203427-103,"38,192.00",
DFID,DFID,02/03/2018,Project delivery costs – supplier services,"Asia, Caribbean and Overseas Territories",PricewaterhouseCoopers Pvt.Ltd,203427-103,"26,442.00",
DFID,DFID,05/03/2018,Project delivery costs – supplier services,"Asia, Caribbean and Overseas Territories",PricewaterhouseCoopers Pvt.Ltd,202765-111,"20,650.00",
DFID,DFID,26/03/2018,Project delivery costs – supplier services,"Asia, Caribbean and Overseas Territories",Eunomia Research & Consulting,300110-102,"7,420.91",
DFID,DFID,26/03/2018,Project delivery costs – supplier services,"Asia, Caribbean and Overseas Territories",Eunomia Research & Consulting,300110-105,"13,781.29",
DFID,DFID,05/03/2018,Research and development costs - supplier services,Research and Evidence Division,PricewaterhouseCoopers Limited (KENYA3),204570-106,"210,968.68",
DFID,DFID,16/03/2018,Project delivery costs – supplier services,East and Central Africa,International NGO Training and Research Centre,204801-103,"13,323.29",
DFID,DFID,09/03/2018,Computer Consumables,West and Southern Africa,Formats Projects Services Limited,101622-106,"1,143.17",
DFID,DFID,06/03/2018,Aid Programme - Accountable Grant Payments,East and Central Africa,Absolute Return for Kids (ARK),204641-101,"116,373.00",
DFID,DFID,12/03/2018,Aid Programme - Core contributions,Economic Development Division,Global Green Growth Institute,204248-102,"3,500,000.00",
DFID,DFID,16/03/2018,Hostile Environment Training,PGP Directorate,KBR,205044-101,545.83,
DFID,DFID,06/03/2018,Hostile Environment Training,East and Central Africa,KBR,101625-112,655.00,
DFID,DFID,23/03/2018,Hostile Environment Training,Middle East and North Africa Division,KBR,204084-101,655.00,
DFID,DFID,12/03/2018,Hostile Environment Training,Business Solutions Division Level,KBR,200001-101,545.83,
DFID,DFID,27/03/2018,Aid Programme - Accountable Grant Payments,"Asia, Caribbean and Overseas Territories",University ofWestminster,300110-108,"30,391.07",
DFID,DFID,27/03/2018,Aid Programme - Accountable Grant Payments,"Asia, Caribbean and Overseas Territories",University ofWestminster,300110-109,"16,364.43",
DFID,DFID,28/03/2018,Project delivery costs – supplier services,Policy Division,Bloomberg Finance L.P.,204020-107,"489,017.00",
DFID,DFID,02/03/2018,Project delivery costs – supplier services,"Asia, Caribbean and Overseas Territories",Ove Arup and Partners International Ltd,300110-102,"1,855.00",
DFID,DFID,06/03/2018,Project delivery costs – supplier services,"Asia, Caribbean and Overseas Territories",Ove Arup and Partners International Ltd,300110-104,503.92,
DFID,DFID,02/03/2018,Project delivery costs – supplier services,"Asia, Caribbean and Overseas Territories",Ove Arup and Partners International Ltd,300110-104,"3,445.00",
DFID,DFID,06/03/2018,Computer Software Licenses,Research and Evidence Division,ProQuest LLC,202348-105,"9,874.80",
DFID,DFID,15/03/2018,Aid Programme - Accountable Grant Payments,"Asia, Caribbean and Overseas Territories",Idara-e-Taleem-o-Aagahi (ITA),202697-113,"234,626.00",
DFID,DFID,20/03/2018,Pooled/Basket funding,Research and Evidence Division,Biotechnology & Biological Sciences Research Council,202749-102,"471,773.64",
DFID,DFID,19/03/2018,Research and development costs - supplier services,Research and Evidence Division,Biotechnology & Biological Sciences Research Council,202038-102,"42,041.14",
DFID,DFID,29/03/2018,Furniture & Fittings,Group Operations,Flexiform Business Furniture Limited,100007-101,"1,748.16",
DFID,DFID,29/03/2018,Office Equipment - Purchases,Group Operations,Flexiform Business Furniture Limited,100007-104,"148,123.68",
DFID,DFID,29/03/2018,Office Equipment - Purchases,Group Operations,Flexiform Business Furniture Limited,205132-101,"28,944.00",To maintain the integrity of the Abercrombie House (AH) estate and to install value for money solutions to maximise the use of space in AH
DFID,DFID,29/03/2018,Office Equipment - Purchases,Group Operations,Flexiform Business Furniture Limited,205132-101,"109,520.00",To maintain the integrity of the Abercrombie House (AH) estate and to install value for money solutions to maximise the use of space in AH
DFID,DFID,05/03/2018,Aid Programme - Accountable Grant Payments,"Conflict, Humanitarian, Security & Stabilisation Division",UK-Med,202878-103,"275,793.00",
DFID,DFID,08/03/2018,Aid Programme - Accountable Grant Payments,Economic Development Division,Rights and Resources Institute,204252-126,"257,568.00",
DFID,DFID,05/03/2018,Hotels - Accommodation only,"Asia, Caribbean and Overseas Territories",Indus Guest House,101624-101,"2,698.40",
DFID,DFID,29/03/2018,Project delivery costs – supplier services,"Asia, Caribbean and Overseas Territories",Ricardo-AEA Ltd,204984-108,"9,554.00",
DFID,DFID,28/03/2018,Project delivery costs – supplier services,Business Solutions Division Level,Parity Resources,200005-138,"2,264.35",
DFID,DFID,21/03/2018,Project delivery costs – supplier services,Business Solutions Division Level,Parity Resources,200004-127,"1,681.08",
DFID,DFID,28/03/2018,Project delivery costs – supplier services,Business Solutions Division Level,Parity Resources,200004-127,"1,681.08",
DFID,DFID,07/03/2018,Project delivery costs – supplier services,Business Solutions Division Level,Parity Resources,200004-127,"1,681.08",
DFID,DFID,01/03/2018,Project delivery costs – supplier services,Business Solutions Division Level,Parity Resources,200004-127,"1,681.08",
DFID,DFID,14/03/2018,Project delivery costs – supplier services,Business Solutions Division Level,Parity Resources,200004-127,"1,681.08",
DFID,DFID,12/03/2018,Aid Programme - Joint programme contribution,West and Southern Africa,US Agency for Int'l Dev,203154-102,"4,500,000.00",
DFID,DFID,16/03/2018,Aid Programme - Partnership Programme Arrangements,Research and Evidence Division,Shell Foundation,204867-103,"1,699,286.00",
DFID,DFID,13/03/2018,Aid Programme - Partnership Programme Arrangements,Research and Evidence Division,Shell Foundation,204867-103,"1,388,977.00",
DFID,DFID,14/03/2018,Subscriptions,Human Resources,Rosetta Stone,100269-156,"7,840.00",
DFID,DFID,28/03/2018,Project delivery costs – supplier services,Research and Evidence Division,Carbon Trust,204867-102,"124,749.34",
DFID,DFID,19/03/2018,Training Providers/Facilitation Services,Policy Division,Rusando Limited,100098-101,"1,716.45",
DFID,DFID,23/03/2018,Training Providers/Facilitation Services,Human Resources,Rusando Limited,100269-155,"4,600.00",
DFID,DFID,12/03/2018,Aid Programme - Accountable Grant Payments,"Asia, Caribbean and Overseas Territories",People in Need,205138-109,"13,953.66",
DFID,DFID,12/03/2018,Aid Programme - Accountable Grant Payments,Middle East and North Africa Division,Supplier Name withheld,300091-101,"3,282,775.00",
DFID,DFID,09/03/2018,Aid Programme - Accountable Grant Payments,Research and Evidence Division,Energy Saving Trust,300111-101,"110,397.54",
DFID,DFID,23/03/2018,Postage Costs,Group Operations,Royal Mail Courier Services Ltd,203717-101,750.20,
DFID,DFID,12/03/2018,Postage Costs,Group Operations,Royal Mail Courier Services Ltd,203717-101,787.71,
DFID,DFID,26/03/2018,Project delivery costs – supplier services,Middle East and North Africa Division,"Blumont International, Inc.",300273-101,"550,108.52",
DFID,DFID,05/03/2018,Project delivery costs – supplier services,Middle East and North Africa Division,"Blumont International, Inc.",300273-101,"436,161.54",
DFID,DFID,05/03/2018,Contract & Agency Staff,Finance and Corporate Performance Division,Anderson Knight Ltd,100201-101,"1,164.96",
DFID,DFID,05/03/2018,Contract & Agency Staff,Finance and Corporate Performance Division,Anderson Knight Ltd,100201-101,"1,436.78",
DFID,DFID,13/03/2018,Contract & Agency Staff,Finance and Corporate Performance Division,Anderson Knight Ltd,100201-101,"1,242.62",
DFID,DFID,21/03/2018,Contract & Agency Staff,Finance and Corporate Performance Division,Anderson Knight Ltd,100201-101,"1,164.96",
DFID,DFID,21/03/2018,Contract & Agency Staff,Finance and Corporate Performance Division,Anderson Knight Ltd,100201-101,"1,436.78",
DFID,DFID,20/03/2018,Contract & Agency Staff,Group Operations,Anderson Knight Ltd,100270-104,725.94,
DFID,DFID,26/03/2018,Contract & Agency Staff,Group Operations,Anderson Knight Ltd,100270-104,725.94,
DFID,DFID,09/03/2018,Contract & Agency Staff,Group Operations,Anderson Knight Ltd,100270-104,725.94,
DFID,DFID,13/03/2018,Contract & Agency Staff,Group Operations,Anderson Knight Ltd,100270-104,725.94,
DFID,DFID,14/03/2018,Project delivery costs – supplier services,"Conflict, Humanitarian, Security & Stabilisation Division",Norwegian People's Aid,203243-124,"585,788.32",
DFID,DFID,07/03/2018,Project delivery costs – supplier services,"Asia, Caribbean and Overseas Territories","Louis Berger Group, Inc.",203426-102,"195,025.00",
DFID,DFID,05/03/2018,Project delivery costs – supplier services,Internal Audit,HMRC,100121-101,"2,774.71",
DFID,DFID,07/03/2018,Training Providers/Facilitation Services,East and Central Africa,Language Services Direct Ltd,101625-112,593.55,
DFID,DFID,12/03/2018,Training Providers/Facilitation Services,East and Central Africa,Language Services Direct Ltd,101625-112,865.44,
DFID,DFID,06/03/2018,Training - Course Fees,West and Southern Africa,Language Services Direct Ltd,101610-101,615.30,
DFID,DFID,21/03/2018,Training - Course Fees,Economic Development Division,Language Services Direct Ltd,100086-101,"3,000.78",
DFID,DFID,08/03/2018,Project delivery costs – supplier services,Economic Development Division,Language Services Direct Ltd,202373-101,712.26,
DFID,DFID,12/03/2018,Aid Programme - Accountable Grant Payments,"Asia, Caribbean and Overseas Territories",The Citizens Foundation,300238-105,"62,400.00",
DFID,DFID,28/03/2018,Aid Programme - Accountable Grant Payments,East and Central Africa,World Vision Australia,204888-107,"230,721.00",
DFID,DFID,08/03/2018,Project delivery costs – supplier services,Middle East and North Africa Division,PROMAN,205200-102,"8,319.85",
DFID,DFID,21/03/2018,Training - Course Fees,Economic Development Division,London Stock Exchange Group,100086-101,"1,939.20",
DFID,DFID,26/03/2018,"Repairs, Maint, Alter - Removal & waste disposal services",Group Operations,Paper Shredding Services Ltd,100106-101,764.88,
DFID,DFID,12/03/2018,"Repairs, Maint, Alter - Removal & waste disposal services",Group Operations,Paper Shredding Services Ltd,100182-101,505.20,
DFID,DFID,22/03/2018,Aid Programme - Other Financial Aid to Government,"Asia, Caribbean and Overseas Territories",Pakistan National Cash Transfer Programme,203029-103,"6,000,000.00",
DFID,DFID,15/03/2018,Oil - Other Utilities,Group Operations,Verdo Renewables Ltd,100106-101,"3,511.20",
DFID,DFID,16/03/2018,"Repairs, Maint, Alter - Property & Constrct. Services",Group Operations,Verdo Renewables Ltd,100106-101,"3,303.72",
DFID,DFID,09/03/2018,Oil - Other Utilities,Group Operations,Verdo Renewables Ltd,100106-101,"3,447.36",
DFID,DFID,19/03/2018,Aid Programme - Voluntary contributions,Policy Division,Aids Fonds - STOP AIDS NOW! - Soa Aids Nederland,203325-101,"437,500.00",
DFID,DFID,28/03/2018,Aid Programme - Other Financial Aid to Government,"Asia, Caribbean and Overseas Territories","Maternal Newborn and Child Health Programme, Pakistan",202488-103,"3,432,000.00",
DFID,DFID,12/03/2018,Fund monies to be managed and dispersed by the supplier,West and Southern Africa,CARE Canada,203551-102,"378,136.00",
DFID,DFID,05/03/2018,Project delivery costs – supplier services,Policy Division,South African Medical Research Council,203709-109,"271,361.00",
DFID,DFID,06/03/2018,Project delivery costs – supplier services,Policy Division,South African Medical Research Council,203709-110,"973,483.00",
DFID,DFID,19/03/2018,Project delivery costs – supplier services,"Asia, Caribbean and Overseas Territories",British Council Burma,204204-101,"280,474.75",
DFID,DFID,05/03/2018,Training - Course Fees,"Asia, Caribbean and Overseas Territories",EML Learning Ltd.,101624-101,600.00,
DFID,DFID,09/03/2018,Aid Programme - Accountable Grant Payments,Research and Evidence Division,GSMA Mobile for Development Foundation Inc,203638-105,"404,176.26",
DFID,DFID,07/03/2018,Data Network - land lines,Business Solutions Division Level,Vodacom Business Nigeria USD,203329-102,"2,077.95",
DFID,DFID,07/03/2018,Data Network - land lines,Business Solutions Division Level,Vodacom Business Nigeria USD,203329-102,"3,713.89",
DFID,DFID,07/03/2018,Data Network - land lines,Business Solutions Division Level,Vodacom Business Nigeria USD,203329-102,"5,126.53",
DFID,DFID,22/03/2018,Aid Programme - Accountable Grant Payments,"Asia, Caribbean and Overseas Territories",LUMS GBP,202697-106,"74,371.29",
DFID,DFID,22/03/2018,Aid Programme - Accountable Grant Payments,"Asia, Caribbean and Overseas Territories",LUMS GBP,202697-106,"550,695.97",
DFID,DFID,12/03/2018,Aid Programme - Accountable Grant Payments,"Asia, Caribbean and Overseas Territories",China Agricultural University,203174-101,"2,390.56",
DFID,DFID,05/03/2018,Aid Programme - Accountable Grant Payments,East and Central Africa,WFT Africa,204941-101,"103,869.00",
DFID,DFID,05/03/2018,Aid Programme - Accountable Grant Payments,East and Central Africa,WFT Africa,204941-102,"44,515.00",
DFID,DFID,05/03/2018,Aid Programme - Accountable Grant Payments,East and Central Africa,WFT Africa,204941-104,"65,911.00",
DFID,DFID,05/03/2018,Aid Programme - Accountable Grant Payments,East and Central Africa,WFT Africa,204941-105,"28,248.00",
DFID,DFID,06/03/2018,Aid Programme - Accountable Grant Payments,East and Central Africa,WFT Africa,202844-105,"516,899.00",
DFID,DFID,02/03/2018,Aid Programme - Trust Funds contributions,Policy Division,UNDP Multi-Partner Trust Fund Office,300311-102,"750,000.00",
DFID,DFID,02/03/2018,Aid Programme - Accountable Grant Payments,Policy Division,IDEO.org,203798-102,"602,927.00",
DFID,DFID,29/03/2018,Subscriptions,Communications Division,Intelogy Limited,100197-101,"4,800.00",
DFID,DFID,28/03/2018,Project delivery costs – supplier services,East and Central Africa,HMRC OGD secondments,204334-102,"1,688.21",
DFID,DFID,15/03/2018,Aid Programme - Trust Funds contributions,West and Southern Africa,International Bank for Reconstruction and Development,204179-108,"150,000.00",
DFID,DFID,13/03/2018,Data Network - land lines,Business Solutions Division Level,Liquid Telecommunications Rwanda Ltd,203329-102,883.35,
DFID,DFID,07/03/2018,Project delivery costs – supplier services,"Conflict, Humanitarian, Security & Stabilisation Division",The Metropolitan Police Service,300042-102,"75,000.00",
DFID,DFID,07/03/2018,Project delivery costs – supplier services,"Conflict, Humanitarian, Security & Stabilisation Division",The Metropolitan Police Service,300042-103,"90,000.00",
DFID,DFID,07/03/2018,Project delivery costs – supplier services,"Conflict, Humanitarian, Security & Stabilisation Division",The Metropolitan Police Service,300042-103,"5,712.00",
DFID,DFID,19/03/2018,Project delivery costs – supplier services,West and Southern Africa,The Hub Hotel,203881-104,914.08,
DFID,DFID,19/03/2018,Aid Programme - Core contributions,Research and Evidence Division,The Innovative Vector Control Consortium,300341-105,"2,000,000.00",
DFID,DFID,15/03/2018,Aid Programme - Humanitarian Material Relief Assistance and Services,"Conflict, Humanitarian, Security & Stabilisation Division",CANADEM,300491-101,"10,096.00",
DFID,DFID,27/03/2018,Aid Programme - Humanitarian Material Relief Assistance and Services,Middle East and North Africa Division,CANADEM,204516-103,"33,844.13",
DFID,DFID,28/03/2018,Aid Programme - Humanitarian Material Relief Assistance and Services,Middle East and North Africa Division,CANADEM,205094-104,"16,606.26",
DFID,DFID,07/03/2018,Project delivery costs – supplier services,"Conflict, Humanitarian, Security & Stabilisation Division",CANADEM,205176-107,"9,565.00",
DFID,DFID,22/03/2018,Project delivery costs – supplier services,East and Central Africa,CANADEM,300196-101,"20,020.00",
DFID,DFID,08/03/2018,Project delivery costs – supplier services,"Asia, Caribbean and Overseas Territories",CANADEM,205268-110,"15,891.56",
DFID,DFID,08/03/2018,Project delivery costs – supplier services,"Asia, Caribbean and Overseas Territories",CANADEM,205268-110,"9,580.00",
DFID,DFID,13/03/2018,Project delivery costs – supplier services,"Asia, Caribbean and Overseas Territories",CANADEM,205268-110,"9,496.00",
DFID,DFID,19/03/2018,Project delivery costs – supplier services,"Asia, Caribbean and Overseas Territories",CANADEM,205268-110,"28,830.77",
DFID,DFID,19/03/2018,Project delivery costs – supplier services,"Asia, Caribbean and Overseas Territories",CANADEM,205268-110,"9,230.38",
DFID,DFID,19/03/2018,Project delivery costs – supplier services,"Asia, Caribbean and Overseas Territories",CANADEM,205268-110,"21,237.00",
DFID,DFID,22/03/2018,Aid Programme - Core contributions,"Asia, Caribbean and Overseas Territories",TECHNOLOGY DEVELOPMENT BOARD,202927-107,"1,111,225.00",
DFID,DFID,27/03/2018,Aid Programme - Humanitarian Material Relief Assistance and Services,Middle East and North Africa Division,RedR Australia,204516-103,"10,127.00",
DFID,DFID,27/03/2018,Aid Programme - Humanitarian Material Relief Assistance and Services,Middle East and North Africa Division,RedR Australia,204516-103,"19,520.90",
DFID,DFID,09/03/2018,Project delivery costs – supplier services,"Asia, Caribbean and Overseas Territories",RedR Australia,205268-110,"16,793.70",
DFID,DFID,29/03/2018,Project delivery costs – supplier services,West and Southern Africa,RENAN CONSULT LTD,204918-101,"3,677.37",
DFID,DFID,28/03/2018,Data Network - land lines,Business Solutions Division Level,(Vodafone)Cable & Wireless Global Networks Ltd,203329-103,"6,317.72",
DFID,DFID,28/03/2018,Data Network - land lines,Business Solutions Division Level,(Vodafone)Cable & Wireless Global Networks Ltd,200002-185,"6,317.72",
DFID,DFID,28/03/2018,Aid Programme - Voluntary contributions,West and Southern Africa,AFDB FRAGILE STATES FACILITY,203635-103,"960,400.00",
DFID,DFID,26/03/2018,Project delivery costs – supplier services,Policy Division,Climate Policy Initiative,201733-121,"31,682.00",
DFID,DFID,08/03/2018,Data Network - land lines,Business Solutions Division Level,Keltec Ltd,200002-124,"1,125.00",
DFID,DFID,29/03/2018,Aid Programme - Joint programme contribution,East and Central Africa,World Bank - IBRD,300393-101,"375,000.00",
DFID,DFID,28/03/2018,Aid Programme - Poverty Reduction Budget Support,East and Central Africa,World Bank - IBRD,203766-112,"88,614.00",
DFID,DFID,26/03/2018,Aid Programme - Trust Funds contributions,"Asia, Caribbean and Overseas Territories",World Bank - IBRD,300109-109,"187,500.00",
DFID,DFID,26/03/2018,Aid Programme - Trust Funds contributions,"Asia, Caribbean and Overseas Territories",World Bank - IBRD,300109-110,"62,500.00",
DFID,DFID,15/03/2018,Other ICT,Business Solutions Division Level,Centerprise International Limited,200002-244,"21,035.30",
DFID,DFID,21/03/2018,Project delivery costs – supplier services,Policy Division,Emerging Markets Private Equity Association (EMPEA),201733-116,"2,686.63",
DFID,DFID,21/03/2018,Project delivery costs – supplier services,"Asia, Caribbean and Overseas Territories",Public Health England,202488-109,"263,521.00",
DFID,DFID,14/03/2018,Air fares,West and Southern Africa,Travel Places Ltd,101613-101,651.15,
DFID,DFID,29/03/2018,Air fares,West and Southern Africa,Travel Places Ltd,101613-101,791.39,
DFID,DFID,13/03/2018,Aid Programme - Accountable Grant Payments,East and Central Africa,ZOA,202520-108,"301,333.00",
DFID,DFID,13/03/2018,Aid Programme - Accountable Grant Payments,East and Central Africa,ZOA,202520-110,"509,297.00",
DFID,DFID,27/03/2018,other information and communication technologies,Business Solutions Division Level,Kainos Software Limited,200002-228,"5,218.67",
DFID,DFID,27/03/2018,Project delivery costs – supplier services,Research and Evidence Division,EY LLP,204806-106,"18,546.00",
DFID,DFID,28/03/2018,Project delivery costs – supplier services,West and Southern Africa,EY LLP,203878-106,"42,539.38",
DFID,DFID,06/03/2018,Project delivery costs – supplier services,West and Southern Africa,EY LLP,205192-102,"13,548.06",
DFID,DFID,15/03/2018,Project delivery costs – supplier services,West and Southern Africa,EY LLP,205192-102,"8,138.00",
DFID,DFID,01/03/2018,Project delivery costs – supplier services,West and Southern Africa,EY LLP,202476-101,"17,595.00",
DFID,DFID,14/03/2018,Project delivery costs – supplier services,Economic Development Division,EY LLP,300276-102,"32,753.76",
DFID,DFID,21/03/2018,Auditors Assurance Service - Cash,West and Southern Africa,Moore Stephens LLP,202732-102,"31,676.00",
DFID,DFID,11/03/2018,Project delivery costs – supplier services,"Asia, Caribbean and Overseas Territories",Supplier Name withheld,201000-102,"23,400.00",
DFID,DFID,19/03/2018,Aid Programme - Core contributions,Research and Evidence Division,PEP-Partnership for Economic Policy,204153-110,"785,964.00",
DFID,DFID,27/03/2018,Aid Programme - Accountable Grant Payments,Policy Division,Regents of the University of Michigan,203516-102,"97,494.85",
DFID,DFID,08/03/2018,Project delivery costs – supplier services,East and Central Africa,KPMG Advisory Limited,204804-102,"78,402.87",
DFID,DFID,08/03/2018,Project delivery costs – supplier services,East and Central Africa,KPMG Advisory Limited,204804-103,"26,134.29",
DFID,DFID,21/03/2018,"Conferences, Seminars & Meeting/Event Resource",Research and Evidence Division,Calder Conferences,202331-102,"20,042.40",
DFID,DFID,21/03/2018,"Conferences, Seminars & Meeting/Event Resource",Research and Evidence Division,Calder Conferences,100088-119,"8,589.60",
DFID,DFID,05/03/2018,Aid Programme - Accountable Grant Payments,West and Southern Africa,Policy & Legal Advocacy Centre,203851-107,"28,436.56",
DFID,DFID,12/03/2018,Aid Programme - Voluntary contributions,"Asia, Caribbean and Overseas Territories",UNOPS-HQ,205268-110,"472,373.00",
DFID,DFID,01/03/2018,other information and communication technologies,West and Southern Africa,IS Internet Solutions Ltd,101622-106,"1,574.03",
DFID,DFID,21/03/2018,Aid Programme - Programme Contribution,Research and Evidence Division,Innovate UK - Technology Strategy Board,204867-106,"414,094.26",
DFID,DFID,21/03/2018,Aid Programme - Programme Contribution,Research and Evidence Division,Innovate UK - Technology Strategy Board,204867-106,"35,027.44",
DFID,DFID,21/03/2018,Aid Programme - Programme Contribution,Research and Evidence Division,Innovate UK - Technology Strategy Board,204867-106,"37,500.00",
DFID,DFID,07/03/2018,Aid Programme - Programme Contribution,Research and Evidence Division,Innovate UK - Technology Strategy Board,204867-106,"85,647.70",
DFID,DFID,07/03/2018,Aid Programme - Programme Contribution,Research and Evidence Division,Innovate UK - Technology Strategy Board,204867-106,"37,500.00",
DFID,DFID,07/03/2018,Programme Contribution,Research and Evidence Division,Innovate UK - Technology Strategy Board,204867-106,"879,239.51",
DFID,DFID,06/03/2018,Aid Programme - Challenge Fund payments,Research and Evidence Division,Innovate UK - Technology Strategy Board,203067-102,"29,082.87",
DFID,DFID,06/03/2018,Aid Programme - Challenge Fund payments,Research and Evidence Division,Innovate UK - Technology Strategy Board,203067-102,"403,112.49",
DFID,DFID,28/03/2018,Aid Programme - Non Grant Financial contributions,Research and Evidence Division,Innovate UK - Technology Strategy Board,205170-101,"2,272.03",
DFID,DFID,28/03/2018,Aid Programme - Non Grant Financial contributions,Research and Evidence Division,Innovate UK - Technology Strategy Board,205170-101,"87,398.17",
DFID,DFID,28/03/2018,Aid Programme - Accountable Grant Payments,Research and Evidence Division,The British Academy,203752-103,"163,797.64",
DFID,DFID,28/03/2018,Aid Programme - Joint programme contribution,Policy Division,European Commission GBP 8225,204953-101,"1,470,000.00",
DFID,DFID,12/03/2018,Project delivery costs – supplier services,Policy Division,AECOM Professional Services,201724-156,"13,000.00",
DFID,DFID,12/03/2018,Project delivery costs – supplier services,Policy Division,AECOM Professional Services,201724-156,"3,675.00",
DFID,DFID,14/03/2018,Project delivery costs – supplier services,West and Southern Africa,AECOM Professional Services,202214-103,"24,436.34",
DFID,DFID,27/03/2018,DFID Purchased Relief Supplies,East and Central Africa,AECOM Professional Services,203986-105,"574,957.00",
DFID,DFID,27/03/2018,DFID Purchased Relief Supplies,East and Central Africa,AECOM Professional Services,203986-105,"406,608.00",
DFID,DFID,29/03/2018,Project delivery costs – supplier services,West and Southern Africa,AECOM Professional Services,200625-105,"4,277.88",
DFID,DFID,23/03/2018,Project delivery costs – supplier services,"Asia, Caribbean and Overseas Territories",AECOM Professional Services,204023-105,"39,522.42",
DFID,DFID,23/03/2018,DFID Purchased Relief Supplies,"Asia, Caribbean and Overseas Territories",AECOM Professional Services,204023-105,"658,706.86",
DFID,DFID,26/03/2018,DFID Purchased Relief Supplies,"Asia, Caribbean and Overseas Territories",AECOM Professional Services,202488-104,"41,706.77",
DFID,DFID,29/03/2018,DFID Purchased Relief Supplies,West and Southern Africa,AECOM Professional Services,203674-103,"300,000.00",
DFID,DFID,26/03/2018,DFID Purchased Relief Supplies,East and Central Africa,AECOM Professional Services,204626-106,"29,763.98",
DFID,DFID,06/03/2018,Project delivery costs – supplier services,West and Southern Africa,AECOM Professional Services,203674-103,"53,151.50",
DFID,DFID,21/03/2018,Project delivery costs – supplier services,East and Central Africa,AECOM Professional Services,203363-112,"734,874.74",
DFID,DFID,29/03/2018,Project delivery costs – supplier services,West and Southern Africa,AECOM Professional Services,203674-103,"24,768.42",
DFID,DFID,29/03/2018,DFID Purchased Relief Supplies,West and Southern Africa,AECOM Professional Services,200625-105,"71,292.77",
DFID,DFID,19/03/2018,Project delivery costs – supplier services,West and Southern Africa,G4S Secure Solutions Sierra Leone Ltd,205182-104,"39,517.00",
DFID,DFID,02/03/2018,Aid Programme - Accountable Grant Payments,"Asia, Caribbean and Overseas Territories",Karandaaz Pakistan,202495-107,"375,000.00",
DFID,DFID,02/03/2018,Aid Programme - Accountable Grant Payments,"Asia, Caribbean and Overseas Territories",Karandaaz Pakistan,202495-108,"138,541.00",
DFID,DFID,02/03/2018,Aid Programme - Accountable Grant Payments,"Asia, Caribbean and Overseas Territories",Karandaaz Pakistan,202495-109,"37,027.00",
DFID,DFID,02/03/2018,Aid Programme - Accountable Grant Payments,"Asia, Caribbean and Overseas Territories",Karandaaz Pakistan,202495-110,"140,227.00",
DFID,DFID,16/03/2018,Aid Programme - Accountable Grant Payments,"Asia, Caribbean and Overseas Territories",Karandaaz Pakistan,202495-106,"2,268,780.00",
